Workbook

Sheet Preisliste
A1: Kalkulationshilfe Treesoft E-Rechnung Toolkit
B3: FREE | C3: BASIS | D3: PLUS | E3: PRO
A4: Treesoft XRechnung Viewer | B4: kostenlos | C4: kostenlos | D4: kostenlos | E4: kostenlos
A5: Treesoft XRechnung Validator (Token je Transaktion) | B5: 30 | C5: 20 | D5: 14 | E5: 8
A6: Treesoft XRechnung Editor (Token je Transaktion) | B6: 20 | C6: 16 | D6: 10 | E6: 6
A7: Treesoft XRechnung Creator (Token je Transaktion) | B7: 40 | C7: 30 | D7: 20 | E7: 14
A8: Treesoft PDF2XRechnung Converter (Token je Transaktion) | B8: 40 | C8: 30 | D8: 20 | E8: 14
A9: Treesoft Rechnungsvorlagen | B9: kostenlos | C9: kostenlos | D9: kostenlos | E9: kostenlos
A10: Treesoft ZUGFeRD Creator (Token je Transaktion) | B10: 20 | C10: 15 | D10: 10 | E10: 5
A11: Treesoft PDF Printer (generiert das PDF ZUGFeRD Format) | B11: 1 | C11: 1 | D11: 1 | E11: 1
A12: ohne Subscription (keine monatliche Grundgebühr)
A13: Subscription (monatliche Grundgebühr) | C13: 9.00 € | D13: 39.00 € | E13: 79.00 €
A14: Anzahl der Arbeitsplätze | B14: 1 | C14: 1 | D14: 5 | E14: 25
A15: empfohlen bis Rechnungen / Jahr | B15: 150 | C15: 700 | D15: 2.000 | E15: > 2.000
A16: Ersteinrichtung/Setup (einmalig)* | B16: 299.00 € | C16: 299.00 € | D16: 299.00 € | E16: 299.00 €
A17: Dokumentenarten | B17: - Rechnung - Stornorechnung - Abschlagsrechnung - Teilrechnung - Schlussrechnung - Gutschrift wenn die Dokumente deckungsgleich sind | C17: - Rechnung - Stornorechnung - Abschlagsrechnung - Teilrechnung - Schlussrechnung - Gutschrift wenn die Dokumente deckungsgleich sind | D17: - Rechnung - Stornorechnung - Abschlagsrechnung - Teilrechnung - Schlussrechnung - Gutschrift wenn die Dokumente deckungsgleich sind | E17: - Rechnung - Stornorechnung - Abschlagsrechnung - Teilrechnung - Schlussrechnung - Gutschrift wenn die Dokumente deckungsgleich sind | G17: Anleitung Trage in den orange hinterlegten Feldern in der Tabelle G22:G26 die Anzahl der verschiedenen Transaktionen pro Jahr ein. Das entsprechend deiner Angaben berechnete Token-Paket wird in der Zeile 32 vorbelegt. Falls gewünscht, kannst du die Vorbelegung überschreiben und beispielsweise das nächst größere Token-Paket auswählen, um deine Kosten pro Transaktion weiter zu verringern. Der Zeile 44 kannst du anschließend entnehmen, ab wann sich welche Subscription für dich rechnet. Eine grafische Darstellung als Liniendiagramm findest du auf dem Tabellenblatt Diagramm. So einfach ist das!
A20: Token-Pakete
B21: Anzahl | C21: Preis je Token | D21: Preis gesamt | G21: Transaktionen pro Jahr | H21: Anzahl | I21: Anteil in %
A22: 500 Token | B22: 500 | C22: 0.10 € | D22: =B22*C22 -> 50.00 € | G22: Prüfen (Treesoft XRechnung Validator) | H22: 0 | I22: =IF($H$27=0,"",H22/$H$27) -> 0.00 %
A23: 1,000 Token | B23: 1,000 | C23: 0.09 € | D23: 90.00 € | G23: Bearbeiten (Treesoft XRechnung Editor) | H23: 0 | I23: =IF($H$27=0,"",H23/$H$27) -> 0.00 %
A24: 4,000 Token | B24: 4,000 | C24: 0.08 € | D24: 320.00 € | G24: Erstellen (Treesoft XRechnung Creator) | H24: 0 | I24: =IF($H$27=0,"",H24/$H$27) -> 0.00 %
A25: 8,000 Token | B25: 8,000 | C25: 0.07 € | D25: 560.00 € | G25: Konvertieren (Treesoft PDF2XRechnung Converter) | H25: 100 | I25: =IF($H$27=0,"",H25/$H$27) -> 100.00 %
A26: 16,000 Token | B26: 16,000 | C26: 0.06 € | D26: 960.00 € | G26: ZUGFeRD-Datei erstellen (Treesoft ZUGFeRD Creator) | H26: 0 | I26: =IF($H$27=0,"",H26/$H$27) -> 0.00 %
A27: 32,000 Token | B27: 32,000 | C27: 0.05 € | D27: 1,600.00 € | G27: Summe | H27: =SUM(H22:H26) -> 100 | I27: =IF($H$27=0,"",SUM(I22:I26)) -> 100.00 %
A28: 50,000 Token | B28: 50,000 | C28: 0.04 € | D28: 2,000.00 €
A30: Auswahl Token-Paket für die Berechnung
B31: FREE | C31: BASIS | D31: PLUS | E31: PRO
A32: Auswahl Token-Paket für Berechnung: | B32: =B33 -> 4,000 Token | C32: =$B$32 -> 4,000 Token | D32: =$B$32 -> 4,000 Token | E32: 4,000 Token
A33: Empfehlung Token-Paket | B33: =IF(H38>32000,50000,IF(H38>16000,32000,IF(H38>8000,16000,IF(H38>4000,8000,IF(H38>1000,4000,IF(H38>500,1000,500)))))) -> 4,000 Token | C33: =IF(H39>32000,50000,IF(H39>16000,32000,IF(H39>8000,16000,IF(H39>4000,8000,IF(H39>1000,4000,IF(H39>500,1000,500)))))) -> 4,000 Token | D33: =IF(H40>32000,50000,IF(H40>16000,32000,IF(H40>8000,16000,IF(H40>4000,8000,IF(H40>1000,4000,IF(H40>500,1000,500)))))) -> 4,000 Token | E33: =IF(H41>32000,50000,IF(H41>16000,32000,IF(H41>8000,16000,IF(H41>4000,8000,IF(H41>1000,4000,IF(H41>500,1000,500)))))) -> 4,000 Token
A34: Preis je Token | B34: =IF(B32=$A$22,$C$22,IF(B32=$A$23,$C$23,IF(B32=$A$24,$C$24,IF(B32=$A$25,$C$25,IF(B32=$A$26,$C$26,IF(B32=$A$27,$C$27,IF(B32=$A$28,$C$28,""))))))) -> 0.08 € | C34: =IF(C32=$A$22,$C$22,IF(C32=$A$23,$C$23,IF(C32=$A$24,$C$24,IF(C32=$A$25,$C$25,IF(C32=$A$26,$C$26,IF(C32=$A$27,$C$27,IF(C32=$A$28,$C$28,""))))))) -> 0.08 € | D34: =IF(D32=$A$22,$C$22,IF(D32=$A$23,$C$23,IF(D32=$A$24,$C$24,IF(D32=$A$25,$C$25,IF(D32=$A$26,$C$26,IF(D32=$A$27,$C$27,IF(D32=$A$28,$C$28,""))))))) -> 0.08 € | E34: =IF(E32=$A$22,$C$22,IF(E32=$A$23,$C$23,IF(E32=$A$24,$C$24,IF(E32=$A$25,$C$25,IF(E32=$A$26,$C$26,IF(E32=$A$27,$C$27,IF(E32=$A$28,$C$28,""))))))) -> 0.08 €
A36: Berechnung | B36: =IF($H$27=0,"",IF(B41=MIN($B$41:$E$41),"Empfehlung","")) -> Empfehlung | C36: =IF($H$27=0,"",IF(C41=MIN($B$41:$E$41),"Empfehlung","")) -> 
B37: FREE | C37: BASIS | D37: PLUS | E37: PRO | G37: Anzahl Token pro Jahr | H37: Anzahl
A38: Gesamtkosten pro Monat inkl. Einrichtung (1. Jahr) | B38: =IF($H$27=0,"",(($H$22*B5+$H$23*B6+$H$24*B7+$H$25*B8+$H$26*B10)*B34+B16)/12) -> 51.58 € | C38: =IF($H$27=0,"",(($H$22*C5+$H$23*C6+$H$24*C7+$H$25*C8+$H$26*C10)*C34+C16)/12+C13) -> 53.92 € | D38: =IF($H$27=0,"",(($H$22*D5+$H$23*D6+$H$24*D7+$H$25*D8+$H$26*D10)*D34+D16)/12+D13) -> 77.25 € | E38: =IF($H$27=0,"",(($H$22*E5+$H$23*E6+$H$24*E7+$H$25*E8+$H$26*E10)*E34+E16)/12+E13) -> 113.25 € | G38: FREE | H38: =(H22*B5)+(H23*B6)+(H24*B7)+(H25*B8)+(H26*B10) -> 4,000
A39: Kosten pro Transaktion (1. Jahr) | B39: =IF($H$27=0,"",B38/$H$27*12) -> 6.19 € | C39: =IF($H$27=0,"",C38/$H$27*12) -> 6.47 € | D39: =IF($H$27=0,"",D38/$H$27*12) -> 9.27 € | E39: =IF($H$27=0,"",E38/$H$27*12) -> 13.59 € | G39: BASIS | H39: =(H22*C5)+(H23*C6)+(H24*C7)+(H25*C8)+(H26*C10) -> 3,000
A40: Gesamtkosten pro Monat (Folgejahr ohne Einrichtung) | B40: =IF($H$27=0,"",B38-($B16/12)) -> 26.67 € | C40: =IF($H$27=0,"",C38-($C$16/12)) -> 29.00 € | D40: =IF($H$27=0,"",D38-($D$16/12)) -> 52.33 € | E40: =IF($H$27=0,"",E38-($E$16/12)) -> 88.33 € | G40: PLUS | H40: =(H22*D5)+(H23*D6)+(H24*D7)+(H25*D8)+(H26*D10) -> 2,000
A41: Kosten pro Transaktion (Folgejahr ohne Einrichtung) | B41: =IF($H$27=0,"",B40/H27*12) -> 3.20 € | C41: =IF($H$27=0,"",C40/$H$27*12) -> 3.48 € | D41: =IF($H$27=0,"",D40/$H$27*12) -> 6.28 € | E41: =IF($H$27=0,"",E40/$H$27*12) -> 10.60 € | G41: PRO | H41: =(H22*E5)+(H23*E6)+(H24*E7)+(H25*E8)+(H26*E10) -> 1,400
B43: FREE | C43: BASIS | D43: PLUS | E43: PRO
A44: empfohlen ab Anzahl Transaktionen: | B44: =IF(H27=0,"",1) -> 1 | C44: =Diagramm!B51 -> 135 | D44: =Diagramm!C51 -> 450 | E44: =Diagramm!D51 -> 1,000

Sheet Diagramm
A1: Subscriptions Treesoft E-Rechnung Toolkit pro Jahr (ohne Ersteinrichtung/Setup)
B49: FREE => | C49: BASIS => | D49: PLUS => | E49: PRO
A50: Schnittpunkte: | B50: =IF(Preisliste!$H$27=0,"",(Preisliste!$C$13*12)/(((Preisliste!$I$22*Preisliste!$B$5+Preisliste!$I$23*Preisliste!$B$6+Preisliste!$I$24*Preisliste!$B$7+Preisliste!$I$25*Preisliste!$B$8+Preisliste!$I$26*Preisliste!$B$10)*Preisliste!$B$34)-((Preisliste!$I$22*Preisliste!$C$5+Preisliste!$I$23*Preisliste!$C$6+Preisliste!$I$24*Preisliste!$C$7+Preisliste!$I$25*Preisliste!$C$8+Preisliste!$I$26*Preisliste!$C$10)*Preisliste!$C$34))) -> 135 | C50: =IF(Preisliste!$H$27=0,"",((Preisliste!$D$13* 12)-(Preisliste!$C$13*12))/(((Preisliste!$I$22*Preisliste!$C$5+Preisliste!$I$23*Preisliste!$C$6+Preisliste!$I$24*Preisliste!$C$7+Preisliste!$I$25*Preisliste!$C$8+Preisliste!$I$26*Preisliste!$C$10)*Preisliste!$C$34)-((Preisliste!$I$22*Preisliste!$D$5+Preisliste!$I$23*Preisliste!$D$6+Preisliste!$I$24*Preisliste!$D$7+Preisliste!$I$25*Preisliste!$D$8+Preisliste!$I$26*Preisliste!$D$10)*Preisliste!$D$34))) -> 450 | D50: =IF(Preisliste!$H$27=0,"",((Preisliste!$E$13*12)-(Preisliste!$D$13*12))/(((Preisliste!$I$22*Preisliste!$D$5+Preisliste!$I$23*Preisliste!$D$6+Preisliste!$I$24*Preisliste!$D$7+Preisliste!$I$25*Preisliste!$D$8+Preisliste!$I$26*Preisliste!$D$10)*Preisliste!$D$34)-((Preisliste!$I$22*Preisliste!$E$5+Preisliste!$I$23*Preisliste!$E$6+Preisliste!$I$24*Preisliste!$E$7+Preisliste!$I$25*Preisliste!$E$8+Preisliste!$I$26*Preisliste!$E$10)*Preisliste!$E$34))) -> 1,000
A51: Schnittpunkte: | B51: =IF(B50>0,B50,"--") -> 135 | C51: =IF(C50>0,C50,"--") -> 450 | D51: 1,000

Sheet Berechnung (hidden)
A1: Berechnung pro Jahr (ohne Ersteinrichtung/Setup)
A3: Transaktionen | B3: FREE | C3: BASIS | D3: PLUS | E3: PRO
C4: mit Subscription
A5: 10 | B5: =A5*((Preisliste!$I$22*Preisliste!$B$5+Preisliste!$I$23*Preisliste!$B$6+Preisliste!$I$24*Preisliste!$B$7+Preisliste!$I$25*Preisliste!$B$8+Preisliste!$I$26*Preisliste!$B$10)*Preisliste!$B$34) -> 32.00 € | C5: =(A5*(Preisliste!$I$22*Preisliste!$C$5+Preisliste!$I$23*Preisliste!$C$6+Preisliste!$I$24*Preisliste!$C$7+Preisliste!$I$25*Preisliste!$C$8+Preisliste!$I$26*Preisliste!$C$10)*Preisliste!$C$34+Preisliste!$C$13*12) -> 132.00 € | D5: =(A5*(Preisliste!$I$22*Preisliste!$D$5+Preisliste!$I$23*Preisliste!$D$6+Preisliste!$I$24*Preisliste!$D$7+Preisliste!$I$25*Preisliste!$D$8+Preisliste!$I$26*Preisliste!$D$10)*Preisliste!$D$34+Preisliste!$D$13*12) -> 484.00 € | E5: =(A5*(Preisliste!$I$22*Preisliste!$E$5+Preisliste!$I$23*Preisliste!$E$6+Preisliste!$I$24*Preisliste!$E$7+Preisliste!$I$25*Preisliste!$E$8+Preisliste!$I$26*Preisliste!$E$10)*Preisliste!$E$34+Preisliste!$E$13*12) -> 959.20 €
A6: 20 | B6: =A6*((Preisliste!$I$22*Preisliste!$B$5+Preisliste!$I$23*Preisliste!$B$6+Preisliste!$I$24*Preisliste!$B$7+Preisliste!$I$25*Preisliste!$B$8+Preisliste!$I$26*Preisliste!$B$10)*Preisliste!$B$34) -> 64.00 € | C6: =(A6*(Preisliste!$I$22*Preisliste!$C$5+Preisliste!$I$23*Preisliste!$C$6+Preisliste!$I$24*Preisliste!$C$7+Preisliste!$I$25*Preisliste!$C$8+Preisliste!$I$26*Preisliste!$C$10)*Preisliste!$C$34+Preisliste!$C$13*12) -> 156.00 € | D6: =(A6*(Preisliste!$I$22*Preisliste!$D$5+Preisliste!$I$23*Preisliste!$D$6+Preisliste!$I$24*Preisliste!$D$7+Preisliste!$I$25*Preisliste!$D$8+Preisliste!$I$26*Preisliste!$D$10)*Preisliste!$D$34+Preisliste!$D$13*12) -> 500.00 € | E6: =(A6*(Preisliste!$I$22*Preisliste!$E$5+Preisliste!$I$23*Preisliste!$E$6+Preisliste!$I$24*Preisliste!$E$7+Preisliste!$I$25*Preisliste!$E$8+Preisliste!$I$26*Preisliste!$E$10)*Preisliste!$E$34+Preisliste!$E$13*12) -> 970.40 €
A7: 30 | B7: =A7*((Preisliste!$I$22*Preisliste!$B$5+Preisliste!$I$23*Preisliste!$B$6+Preisliste!$I$24*Preisliste!$B$7+Preisliste!$I$25*Preisliste!$B$8+Preisliste!$I$26*Preisliste!$B$10)*Preisliste!$B$34) -> 96.00 € | C7: =(A7*(Preisliste!$I$22*Preisliste!$C$5+Preisliste!$I$23*Preisliste!$C$6+Preisliste!$I$24*Preisliste!$C$7+Preisliste!$I$25*Preisliste!$C$8+Preisliste!$I$26*Preisliste!$C$10)*Preisliste!$C$34+Preisliste!$C$13*12) -> 180.00 € | D7: =(A7*(Preisliste!$I$22*Preisliste!$D$5+Preisliste!$I$23*Preisliste!$D$6+Preisliste!$I$24*Preisliste!$D$7+Preisliste!$I$25*Preisliste!$D$8+Preisliste!$I$26*Preisliste!$D$10)*Preisliste!$D$34+Preisliste!$D$13*12) -> 516.00 € | E7: =(A7*(Preisliste!$I$22*Preisliste!$E$5+Preisliste!$I$23*Preisliste!$E$6+Preisliste!$I$24*Preisliste!$E$7+Preisliste!$I$25*Preisliste!$E$8+Preisliste!$I$26*Preisliste!$E$10)*Preisliste!$E$34+Preisliste!$E$13*12) -> 981.60 €
A8: 40 | B8: =A8*((Preisliste!$I$22*Preisliste!$B$5+Preisliste!$I$23*Preisliste!$B$6+Preisliste!$I$24*Preisliste!$B$7+Preisliste!$I$25*Preisliste!$B$8+Preisliste!$I$26*Preisliste!$B$10)*Preisliste!$B$34) -> 128.00 € | C8: =(A8*(Preisliste!$I$22*Preisliste!$C$5+Preisliste!$I$23*Preisliste!$C$6+Preisliste!$I$24*Preisliste!$C$7+Preisliste!$I$25*Preisliste!$C$8+Preisliste!$I$26*Preisliste!$C$10)*Preisliste!$C$34+Preisliste!$C$13*12) -> 204.00 € | D8: =(A8*(Preisliste!$I$22*Preisliste!$D$5+Preisliste!$I$23*Preisliste!$D$6+Preisliste!$I$24*Preisliste!$D$7+Preisliste!$I$25*Preisliste!$D$8+Preisliste!$I$26*Preisliste!$D$10)*Preisliste!$D$34+Preisliste!$D$13*12) -> 532.00 € | E8: =(A8*(Preisliste!$I$22*Preisliste!$E$5+Preisliste!$I$23*Preisliste!$E$6+Preisliste!$I$24*Preisliste!$E$7+Preisliste!$I$25*Preisliste!$E$8+Preisliste!$I$26*Preisliste!$E$10)*Preisliste!$E$34+Preisliste!$E$13*12) -> 992.80 €
A9: 50 | B9: =A9*((Preisliste!$I$22*Preisliste!$B$5+Preisliste!$I$23*Preisliste!$B$6+Preisliste!$I$24*Preisliste!$B$7+Preisliste!$I$25*Preisliste!$B$8+Preisliste!$I$26*Preisliste!$B$10)*Preisliste!$B$34) -> 160.00 € | C9: =(A9*(Preisliste!$I$22*Preisliste!$C$5+Preisliste!$I$23*Preisliste!$C$6+Preisliste!$I$24*Preisliste!$C$7+Preisliste!$I$25*Preisliste!$C$8+Preisliste!$I$26*Preisliste!$C$10)*Preisliste!$C$34+Preisliste!$C$13*12) -> 228.00 € | D9: =(A9*(Preisliste!$I$22*Preisliste!$D$5+Preisliste!$I$23*Preisliste!$D$6+Preisliste!$I$24*Preisliste!$D$7+Preisliste!$I$25*Preisliste!$D$8+Preisliste!$I$26*Preisliste!$D$10)*Preisliste!$D$34+Preisliste!$D$13*12) -> 548.00 € | E9: =(A9*(Preisliste!$I$22*Preisliste!$E$5+Preisliste!$I$23*Preisliste!$E$6+Preisliste!$I$24*Preisliste!$E$7+Preisliste!$I$25*Preisliste!$E$8+Preisliste!$I$26*Preisliste!$E$10)*Preisliste!$E$34+Preisliste!$E$13*12) -> 1,004.00 €
A10: 60 | B10: =A10*((Preisliste!$I$22*Preisliste!$B$5+Preisliste!$I$23*Preisliste!$B$6+Preisliste!$I$24*Preisliste!$B$7+Preisliste!$I$25*Preisliste!$B$8+Preisliste!$I$26*Preisliste!$B$10)*Preisliste!$B$34) -> 192.00 € | C10: =(A10*(Preisliste!$I$22*Preisliste!$C$5+Preisliste!$I$23*Preisliste!$C$6+Preisliste!$I$24*Preisliste!$C$7+Preisliste!$I$25*Preisliste!$C$8+Preisliste!$I$26*Preisliste!$C$10)*Preisliste!$C$34+Preisliste!$C$13*12) -> 252.00 € | D10: =(A10*(Preisliste!$I$22*Preisliste!$D$5+Preisliste!$I$23*Preisliste!$D$6+Preisliste!$I$24*Preisliste!$D$7+Preisliste!$I$25*Preisliste!$D$8+Preisliste!$I$26*Preisliste!$D$10)*Preisliste!$D$34+Preisliste!$D$13*12) -> 564.00 € | E10: =(A10*(Preisliste!$I$22*Preisliste!$E$5+Preisliste!$I$23*Preisliste!$E$6+Preisliste!$I$24*Preisliste!$E$7+Preisliste!$I$25*Preisliste!$E$8+Preisliste!$I$26*Preisliste!$E$10)*Preisliste!$E$34+Preisliste!$E$13*12) -> 1,015.20 €
A11: 70 | B11: =A11*((Preisliste!$I$22*Preisliste!$B$5+Preisliste!$I$23*Preisliste!$B$6+Preisliste!$I$24*Preisliste!$B$7+Preisliste!$I$25*Preisliste!$B$8+Preisliste!$I$26*Preisliste!$B$10)*Preisliste!$B$34) -> 224.00 € | C11: =(A11*(Preisliste!$I$22*Preisliste!$C$5+Preisliste!$I$23*Preisliste!$C$6+Preisliste!$I$24*Preisliste!$C$7+Preisliste!$I$25*Preisliste!$C$8+Preisliste!$I$26*Preisliste!$C$10)*Preisliste!$C$34+Preisliste!$C$13*12) -> 276.00 € | D11: =(A11*(Preisliste!$I$22*Preisliste!$D$5+Preisliste!$I$23*Preisliste!$D$6+Preisliste!$I$24*Preisliste!$D$7+Preisliste!$I$25*Preisliste!$D$8+Preisliste!$I$26*Preisliste!$D$10)*Preisliste!$D$34+Preisliste!$D$13*12) -> 580.00 € | E11: =(A11*(Preisliste!$I$22*Preisliste!$E$5+Preisliste!$I$23*Preisliste!$E$6+Preisliste!$I$24*Preisliste!$E$7+Preisliste!$I$25*Preisliste!$E$8+Preisliste!$I$26*Preisliste!$E$10)*Preisliste!$E$34+Preisliste!$E$13*12) -> 1,026.40 €
A12: 80 | B12: =A12*((Preisliste!$I$22*Preisliste!$B$5+Preisliste!$I$23*Preisliste!$B$6+Preisliste!$I$24*Preisliste!$B$7+Preisliste!$I$25*Preisliste!$B$8+Preisliste!$I$26*Preisliste!$B$10)*Preisliste!$B$34) -> 256.00 € | C12: =(A12*(Preisliste!$I$22*Preisliste!$C$5+Preisliste!$I$23*Preisliste!$C$6+Preisliste!$I$24*Preisliste!$C$7+Preisliste!$I$25*Preisliste!$C$8+Preisliste!$I$26*Preisliste!$C$10)*Preisliste!$C$34+Preisliste!$C$13*12) -> 300.00 € | D12: =(A12*(Preisliste!$I$22*Preisliste!$D$5+Preisliste!$I$23*Preisliste!$D$6+Preisliste!$I$24*Preisliste!$D$7+Preisliste!$I$25*Preisliste!$D$8+Preisliste!$I$26*Preisliste!$D$10)*Preisliste!$D$34+Preisliste!$D$13*12) -> 596.00 € | E12: =(A12*(Preisliste!$I$22*Preisliste!$E$5+Preisliste!$I$23*Preisliste!$E$6+Preisliste!$I$24*Preisliste!$E$7+Preisliste!$I$25*Preisliste!$E$8+Preisliste!$I$26*Preisliste!$E$10)*Preisliste!$E$34+Preisliste!$E$13*12) -> 1,037.60 €
A13: 90 | B13: =A13*((Preisliste!$I$22*Preisliste!$B$5+Preisliste!$I$23*Preisliste!$B$6+Preisliste!$I$24*Preisliste!$B$7+Preisliste!$I$25*Preisliste!$B$8+Preisliste!$I$26*Preisliste!$B$10)*Preisliste!$B$34) -> 288.00 € | C13: =(A13*(Preisliste!$I$22*Preisliste!$C$5+Preisliste!$I$23*Preisliste!$C$6+Preisliste!$I$24*Preisliste!$C$7+Preisliste!$I$25*Preisliste!$C$8+Preisliste!$I$26*Preisliste!$C$10)*Preisliste!$C$34+Preisliste!$C$13*12) -> 324.00 € | D13: =(A13*(Preisliste!$I$22*Preisliste!$D$5+Preisliste!$I$23*Preisliste!$D$6+Preisliste!$I$24*Preisliste!$D$7+Preisliste!$I$25*Preisliste!$D$8+Preisliste!$I$26*Preisliste!$D$10)*Preisliste!$D$34+Preisliste!$D$13*12) -> 612.00 € | E13: =(A13*(Preisliste!$I$22*Preisliste!$E$5+Preisliste!$I$23*Preisliste!$E$6+Preisliste!$I$24*Preisliste!$E$7+Preisliste!$I$25*Preisliste!$E$8+Preisliste!$I$26*Preisliste!$E$10)*Preisliste!$E$34+Preisliste!$E$13*12) -> 1,048.80 €
A14: 100 | B14: =A14*((Preisliste!$I$22*Preisliste!$B$5+Preisliste!$I$23*Preisliste!$B$6+Preisliste!$I$24*Preisliste!$B$7+Preisliste!$I$25*Preisliste!$B$8+Preisliste!$I$26*Preisliste!$B$10)*Preisliste!$B$34) -> 320.00 € | C14: =(A14*(Preisliste!$I$22*Preisliste!$C$5+Preisliste!$I$23*Preisliste!$C$6+Preisliste!$I$24*Preisliste!$C$7+Preisliste!$I$25*Preisliste!$C$8+Preisliste!$I$26*Preisliste!$C$10)*Preisliste!$C$34+Preisliste!$C$13*12) -> 348.00 € | D14: =(A14*(Preisliste!$I$22*Preisliste!$D$5+Preisliste!$I$23*Preisliste!$D$6+Preisliste!$I$24*Preisliste!$D$7+Preisliste!$I$25*Preisliste!$D$8+Preisliste!$I$26*Preisliste!$D$10)*Preisliste!$D$34+Preisliste!$D$13*12) -> 628.00 € | E14: =(A14*(Preisliste!$I$22*Preisliste!$E$5+Preisliste!$I$23*Preisliste!$E$6+Preisliste!$I$24*Preisliste!$E$7+Preisliste!$I$25*Preisliste!$E$8+Preisliste!$I$26*Preisliste!$E$10)*Preisliste!$E$34+Preisliste!$E$13*12) -> 1,060.00 €
A15: 110 | B15: =A15*((Preisliste!$I$22*Preisliste!$B$5+Preisliste!$I$23*Preisliste!$B$6+Preisliste!$I$24*Preisliste!$B$7+Preisliste!$I$25*Preisliste!$B$8+Preisliste!$I$26*Preisliste!$B$10)*Preisliste!$B$34) -> 352.00 € | C15: =(A15*(Preisliste!$I$22*Preisliste!$C$5+Preisliste!$I$23*Preisliste!$C$6+Preisliste!$I$24*Preisliste!$C$7+Preisliste!$I$25*Preisliste!$C$8+Preisliste!$I$26*Preisliste!$C$10)*Preisliste!$C$34+Preisliste!$C$13*12) -> 372.00 € | D15: =(A15*(Preisliste!$I$22*Preisliste!$D$5+Preisliste!$I$23*Preisliste!$D$6+Preisliste!$I$24*Preisliste!$D$7+Preisliste!$I$25*Preisliste!$D$8+Preisliste!$I$26*Preisliste!$D$10)*Preisliste!$D$34+Preisliste!$D$13*12) -> 644.00 € | E15: =(A15*(Preisliste!$I$22*Preisliste!$E$5+Preisliste!$I$23*Preisliste!$E$6+Preisliste!$I$24*Preisliste!$E$7+Preisliste!$I$25*Preisliste!$E$8+Preisliste!$I$26*Preisliste!$E$10)*Preisliste!$E$34+Preisliste!$E$13*12) -> 1,071.20 €
A16: 120 | B16: =A16*((Preisliste!$I$22*Preisliste!$B$5+Preisliste!$I$23*Preisliste!$B$6+Preisliste!$I$24*Preisliste!$B$7+Preisliste!$I$25*Preisliste!$B$8+Preisliste!$I$26*Preisliste!$B$10)*Preisliste!$B$34) -> 384.00 € | C16: =(A16*(Preisliste!$I$22*Preisliste!$C$5+Preisliste!$I$23*Preisliste!$C$6+Preisliste!$I$24*Preisliste!$C$7+Preisliste!$I$25*Preisliste!$C$8+Preisliste!$I$26*Preisliste!$C$10)*Preisliste!$C$34+Preisliste!$C$13*12) -> 396.00 € | D16: =(A16*(Preisliste!$I$22*Preisliste!$D$5+Preisliste!$I$23*Preisliste!$D$6+Preisliste!$I$24*Preisliste!$D$7+Preisliste!$I$25*Preisliste!$D$8+Preisliste!$I$26*Preisliste!$D$10)*Preisliste!$D$34+Preisliste!$D$13*12) -> 660.00 € | E16: =(A16*(Preisliste!$I$22*Preisliste!$E$5+Preisliste!$I$23*Preisliste!$E$6+Preisliste!$I$24*Preisliste!$E$7+Preisliste!$I$25*Preisliste!$E$8+Preisliste!$I$26*Preisliste!$E$10)*Preisliste!$E$34+Preisliste!$E$13*12) -> 1,082.40 €
A17: 130 | B17: =A17*((Preisliste!$I$22*Preisliste!$B$5+Preisliste!$I$23*Preisliste!$B$6+Preisliste!$I$24*Preisliste!$B$7+Preisliste!$I$25*Preisliste!$B$8+Preisliste!$I$26*Preisliste!$B$10)*Preisliste!$B$34) -> 416.00 € | C17: =(A17*(Preisliste!$I$22*Preisliste!$C$5+Preisliste!$I$23*Preisliste!$C$6+Preisliste!$I$24*Preisliste!$C$7+Preisliste!$I$25*Preisliste!$C$8+Preisliste!$I$26*Preisliste!$C$10)*Preisliste!$C$34+Preisliste!$C$13*12) -> 420.00 € | D17: =(A17*(Preisliste!$I$22*Preisliste!$D$5+Preisliste!$I$23*Preisliste!$D$6+Preisliste!$I$24*Preisliste!$D$7+Preisliste!$I$25*Preisliste!$D$8+Preisliste!$I$26*Preisliste!$D$10)*Preisliste!$D$34+Preisliste!$D$13*12) -> 676.00 € | E17: =(A17*(Preisliste!$I$22*Preisliste!$E$5+Preisliste!$I$23*Preisliste!$E$6+Preisliste!$I$24*Preisliste!$E$7+Preisliste!$I$25*Preisliste!$E$8+Preisliste!$I$26*Preisliste!$E$10)*Preisliste!$E$34+Preisliste!$E$13*12) -> 1,093.60 €
A18: 140 | B18: =A18*((Preisliste!$I$22*Preisliste!$B$5+Preisliste!$I$23*Preisliste!$B$6+Preisliste!$I$24*Preisliste!$B$7+Preisliste!$I$25*Preisliste!$B$8+Preisliste!$I$26*Preisliste!$B$10)*Preisliste!$B$34) -> 448.00 € | C18: =(A18*(Preisliste!$I$22*Preisliste!$C$5+Preisliste!$I$23*Preisliste!$C$6+Preisliste!$I$24*Preisliste!$C$7+Preisliste!$I$25*Preisliste!$C$8+Preisliste!$I$26*Preisliste!$C$10)*Preisliste!$C$34+Preisliste!$C$13*12) -> 444.00 € | D18: =(A18*(Preisliste!$I$22*Preisliste!$D$5+Preisliste!$I$23*Preisliste!$D$6+Preisliste!$I$24*Preisliste!$D$7+Preisliste!$I$25*Preisliste!$D$8+Preisliste!$I$26*Preisliste!$D$10)*Preisliste!$D$34+Preisliste!$D$13*12) -> 692.00 € | E18: =(A18*(Preisliste!$I$22*Preisliste!$E$5+Preisliste!$I$23*Preisliste!$E$6+Preisliste!$I$24*Preisliste!$E$7+Preisliste!$I$25*Preisliste!$E$8+Preisliste!$I$26*Preisliste!$E$10)*Preisliste!$E$34+Preisliste!$E$13*12) -> 1,104.80 €
A19: 150 | B19: =A19*((Preisliste!$I$22*Preisliste!$B$5+Preisliste!$I$23*Preisliste!$B$6+Preisliste!$I$24*Preisliste!$B$7+Preisliste!$I$25*Preisliste!$B$8+Preisliste!$I$26*Preisliste!$B$10)*Preisliste!$B$34) -> 480.00 € | C19: =(A19*(Preisliste!$I$22*Preisliste!$C$5+Preisliste!$I$23*Preisliste!$C$6+Preisliste!$I$24*Preisliste!$C$7+Preisliste!$I$25*Preisliste!$C$8+Preisliste!$I$26*Preisliste!$C$10)*Preisliste!$C$34+Preisliste!$C$13*12) -> 468.00 € | D19: =(A19*(Preisliste!$I$22*Preisliste!$D$5+Preisliste!$I$23*Preisliste!$D$6+Preisliste!$I$24*Preisliste!$D$7+Preisliste!$I$25*Preisliste!$D$8+Preisliste!$I$26*Preisliste!$D$10)*Preisliste!$D$34+Preisliste!$D$13*12) -> 708.00 € | E19: =(A19*(Preisliste!$I$22*Preisliste!$E$5+Preisliste!$I$23*Preisliste!$E$6+Preisliste!$I$24*Preisliste!$E$7+Preisliste!$I$25*Preisliste!$E$8+Preisliste!$I$26*Preisliste!$E$10)*Preisliste!$E$34+Preisliste!$E$13*12) -> 1,116.00 €
A20: 160 | B20: =A20*((Preisliste!$I$22*Preisliste!$B$5+Preisliste!$I$23*Preisliste!$B$6+Preisliste!$I$24*Preisliste!$B$7+Preisliste!$I$25*Preisliste!$B$8+Preisliste!$I$26*Preisliste!$B$10)*Preisliste!$B$34) -> 512.00 € | C20: =(A20*(Preisliste!$I$22*Preisliste!$C$5+Preisliste!$I$23*Preisliste!$C$6+Preisliste!$I$24*Preisliste!$C$7+Preisliste!$I$25*Preisliste!$C$8+Preisliste!$I$26*Preisliste!$C$10)*Preisliste!$C$34+Preisliste!$C$13*12) -> 492.00 € | D20: =(A20*(Preisliste!$I$22*Preisliste!$D$5+Preisliste!$I$23*Preisliste!$D$6+Preisliste!$I$24*Preisliste!$D$7+Preisliste!$I$25*Preisliste!$D$8+Preisliste!$I$26*Preisliste!$D$10)*Preisliste!$D$34+Preisliste!$D$13*12) -> 724.00 € | E20: =(A20*(Preisliste!$I$22*Preisliste!$E$5+Preisliste!$I$23*Preisliste!$E$6+Preisliste!$I$24*Preisliste!$E$7+Preisliste!$I$25*Preisliste!$E$8+Preisliste!$I$26*Preisliste!$E$10)*Preisliste!$E$34+Preisliste!$E$13*12) -> 1,127.20 €
A21: 170 | B21: =A21*((Preisliste!$I$22*Preisliste!$B$5+Preisliste!$I$23*Preisliste!$B$6+Preisliste!$I$24*Preisliste!$B$7+Preisliste!$I$25*Preisliste!$B$8+Preisliste!$I$26*Preisliste!$B$10)*Preisliste!$B$34) -> 544.00 € | C21: =(A21*(Preisliste!$I$22*Preisliste!$C$5+Preisliste!$I$23*Preisliste!$C$6+Preisliste!$I$24*Preisliste!$C$7+Preisliste!$I$25*Preisliste!$C$8+Preisliste!$I$26*Preisliste!$C$10)*Preisliste!$C$34+Preisliste!$C$13*12) -> 516.00 € | D21: =(A21*(Preisliste!$I$22*Preisliste!$D$5+Preisliste!$I$23*Preisliste!$D$6+Preisliste!$I$24*Preisliste!$D$7+Preisliste!$I$25*Preisliste!$D$8+Preisliste!$I$26*Preisliste!$D$10)*Preisliste!$D$34+Preisliste!$D$13*12) -> 740.00 € | E21: =(A21*(Preisliste!$I$22*Preisliste!$E$5+Preisliste!$I$23*Preisliste!$E$6+Preisliste!$I$24*Preisliste!$E$7+Preisliste!$I$25*Preisliste!$E$8+Preisliste!$I$26*Preisliste!$E$10)*Preisliste!$E$34+Preisliste!$E$13*12) -> 1,138.40 €
A22: 180 | B22: =A22*((Preisliste!$I$22*Preisliste!$B$5+Preisliste!$I$23*Preisliste!$B$6+Preisliste!$I$24*Preisliste!$B$7+Preisliste!$I$25*Preisliste!$B$8+Preisliste!$I$26*Preisliste!$B$10)*Preisliste!$B$34) -> 576.00 € | C22: =(A22*(Preisliste!$I$22*Preisliste!$C$5+Preisliste!$I$23*Preisliste!$C$6+Preisliste!$I$24*Preisliste!$C$7+Preisliste!$I$25*Preisliste!$C$8+Preisliste!$I$26*Preisliste!$C$10)*Preisliste!$C$34+Preisliste!$C$13*12) -> 540.00 € | D22: =(A22*(Preisliste!$I$22*Preisliste!$D$5+Preisliste!$I$23*Preisliste!$D$6+Preisliste!$I$24*Preisliste!$D$7+Preisliste!$I$25*Preisliste!$D$8+Preisliste!$I$26*Preisliste!$D$10)*Preisliste!$D$34+Preisliste!$D$13*12) -> 756.00 € | E22: =(A22*(Preisliste!$I$22*Preisliste!$E$5+Preisliste!$I$23*Preisliste!$E$6+Preisliste!$I$24*Preisliste!$E$7+Preisliste!$I$25*Preisliste!$E$8+Preisliste!$I$26*Preisliste!$E$10)*Preisliste!$E$34+Preisliste!$E$13*12) -> 1,149.60 €
A23: 190 | B23: =A23*((Preisliste!$I$22*Preisliste!$B$5+Preisliste!$I$23*Preisliste!$B$6+Preisliste!$I$24*Preisliste!$B$7+Preisliste!$I$25*Preisliste!$B$8+Preisliste!$I$26*Preisliste!$B$10)*Preisliste!$B$34) -> 608.00 € | C23: =(A23*(Preisliste!$I$22*Preisliste!$C$5+Preisliste!$I$23*Preisliste!$C$6+Preisliste!$I$24*Preisliste!$C$7+Preisliste!$I$25*Preisliste!$C$8+Preisliste!$I$26*Preisliste!$C$10)*Preisliste!$C$34+Preisliste!$C$13*12) -> 564.00 € | D23: =(A23*(Preisliste!$I$22*Preisliste!$D$5+Preisliste!$I$23*Preisliste!$D$6+Preisliste!$I$24*Preisliste!$D$7+Preisliste!$I$25*Preisliste!$D$8+Preisliste!$I$26*Preisliste!$D$10)*Preisliste!$D$34+Preisliste!$D$13*12) -> 772.00 € | E23: =(A23*(Preisliste!$I$22*Preisliste!$E$5+Preisliste!$I$23*Preisliste!$E$6+Preisliste!$I$24*Preisliste!$E$7+Preisliste!$I$25*Preisliste!$E$8+Preisliste!$I$26*Preisliste!$E$10)*Preisliste!$E$34+Preisliste!$E$13*12) -> 1,160.80 €
A24: 200 | B24: =A24*((Preisliste!$I$22*Preisliste!$B$5+Preisliste!$I$23*Preisliste!$B$6+Preisliste!$I$24*Preisliste!$B$7+Preisliste!$I$25*Preisliste!$B$8+Preisliste!$I$26*Preisliste!$B$10)*Preisliste!$B$34) -> 640.00 € | C24: =(A24*(Preisliste!$I$22*Preisliste!$C$5+Preisliste!$I$23*Preisliste!$C$6+Preisliste!$I$24*Preisliste!$C$7+Preisliste!$I$25*Preisliste!$C$8+Preisliste!$I$26*Preisliste!$C$10)*Preisliste!$C$34+Preisliste!$C$13*12) -> 588.00 € | D24: =(A24*(Preisliste!$I$22*Preisliste!$D$5+Preisliste!$I$23*Preisliste!$D$6+Preisliste!$I$24*Preisliste!$D$7+Preisliste!$I$25*Preisliste!$D$8+Preisliste!$I$26*Preisliste!$D$10)*Preisliste!$D$34+Preisliste!$D$13*12) -> 788.00 € | E24: =(A24*(Preisliste!$I$22*Preisliste!$E$5+Preisliste!$I$23*Preisliste!$E$6+Preisliste!$I$24*Preisliste!$E$7+Preisliste!$I$25*Preisliste!$E$8+Preisliste!$I$26*Preisliste!$E$10)*Preisliste!$E$34+Preisliste!$E$13*12) -> 1,172.00 €
A25: 210 | B25: =A25*((Preisliste!$I$22*Preisliste!$B$5+Preisliste!$I$23*Preisliste!$B$6+Preisliste!$I$24*Preisliste!$B$7+Preisliste!$I$25*Preisliste!$B$8+Preisliste!$I$26*Preisliste!$B$10)*Preisliste!$B$34) -> 672.00 € | C25: =(A25*(Preisliste!$I$22*Preisliste!$C$5+Preisliste!$I$23*Preisliste!$C$6+Preisliste!$I$24*Preisliste!$C$7+Preisliste!$I$25*Preisliste!$C$8+Preisliste!$I$26*Preisliste!$C$10)*Preisliste!$C$34+Preisliste!$C$13*12) -> 612.00 € | D25: =(A25*(Preisliste!$I$22*Preisliste!$D$5+Preisliste!$I$23*Preisliste!$D$6+Preisliste!$I$24*Preisliste!$D$7+Preisliste!$I$25*Preisliste!$D$8+Preisliste!$I$26*Preisliste!$D$10)*Preisliste!$D$34+Preisliste!$D$13*12) -> 804.00 € | E25: =(A25*(Preisliste!$I$22*Preisliste!$E$5+Preisliste!$I$23*Preisliste!$E$6+Preisliste!$I$24*Preisliste!$E$7+Preisliste!$I$25*Preisliste!$E$8+Preisliste!$I$26*Preisliste!$E$10)*Preisliste!$E$34+Preisliste!$E$13*12) -> 1,183.20 €
A26: 220 | B26: =A26*((Preisliste!$I$22*Preisliste!$B$5+Preisliste!$I$23*Preisliste!$B$6+Preisliste!$I$24*Preisliste!$B$7+Preisliste!$I$25*Preisliste!$B$8+Preisliste!$I$26*Preisliste!$B$10)*Preisliste!$B$34) -> 704.00 € | C26: =(A26*(Preisliste!$I$22*Preisliste!$C$5+Preisliste!$I$23*Preisliste!$C$6+Preisliste!$I$24*Preisliste!$C$7+Preisliste!$I$25*Preisliste!$C$8+Preisliste!$I$26*Preisliste!$C$10)*Preisliste!$C$34+Preisliste!$C$13*12) -> 636.00 € | D26: =(A26*(Preisliste!$I$22*Preisliste!$D$5+Preisliste!$I$23*Preisliste!$D$6+Preisliste!$I$24*Preisliste!$D$7+Preisliste!$I$25*Preisliste!$D$8+Preisliste!$I$26*Preisliste!$D$10)*Preisliste!$D$34+Preisliste!$D$13*12) -> 820.00 € | E26: =(A26*(Preisliste!$I$22*Preisliste!$E$5+Preisliste!$I$23*Preisliste!$E$6+Preisliste!$I$24*Preisliste!$E$7+Preisliste!$I$25*Preisliste!$E$8+Preisliste!$I$26*Preisliste!$E$10)*Preisliste!$E$34+Preisliste!$E$13*12) -> 1,194.40 €
A27: 230 | B27: =A27*((Preisliste!$I$22*Preisliste!$B$5+Preisliste!$I$23*Preisliste!$B$6+Preisliste!$I$24*Preisliste!$B$7+Preisliste!$I$25*Preisliste!$B$8+Preisliste!$I$26*Preisliste!$B$10)*Preisliste!$B$34) -> 736.00 € | C27: =(A27*(Preisliste!$I$22*Preisliste!$C$5+Preisliste!$I$23*Preisliste!$C$6+Preisliste!$I$24*Preisliste!$C$7+Preisliste!$I$25*Preisliste!$C$8+Preisliste!$I$26*Preisliste!$C$10)*Preisliste!$C$34+Preisliste!$C$13*12) -> 660.00 € | D27: =(A27*(Preisliste!$I$22*Preisliste!$D$5+Preisliste!$I$23*Preisliste!$D$6+Preisliste!$I$24*Preisliste!$D$7+Preisliste!$I$25*Preisliste!$D$8+Preisliste!$I$26*Preisliste!$D$10)*Preisliste!$D$34+Preisliste!$D$13*12) -> 836.00 € | E27: =(A27*(Preisliste!$I$22*Preisliste!$E$5+Preisliste!$I$23*Preisliste!$E$6+Preisliste!$I$24*Preisliste!$E$7+Preisliste!$I$25*Preisliste!$E$8+Preisliste!$I$26*Preisliste!$E$10)*Preisliste!$E$34+Preisliste!$E$13*12) -> 1,205.60 €
A28: 240 | B28: =A28*((Preisliste!$I$22*Preisliste!$B$5+Preisliste!$I$23*Preisliste!$B$6+Preisliste!$I$24*Preisliste!$B$7+Preisliste!$I$25*Preisliste!$B$8+Preisliste!$I$26*Preisliste!$B$10)*Preisliste!$B$34) -> 768.00 € | C28: =(A28*(Preisliste!$I$22*Preisliste!$C$5+Preisliste!$I$23*Preisliste!$C$6+Preisliste!$I$24*Preisliste!$C$7+Preisliste!$I$25*Preisliste!$C$8+Preisliste!$I$26*Preisliste!$C$10)*Preisliste!$C$34+Preisliste!$C$13*12) -> 684.00 € | D28: =(A28*(Preisliste!$I$22*Preisliste!$D$5+Preisliste!$I$23*Preisliste!$D$6+Preisliste!$I$24*Preisliste!$D$7+Preisliste!$I$25*Preisliste!$D$8+Preisliste!$I$26*Preisliste!$D$10)*Preisliste!$D$34+Preisliste!$D$13*12) -> 852.00 € | E28: =(A28*(Preisliste!$I$22*Preisliste!$E$5+Preisliste!$I$23*Preisliste!$E$6+Preisliste!$I$24*Preisliste!$E$7+Preisliste!$I$25*Preisliste!$E$8+Preisliste!$I$26*Preisliste!$E$10)*Preisliste!$E$34+Preisliste!$E$13*12) -> 1,216.80 €
A29: 250 | B29: =A29*((Preisliste!$I$22*Preisliste!$B$5+Preisliste!$I$23*Preisliste!$B$6+Preisliste!$I$24*Preisliste!$B$7+Preisliste!$I$25*Preisliste!$B$8+Preisliste!$I$26*Preisliste!$B$10)*Preisliste!$B$34) -> 800.00 € | C29: =(A29*(Preisliste!$I$22*Preisliste!$C$5+Preisliste!$I$23*Preisliste!$C$6+Preisliste!$I$24*Preisliste!$C$7+Preisliste!$I$25*Preisliste!$C$8+Preisliste!$I$26*Preisliste!$C$10)*Preisliste!$C$34+Preisliste!$C$13*12) -> 708.00 € | D29: =(A29*(Preisliste!$I$22*Preisliste!$D$5+Preisliste!$I$23*Preisliste!$D$6+Preisliste!$I$24*Preisliste!$D$7+Preisliste!$I$25*Preisliste!$D$8+Preisliste!$I$26*Preisliste!$D$10)*Preisliste!$D$34+Preisliste!$D$13*12) -> 868.00 € | E29: =(A29*(Preisliste!$I$22*Preisliste!$E$5+Preisliste!$I$23*Preisliste!$E$6+Preisliste!$I$24*Preisliste!$E$7+Preisliste!$I$25*Preisliste!$E$8+Preisliste!$I$26*Preisliste!$E$10)*Preisliste!$E$34+Preisliste!$E$13*12) -> 1,228.00 €
A30: 260 | B30: =A30*((Preisliste!$I$22*Preisliste!$B$5+Preisliste!$I$23*Preisliste!$B$6+Preisliste!$I$24*Preisliste!$B$7+Preisliste!$I$25*Preisliste!$B$8+Preisliste!$I$26*Preisliste!$B$10)*Preisliste!$B$34) -> 832.00 € | C30: =(A30*(Preisliste!$I$22*Preisliste!$C$5+Preisliste!$I$23*Preisliste!$C$6+Preisliste!$I$24*Preisliste!$C$7+Preisliste!$I$25*Preisliste!$C$8+Preisliste!$I$26*Preisliste!$C$10)*Preisliste!$C$34+Preisliste!$C$13*12) -> 732.00 € | D30: =(A30*(Preisliste!$I$22*Preisliste!$D$5+Preisliste!$I$23*Preisliste!$D$6+Preisliste!$I$24*Preisliste!$D$7+Preisliste!$I$25*Preisliste!$D$8+Preisliste!$I$26*Preisliste!$D$10)*Preisliste!$D$34+Preisliste!$D$13*12) -> 884.00 € | E30: =(A30*(Preisliste!$I$22*Preisliste!$E$5+Preisliste!$I$23*Preisliste!$E$6+Preisliste!$I$24*Preisliste!$E$7+Preisliste!$I$25*Preisliste!$E$8+Preisliste!$I$26*Preisliste!$E$10)*Preisliste!$E$34+Preisliste!$E$13*12) -> 1,239.20 €
A31: 270 | B31: =A31*((Preisliste!$I$22*Preisliste!$B$5+Preisliste!$I$23*Preisliste!$B$6+Preisliste!$I$24*Preisliste!$B$7+Preisliste!$I$25*Preisliste!$B$8+Preisliste!$I$26*Preisliste!$B$10)*Preisliste!$B$34) -> 864.00 € | C31: =(A31*(Preisliste!$I$22*Preisliste!$C$5+Preisliste!$I$23*Preisliste!$C$6+Preisliste!$I$24*Preisliste!$C$7+Preisliste!$I$25*Preisliste!$C$8+Preisliste!$I$26*Preisliste!$C$10)*Preisliste!$C$34+Preisliste!$C$13*12) -> 756.00 € | D31: =(A31*(Preisliste!$I$22*Preisliste!$D$5+Preisliste!$I$23*Preisliste!$D$6+Preisliste!$I$24*Preisliste!$D$7+Preisliste!$I$25*Preisliste!$D$8+Preisliste!$I$26*Preisliste!$D$10)*Preisliste!$D$34+Preisliste!$D$13*12) -> 900.00 € | E31: =(A31*(Preisliste!$I$22*Preisliste!$E$5+Preisliste!$I$23*Preisliste!$E$6+Preisliste!$I$24*Preisliste!$E$7+Preisliste!$I$25*Preisliste!$E$8+Preisliste!$I$26*Preisliste!$E$10)*Preisliste!$E$34+Preisliste!$E$13*12) -> 1,250.40 €
A32: 280 | B32: =A32*((Preisliste!$I$22*Preisliste!$B$5+Preisliste!$I$23*Preisliste!$B$6+Preisliste!$I$24*Preisliste!$B$7+Preisliste!$I$25*Preisliste!$B$8+Preisliste!$I$26*Preisliste!$B$10)*Preisliste!$B$34) -> 896.00 € | C32: =(A32*(Preisliste!$I$22*Preisliste!$C$5+Preisliste!$I$23*Preisliste!$C$6+Preisliste!$I$24*Preisliste!$C$7+Preisliste!$I$25*Preisliste!$C$8+Preisliste!$I$26*Preisliste!$C$10)*Preisliste!$C$34+Preisliste!$C$13*12) -> 780.00 € | D32: =(A32*(Preisliste!$I$22*Preisliste!$D$5+Preisliste!$I$23*Preisliste!$D$6+Preisliste!$I$24*Preisliste!$D$7+Preisliste!$I$25*Preisliste!$D$8+Preisliste!$I$26*Preisliste!$D$10)*Preisliste!$D$34+Preisliste!$D$13*12) -> 916.00 € | E32: =(A32*(Preisliste!$I$22*Preisliste!$E$5+Preisliste!$I$23*Preisliste!$E$6+Preisliste!$I$24*Preisliste!$E$7+Preisliste!$I$25*Preisliste!$E$8+Preisliste!$I$26*Preisliste!$E$10)*Preisliste!$E$34+Preisliste!$E$13*12) -> 1,261.60 €
A33: 290 | B33: =A33*((Preisliste!$I$22*Preisliste!$B$5+Preisliste!$I$23*Preisliste!$B$6+Preisliste!$I$24*Preisliste!$B$7+Preisliste!$I$25*Preisliste!$B$8+Preisliste!$I$26*Preisliste!$B$10)*Preisliste!$B$34) -> 928.00 € | C33: =(A33*(Preisliste!$I$22*Preisliste!$C$5+Preisliste!$I$23*Preisliste!$C$6+Preisliste!$I$24*Preisliste!$C$7+Preisliste!$I$25*Preisliste!$C$8+Preisliste!$I$26*Preisliste!$C$10)*Preisliste!$C$34+Preisliste!$C$13*12) -> 804.00 € | D33: =(A33*(Preisliste!$I$22*Preisliste!$D$5+Preisliste!$I$23*Preisliste!$D$6+Preisliste!$I$24*Preisliste!$D$7+Preisliste!$I$25*Preisliste!$D$8+Preisliste!$I$26*Preisliste!$D$10)*Preisliste!$D$34+Preisliste!$D$13*12) -> 932.00 € | E33: =(A33*(Preisliste!$I$22*Preisliste!$E$5+Preisliste!$I$23*Preisliste!$E$6+Preisliste!$I$24*Preisliste!$E$7+Preisliste!$I$25*Preisliste!$E$8+Preisliste!$I$26*Preisliste!$E$10)*Preisliste!$E$34+Preisliste!$E$13*12) -> 1,272.80 €
A34: 300 | B34: =A34*((Preisliste!$I$22*Preisliste!$B$5+Preisliste!$I$23*Preisliste!$B$6+Preisliste!$I$24*Preisliste!$B$7+Preisliste!$I$25*Preisliste!$B$8+Preisliste!$I$26*Preisliste!$B$10)*Preisliste!$B$34) -> 960.00 € | C34: =(A34*(Preisliste!$I$22*Preisliste!$C$5+Preisliste!$I$23*Preisliste!$C$6+Preisliste!$I$24*Preisliste!$C$7+Preisliste!$I$25*Preisliste!$C$8+Preisliste!$I$26*Preisliste!$C$10)*Preisliste!$C$34+Preisliste!$C$13*12) -> 828.00 € | D34: =(A34*(Preisliste!$I$22*Preisliste!$D$5+Preisliste!$I$23*Preisliste!$D$6+Preisliste!$I$24*Preisliste!$D$7+Preisliste!$I$25*Preisliste!$D$8+Preisliste!$I$26*Preisliste!$D$10)*Preisliste!$D$34+Preisliste!$D$13*12) -> 948.00 € | E34: =(A34*(Preisliste!$I$22*Preisliste!$E$5+Preisliste!$I$23*Preisliste!$E$6+Preisliste!$I$24*Preisliste!$E$7+Preisliste!$I$25*Preisliste!$E$8+Preisliste!$I$26*Preisliste!$E$10)*Preisliste!$E$34+Preisliste!$E$13*12) -> 1,284.00 €
A35: 310 | B35: =A35*((Preisliste!$I$22*Preisliste!$B$5+Preisliste!$I$23*Preisliste!$B$6+Preisliste!$I$24*Preisliste!$B$7+Preisliste!$I$25*Preisliste!$B$8+Preisliste!$I$26*Preisliste!$B$10)*Preisliste!$B$34) -> 992.00 € | C35: =(A35*(Preisliste!$I$22*Preisliste!$C$5+Preisliste!$I$23*Preisliste!$C$6+Preisliste!$I$24*Preisliste!$C$7+Preisliste!$I$25*Preisliste!$C$8+Preisliste!$I$26*Preisliste!$C$10)*Preisliste!$C$34+Preisliste!$C$13*12) -> 852.00 € | D35: =(A35*(Preisliste!$I$22*Preisliste!$D$5+Preisliste!$I$23*Preisliste!$D$6+Preisliste!$I$24*Preisliste!$D$7+Preisliste!$I$25*Preisliste!$D$8+Preisliste!$I$26*Preisliste!$D$10)*Preisliste!$D$34+Preisliste!$D$13*12) -> 964.00 € | E35: =(A35*(Preisliste!$I$22*Preisliste!$E$5+Preisliste!$I$23*Preisliste!$E$6+Preisliste!$I$24*Preisliste!$E$7+Preisliste!$I$25*Preisliste!$E$8+Preisliste!$I$26*Preisliste!$E$10)*Preisliste!$E$34+Preisliste!$E$13*12) -> 1,295.20 €
A36: 320 | B36: =A36*((Preisliste!$I$22*Preisliste!$B$5+Preisliste!$I$23*Preisliste!$B$6+Preisliste!$I$24*Preisliste!$B$7+Preisliste!$I$25*Preisliste!$B$8+Preisliste!$I$26*Preisliste!$B$10)*Preisliste!$B$34) -> 1,024.00 € | C36: =(A36*(Preisliste!$I$22*Preisliste!$C$5+Preisliste!$I$23*Preisliste!$C$6+Preisliste!$I$24*Preisliste!$C$7+Preisliste!$I$25*Preisliste!$C$8+Preisliste!$I$26*Preisliste!$C$10)*Preisliste!$C$34+Preisliste!$C$13*12) -> 876.00 € | D36: =(A36*(Preisliste!$I$22*Preisliste!$D$5+Preisliste!$I$23*Preisliste!$D$6+Preisliste!$I$24*Preisliste!$D$7+Preisliste!$I$25*Preisliste!$D$8+Preisliste!$I$26*Preisliste!$D$10)*Preisliste!$D$34+Preisliste!$D$13*12) -> 980.00 € | E36: =(A36*(Preisliste!$I$22*Preisliste!$E$5+Preisliste!$I$23*Preisliste!$E$6+Preisliste!$I$24*Preisliste!$E$7+Preisliste!$I$25*Preisliste!$E$8+Preisliste!$I$26*Preisliste!$E$10)*Preisliste!$E$34+Preisliste!$E$13*12) -> 1,306.40 €
A37: 330 | B37: =A37*((Preisliste!$I$22*Preisliste!$B$5+Preisliste!$I$23*Preisliste!$B$6+Preisliste!$I$24*Preisliste!$B$7+Preisliste!$I$25*Preisliste!$B$8+Preisliste!$I$26*Preisliste!$B$10)*Preisliste!$B$34) -> 1,056.00 € | C37: =(A37*(Preisliste!$I$22*Preisliste!$C$5+Preisliste!$I$23*Preisliste!$C$6+Preisliste!$I$24*Preisliste!$C$7+Preisliste!$I$25*Preisliste!$C$8+Preisliste!$I$26*Preisliste!$C$10)*Preisliste!$C$34+Preisliste!$C$13*12) -> 900.00 € | D37: =(A37*(Preisliste!$I$22*Preisliste!$D$5+Preisliste!$I$23*Preisliste!$D$6+Preisliste!$I$24*Preisliste!$D$7+Preisliste!$I$25*Preisliste!$D$8+Preisliste!$I$26*Preisliste!$D$10)*Preisliste!$D$34+Preisliste!$D$13*12) -> 996.00 € | E37: =(A37*(Preisliste!$I$22*Preisliste!$E$5+Preisliste!$I$23*Preisliste!$E$6+Preisliste!$I$24*Preisliste!$E$7+Preisliste!$I$25*Preisliste!$E$8+Preisliste!$I$26*Preisliste!$E$10)*Preisliste!$E$34+Preisliste!$E$13*12) -> 1,317.60 €
A38: 340 | B38: =A38*((Preisliste!$I$22*Preisliste!$B$5+Preisliste!$I$23*Preisliste!$B$6+Preisliste!$I$24*Preisliste!$B$7+Preisliste!$I$25*Preisliste!$B$8+Preisliste!$I$26*Preisliste!$B$10)*Preisliste!$B$34) -> 1,088.00 € | C38: =(A38*(Preisliste!$I$22*Preisliste!$C$5+Preisliste!$I$23*Preisliste!$C$6+Preisliste!$I$24*Preisliste!$C$7+Preisliste!$I$25*Preisliste!$C$8+Preisliste!$I$26*Preisliste!$C$10)*Preisliste!$C$34+Preisliste!$C$13*12) -> 924.00 € | D38: =(A38*(Preisliste!$I$22*Preisliste!$D$5+Preisliste!$I$23*Preisliste!$D$6+Preisliste!$I$24*Preisliste!$D$7+Preisliste!$I$25*Preisliste!$D$8+Preisliste!$I$26*Preisliste!$D$10)*Preisliste!$D$34+Preisliste!$D$13*12) -> 1,012.00 € | E38: =(A38*(Preisliste!$I$22*Preisliste!$E$5+Preisliste!$I$23*Preisliste!$E$6+Preisliste!$I$24*Preisliste!$E$7+Preisliste!$I$25*Preisliste!$E$8+Preisliste!$I$26*Preisliste!$E$10)*Preisliste!$E$34+Preisliste!$E$13*12) -> 1,328.80 €
A39: 350 | B39: =A39*((Preisliste!$I$22*Preisliste!$B$5+Preisliste!$I$23*Preisliste!$B$6+Preisliste!$I$24*Preisliste!$B$7+Preisliste!$I$25*Preisliste!$B$8+Preisliste!$I$26*Preisliste!$B$10)*Preisliste!$B$34) -> 1,120.00 € | C39: =(A39*(Preisliste!$I$22*Preisliste!$C$5+Preisliste!$I$23*Preisliste!$C$6+Preisliste!$I$24*Preisliste!$C$7+Preisliste!$I$25*Preisliste!$C$8+Preisliste!$I$26*Preisliste!$C$10)*Preisliste!$C$34+Preisliste!$C$13*12) -> 948.00 € | D39: =(A39*(Preisliste!$I$22*Preisliste!$D$5+Preisliste!$I$23*Preisliste!$D$6+Preisliste!$I$24*Preisliste!$D$7+Preisliste!$I$25*Preisliste!$D$8+Preisliste!$I$26*Preisliste!$D$10)*Preisliste!$D$34+Preisliste!$D$13*12) -> 1,028.00 € | E39: =(A39*(Preisliste!$I$22*Preisliste!$E$5+Preisliste!$I$23*Preisliste!$E$6+Preisliste!$I$24*Preisliste!$E$7+Preisliste!$I$25*Preisliste!$E$8+Preisliste!$I$26*Preisliste!$E$10)*Preisliste!$E$34+Preisliste!$E$13*12) -> 1,340.00 €
A40: 360 | B40: =A40*((Preisliste!$I$22*Preisliste!$B$5+Preisliste!$I$23*Preisliste!$B$6+Preisliste!$I$24*Preisliste!$B$7+Preisliste!$I$25*Preisliste!$B$8+Preisliste!$I$26*Preisliste!$B$10)*Preisliste!$B$34) -> 1,152.00 € | C40: =(A40*(Preisliste!$I$22*Preisliste!$C$5+Preisliste!$I$23*Preisliste!$C$6+Preisliste!$I$24*Preisliste!$C$7+Preisliste!$I$25*Preisliste!$C$8+Preisliste!$I$26*Preisliste!$C$10)*Preisliste!$C$34+Preisliste!$C$13*12) -> 972.00 € | D40: =(A40*(Preisliste!$I$22*Preisliste!$D$5+Preisliste!$I$23*Preisliste!$D$6+Preisliste!$I$24*Preisliste!$D$7+Preisliste!$I$25*Preisliste!$D$8+Preisliste!$I$26*Preisliste!$D$10)*Preisliste!$D$34+Preisliste!$D$13*12) -> 1,044.00 € | E40: =(A40*(Preisliste!$I$22*Preisliste!$E$5+Preisliste!$I$23*Preisliste!$E$6+Preisliste!$I$24*Preisliste!$E$7+Preisliste!$I$25*Preisliste!$E$8+Preisliste!$I$26*Preisliste!$E$10)*Preisliste!$E$34+Preisliste!$E$13*12) -> 1,351.20 €
A41: 370 | B41: =A41*((Preisliste!$I$22*Preisliste!$B$5+Preisliste!$I$23*Preisliste!$B$6+Preisliste!$I$24*Preisliste!$B$7+Preisliste!$I$25*Preisliste!$B$8+Preisliste!$I$26*Preisliste!$B$10)*Preisliste!$B$34) -> 1,184.00 € | C41: =(A41*(Preisliste!$I$22*Preisliste!$C$5+Preisliste!$I$23*Preisliste!$C$6+Preisliste!$I$24*Preisliste!$C$7+Preisliste!$I$25*Preisliste!$C$8+Preisliste!$I$26*Preisliste!$C$10)*Preisliste!$C$34+Preisliste!$C$13*12) -> 996.00 € | D41: =(A41*(Preisliste!$I$22*Preisliste!$D$5+Preisliste!$I$23*Preisliste!$D$6+Preisliste!$I$24*Preisliste!$D$7+Preisliste!$I$25*Preisliste!$D$8+Preisliste!$I$26*Preisliste!$D$10)*Preisliste!$D$34+Preisliste!$D$13*12) -> 1,060.00 € | E41: =(A41*(Preisliste!$I$22*Preisliste!$E$5+Preisliste!$I$23*Preisliste!$E$6+Preisliste!$I$24*Preisliste!$E$7+Preisliste!$I$25*Preisliste!$E$8+Preisliste!$I$26*Preisliste!$E$10)*Preisliste!$E$34+Preisliste!$E$13*12) -> 1,362.40 €
A42: 380 | B42: =A42*((Preisliste!$I$22*Preisliste!$B$5+Preisliste!$I$23*Preisliste!$B$6+Preisliste!$I$24*Preisliste!$B$7+Preisliste!$I$25*Preisliste!$B$8+Preisliste!$I$26*Preisliste!$B$10)*Preisliste!$B$34) -> 1,216.00 € | C42: =(A42*(Preisliste!$I$22*Preisliste!$C$5+Preisliste!$I$23*Preisliste!$C$6+Preisliste!$I$24*Preisliste!$C$7+Preisliste!$I$25*Preisliste!$C$8+Preisliste!$I$26*Preisliste!$C$10)*Preisliste!$C$34+Preisliste!$C$13*12) -> 1,020.00 € | D42: =(A42*(Preisliste!$I$22*Preisliste!$D$5+Preisliste!$I$23*Preisliste!$D$6+Preisliste!$I$24*Preisliste!$D$7+Preisliste!$I$25*Preisliste!$D$8+Preisliste!$I$26*Preisliste!$D$10)*Preisliste!$D$34+Preisliste!$D$13*12) -> 1,076.00 € | E42: =(A42*(Preisliste!$I$22*Preisliste!$E$5+Preisliste!$I$23*Preisliste!$E$6+Preisliste!$I$24*Preisliste!$E$7+Preisliste!$I$25*Preisliste!$E$8+Preisliste!$I$26*Preisliste!$E$10)*Preisliste!$E$34+Preisliste!$E$13*12) -> 1,373.60 €
A43: 390 | B43: =A43*((Preisliste!$I$22*Preisliste!$B$5+Preisliste!$I$23*Preisliste!$B$6+Preisliste!$I$24*Preisliste!$B$7+Preisliste!$I$25*Preisliste!$B$8+Preisliste!$I$26*Preisliste!$B$10)*Preisliste!$B$34) -> 1,248.00 € | C43: =(A43*(Preisliste!$I$22*Preisliste!$C$5+Preisliste!$I$23*Preisliste!$C$6+Preisliste!$I$24*Preisliste!$C$7+Preisliste!$I$25*Preisliste!$C$8+Preisliste!$I$26*Preisliste!$C$10)*Preisliste!$C$34+Preisliste!$C$13*12) -> 1,044.00 € | D43: =(A43*(Preisliste!$I$22*Preisliste!$D$5+Preisliste!$I$23*Preisliste!$D$6+Preisliste!$I$24*Preisliste!$D$7+Preisliste!$I$25*Preisliste!$D$8+Preisliste!$I$26*Preisliste!$D$10)*Preisliste!$D$34+Preisliste!$D$13*12) -> 1,092.00 € | E43: =(A43*(Preisliste!$I$22*Preisliste!$E$5+Preisliste!$I$23*Preisliste!$E$6+Preisliste!$I$24*Preisliste!$E$7+Preisliste!$I$25*Preisliste!$E$8+Preisliste!$I$26*Preisliste!$E$10)*Preisliste!$E$34+Preisliste!$E$13*12) -> 1,384.80 €
A44: 400 | B44: =A44*((Preisliste!$I$22*Preisliste!$B$5+Preisliste!$I$23*Preisliste!$B$6+Preisliste!$I$24*Preisliste!$B$7+Preisliste!$I$25*Preisliste!$B$8+Preisliste!$I$26*Preisliste!$B$10)*Preisliste!$B$34) -> 1,280.00 € | C44: =(A44*(Preisliste!$I$22*Preisliste!$C$5+Preisliste!$I$23*Preisliste!$C$6+Preisliste!$I$24*Preisliste!$C$7+Preisliste!$I$25*Preisliste!$C$8+Preisliste!$I$26*Preisliste!$C$10)*Preisliste!$C$34+Preisliste!$C$13*12) -> 1,068.00 € | D44: =(A44*(Preisliste!$I$22*Preisliste!$D$5+Preisliste!$I$23*Preisliste!$D$6+Preisliste!$I$24*Preisliste!$D$7+Preisliste!$I$25*Preisliste!$D$8+Preisliste!$I$26*Preisliste!$D$10)*Preisliste!$D$34+Preisliste!$D$13*12) -> 1,108.00 € | E44: =(A44*(Preisliste!$I$22*Preisliste!$E$5+Preisliste!$I$23*Preisliste!$E$6+Preisliste!$I$24*Preisliste!$E$7+Preisliste!$I$25*Preisliste!$E$8+Preisliste!$I$26*Preisliste!$E$10)*Preisliste!$E$34+Preisliste!$E$13*12) -> 1,396.00 €
A45: 410 | B45: =A45*((Preisliste!$I$22*Preisliste!$B$5+Preisliste!$I$23*Preisliste!$B$6+Preisliste!$I$24*Preisliste!$B$7+Preisliste!$I$25*Preisliste!$B$8+Preisliste!$I$26*Preisliste!$B$10)*Preisliste!$B$34) -> 1,312.00 € | C45: =(A45*(Preisliste!$I$22*Preisliste!$C$5+Preisliste!$I$23*Preisliste!$C$6+Preisliste!$I$24*Preisliste!$C$7+Preisliste!$I$25*Preisliste!$C$8+Preisliste!$I$26*Preisliste!$C$10)*Preisliste!$C$34+Preisliste!$C$13*12) -> 1,092.00 € | D45: =(A45*(Preisliste!$I$22*Preisliste!$D$5+Preisliste!$I$23*Preisliste!$D$6+Preisliste!$I$24*Preisliste!$D$7+Preisliste!$I$25*Preisliste!$D$8+Preisliste!$I$26*Preisliste!$D$10)*Preisliste!$D$34+Preisliste!$D$13*12) -> 1,124.00 € | E45: =(A45*(Preisliste!$I$22*Preisliste!$E$5+Preisliste!$I$23*Preisliste!$E$6+Preisliste!$I$24*Preisliste!$E$7+Preisliste!$I$25*Preisliste!$E$8+Preisliste!$I$26*Preisliste!$E$10)*Preisliste!$E$34+Preisliste!$E$13*12) -> 1,407.20 €
A46: 420 | B46: =A46*((Preisliste!$I$22*Preisliste!$B$5+Preisliste!$I$23*Preisliste!$B$6+Preisliste!$I$24*Preisliste!$B$7+Preisliste!$I$25*Preisliste!$B$8+Preisliste!$I$26*Preisliste!$B$10)*Preisliste!$B$34) -> 1,344.00 € | C46: =(A46*(Preisliste!$I$22*Preisliste!$C$5+Preisliste!$I$23*Preisliste!$C$6+Preisliste!$I$24*Preisliste!$C$7+Preisliste!$I$25*Preisliste!$C$8+Preisliste!$I$26*Preisliste!$C$10)*Preisliste!$C$34+Preisliste!$C$13*12) -> 1,116.00 € | D46: =(A46*(Preisliste!$I$22*Preisliste!$D$5+Preisliste!$I$23*Preisliste!$D$6+Preisliste!$I$24*Preisliste!$D$7+Preisliste!$I$25*Preisliste!$D$8+Preisliste!$I$26*Preisliste!$D$10)*Preisliste!$D$34+Preisliste!$D$13*12) -> 1,140.00 € | E46: =(A46*(Preisliste!$I$22*Preisliste!$E$5+Preisliste!$I$23*Preisliste!$E$6+Preisliste!$I$24*Preisliste!$E$7+Preisliste!$I$25*Preisliste!$E$8+Preisliste!$I$26*Preisliste!$E$10)*Preisliste!$E$34+Preisliste!$E$13*12) -> 1,418.40 €
A47: 430 | B47: =A47*((Preisliste!$I$22*Preisliste!$B$5+Preisliste!$I$23*Preisliste!$B$6+Preisliste!$I$24*Preisliste!$B$7+Preisliste!$I$25*Preisliste!$B$8+Preisliste!$I$26*Preisliste!$B$10)*Preisliste!$B$34) -> 1,376.00 € | C47: =(A47*(Preisliste!$I$22*Preisliste!$C$5+Preisliste!$I$23*Preisliste!$C$6+Preisliste!$I$24*Preisliste!$C$7+Preisliste!$I$25*Preisliste!$C$8+Preisliste!$I$26*Preisliste!$C$10)*Preisliste!$C$34+Preisliste!$C$13*12) -> 1,140.00 € | D47: =(A47*(Preisliste!$I$22*Preisliste!$D$5+Preisliste!$I$23*Preisliste!$D$6+Preisliste!$I$24*Preisliste!$D$7+Preisliste!$I$25*Preisliste!$D$8+Preisliste!$I$26*Preisliste!$D$10)*Preisliste!$D$34+Preisliste!$D$13*12) -> 1,156.00 € | E47: =(A47*(Preisliste!$I$22*Preisliste!$E$5+Preisliste!$I$23*Preisliste!$E$6+Preisliste!$I$24*Preisliste!$E$7+Preisliste!$I$25*Preisliste!$E$8+Preisliste!$I$26*Preisliste!$E$10)*Preisliste!$E$34+Preisliste!$E$13*12) -> 1,429.60 €
A48: 440 | B48: =A48*((Preisliste!$I$22*Preisliste!$B$5+Preisliste!$I$23*Preisliste!$B$6+Preisliste!$I$24*Preisliste!$B$7+Preisliste!$I$25*Preisliste!$B$8+Preisliste!$I$26*Preisliste!$B$10)*Preisliste!$B$34) -> 1,408.00 € | C48: =(A48*(Preisliste!$I$22*Preisliste!$C$5+Preisliste!$I$23*Preisliste!$C$6+Preisliste!$I$24*Preisliste!$C$7+Preisliste!$I$25*Preisliste!$C$8+Preisliste!$I$26*Preisliste!$C$10)*Preisliste!$C$34+Preisliste!$C$13*12) -> 1,164.00 € | D48: =(A48*(Preisliste!$I$22*Preisliste!$D$5+Preisliste!$I$23*Preisliste!$D$6+Preisliste!$I$24*Preisliste!$D$7+Preisliste!$I$25*Preisliste!$D$8+Preisliste!$I$26*Preisliste!$D$10)*Preisliste!$D$34+Preisliste!$D$13*12) -> 1,172.00 € | E48: =(A48*(Preisliste!$I$22*Preisliste!$E$5+Preisliste!$I$23*Preisliste!$E$6+Preisliste!$I$24*Preisliste!$E$7+Preisliste!$I$25*Preisliste!$E$8+Preisliste!$I$26*Preisliste!$E$10)*Preisliste!$E$34+Preisliste!$E$13*12) -> 1,440.80 €
A49: 450 | B49: =A49*((Preisliste!$I$22*Preisliste!$B$5+Preisliste!$I$23*Preisliste!$B$6+Preisliste!$I$24*Preisliste!$B$7+Preisliste!$I$25*Preisliste!$B$8+Preisliste!$I$26*Preisliste!$B$10)*Preisliste!$B$34) -> 1,440.00 € | C49: =(A49*(Preisliste!$I$22*Preisliste!$C$5+Preisliste!$I$23*Preisliste!$C$6+Preisliste!$I$24*Preisliste!$C$7+Preisliste!$I$25*Preisliste!$C$8+Preisliste!$I$26*Preisliste!$C$10)*Preisliste!$C$34+Preisliste!$C$13*12) -> 1,188.00 € | D49: =(A49*(Preisliste!$I$22*Preisliste!$D$5+Preisliste!$I$23*Preisliste!$D$6+Preisliste!$I$24*Preisliste!$D$7+Preisliste!$I$25*Preisliste!$D$8+Preisliste!$I$26*Preisliste!$D$10)*Preisliste!$D$34+Preisliste!$D$13*12) -> 1,188.00 € | E49: =(A49*(Preisliste!$I$22*Preisliste!$E$5+Preisliste!$I$23*Preisliste!$E$6+Preisliste!$I$24*Preisliste!$E$7+Preisliste!$I$25*Preisliste!$E$8+Preisliste!$I$26*Preisliste!$E$10)*Preisliste!$E$34+Preisliste!$E$13*12) -> 1,452.00 €
A50: 460 | B50: =A50*((Preisliste!$I$22*Preisliste!$B$5+Preisliste!$I$23*Preisliste!$B$6+Preisliste!$I$24*Preisliste!$B$7+Preisliste!$I$25*Preisliste!$B$8+Preisliste!$I$26*Preisliste!$B$10)*Preisliste!$B$34) -> 1,472.00 € | C50: =(A50*(Preisliste!$I$22*Preisliste!$C$5+Preisliste!$I$23*Preisliste!$C$6+Preisliste!$I$24*Preisliste!$C$7+Preisliste!$I$25*Preisliste!$C$8+Preisliste!$I$26*Preisliste!$C$10)*Preisliste!$C$34+Preisliste!$C$13*12) -> 1,212.00 € | D50: =(A50*(Preisliste!$I$22*Preisliste!$D$5+Preisliste!$I$23*Preisliste!$D$6+Preisliste!$I$24*Preisliste!$D$7+Preisliste!$I$25*Preisliste!$D$8+Preisliste!$I$26*Preisliste!$D$10)*Preisliste!$D$34+Preisliste!$D$13*12) -> 1,204.00 € | E50: =(A50*(Preisliste!$I$22*Preisliste!$E$5+Preisliste!$I$23*Preisliste!$E$6+Preisliste!$I$24*Preisliste!$E$7+Preisliste!$I$25*Preisliste!$E$8+Preisliste!$I$26*Preisliste!$E$10)*Preisliste!$E$34+Preisliste!$E$13*12) -> 1,463.20 €
A51: 470 | B51: =A51*((Preisliste!$I$22*Preisliste!$B$5+Preisliste!$I$23*Preisliste!$B$6+Preisliste!$I$24*Preisliste!$B$7+Preisliste!$I$25*Preisliste!$B$8+Preisliste!$I$26*Preisliste!$B$10)*Preisliste!$B$34) -> 1,504.00 € | C51: =(A51*(Preisliste!$I$22*Preisliste!$C$5+Preisliste!$I$23*Preisliste!$C$6+Preisliste!$I$24*Preisliste!$C$7+Preisliste!$I$25*Preisliste!$C$8+Preisliste!$I$26*Preisliste!$C$10)*Preisliste!$C$34+Preisliste!$C$13*12) -> 1,236.00 € | D51: =(A51*(Preisliste!$I$22*Preisliste!$D$5+Preisliste!$I$23*Preisliste!$D$6+Preisliste!$I$24*Preisliste!$D$7+Preisliste!$I$25*Preisliste!$D$8+Preisliste!$I$26*Preisliste!$D$10)*Preisliste!$D$34+Preisliste!$D$13*12) -> 1,220.00 € | E51: =(A51*(Preisliste!$I$22*Preisliste!$E$5+Preisliste!$I$23*Preisliste!$E$6+Preisliste!$I$24*Preisliste!$E$7+Preisliste!$I$25*Preisliste!$E$8+Preisliste!$I$26*Preisliste!$E$10)*Preisliste!$E$34+Preisliste!$E$13*12) -> 1,474.40 €
A52: 480 | B52: =A52*((Preisliste!$I$22*Preisliste!$B$5+Preisliste!$I$23*Preisliste!$B$6+Preisliste!$I$24*Preisliste!$B$7+Preisliste!$I$25*Preisliste!$B$8+Preisliste!$I$26*Preisliste!$B$10)*Preisliste!$B$34) -> 1,536.00 € | C52: =(A52*(Preisliste!$I$22*Preisliste!$C$5+Preisliste!$I$23*Preisliste!$C$6+Preisliste!$I$24*Preisliste!$C$7+Preisliste!$I$25*Preisliste!$C$8+Preisliste!$I$26*Preisliste!$C$10)*Preisliste!$C$34+Preisliste!$C$13*12) -> 1,260.00 € | D52: =(A52*(Preisliste!$I$22*Preisliste!$D$5+Preisliste!$I$23*Preisliste!$D$6+Preisliste!$I$24*Preisliste!$D$7+Preisliste!$I$25*Preisliste!$D$8+Preisliste!$I$26*Preisliste!$D$10)*Preisliste!$D$34+Preisliste!$D$13*12) -> 1,236.00 € | E52: =(A52*(Preisliste!$I$22*Preisliste!$E$5+Preisliste!$I$23*Preisliste!$E$6+Preisliste!$I$24*Preisliste!$E$7+Preisliste!$I$25*Preisliste!$E$8+Preisliste!$I$26*Preisliste!$E$10)*Preisliste!$E$34+Preisliste!$E$13*12) -> 1,485.60 €
A53: 490 | B53: =A53*((Preisliste!$I$22*Preisliste!$B$5+Preisliste!$I$23*Preisliste!$B$6+Preisliste!$I$24*Preisliste!$B$7+Preisliste!$I$25*Preisliste!$B$8+Preisliste!$I$26*Preisliste!$B$10)*Preisliste!$B$34) -> 1,568.00 € | C53: =(A53*(Preisliste!$I$22*Preisliste!$C$5+Preisliste!$I$23*Preisliste!$C$6+Preisliste!$I$24*Preisliste!$C$7+Preisliste!$I$25*Preisliste!$C$8+Preisliste!$I$26*Preisliste!$C$10)*Preisliste!$C$34+Preisliste!$C$13*12) -> 1,284.00 € | D53: =(A53*(Preisliste!$I$22*Preisliste!$D$5+Preisliste!$I$23*Preisliste!$D$6+Preisliste!$I$24*Preisliste!$D$7+Preisliste!$I$25*Preisliste!$D$8+Preisliste!$I$26*Preisliste!$D$10)*Preisliste!$D$34+Preisliste!$D$13*12) -> 1,252.00 € | E53: =(A53*(Preisliste!$I$22*Preisliste!$E$5+Preisliste!$I$23*Preisliste!$E$6+Preisliste!$I$24*Preisliste!$E$7+Preisliste!$I$25*Preisliste!$E$8+Preisliste!$I$26*Preisliste!$E$10)*Preisliste!$E$34+Preisliste!$E$13*12) -> 1,496.80 €
A54: 500 | B54: =A54*((Preisliste!$I$22*Preisliste!$B$5+Preisliste!$I$23*Preisliste!$B$6+Preisliste!$I$24*Preisliste!$B$7+Preisliste!$I$25*Preisliste!$B$8+Preisliste!$I$26*Preisliste!$B$10)*Preisliste!$B$34) -> 1,600.00 € | C54: =(A54*(Preisliste!$I$22*Preisliste!$C$5+Preisliste!$I$23*Preisliste!$C$6+Preisliste!$I$24*Preisliste!$C$7+Preisliste!$I$25*Preisliste!$C$8+Preisliste!$I$26*Preisliste!$C$10)*Preisliste!$C$34+Preisliste!$C$13*12) -> 1,308.00 € | D54: =(A54*(Preisliste!$I$22*Preisliste!$D$5+Preisliste!$I$23*Preisliste!$D$6+Preisliste!$I$24*Preisliste!$D$7+Preisliste!$I$25*Preisliste!$D$8+Preisliste!$I$26*Preisliste!$D$10)*Preisliste!$D$34+Preisliste!$D$13*12) -> 1,268.00 € | E54: =(A54*(Preisliste!$I$22*Preisliste!$E$5+Preisliste!$I$23*Preisliste!$E$6+Preisliste!$I$24*Preisliste!$E$7+Preisliste!$I$25*Preisliste!$E$8+Preisliste!$I$26*Preisliste!$E$10)*Preisliste!$E$34+Preisliste!$E$13*12) -> 1,508.00 €
A55: 510 | B55: =A55*((Preisliste!$I$22*Preisliste!$B$5+Preisliste!$I$23*Preisliste!$B$6+Preisliste!$I$24*Preisliste!$B$7+Preisliste!$I$25*Preisliste!$B$8+Preisliste!$I$26*Preisliste!$B$10)*Preisliste!$B$34) -> 1,632.00 € | C55: =(A55*(Preisliste!$I$22*Preisliste!$C$5+Preisliste!$I$23*Preisliste!$C$6+Preisliste!$I$24*Preisliste!$C$7+Preisliste!$I$25*Preisliste!$C$8+Preisliste!$I$26*Preisliste!$C$10)*Preisliste!$C$34+Preisliste!$C$13*12) -> 1,332.00 € | D55: =(A55*(Preisliste!$I$22*Preisliste!$D$5+Preisliste!$I$23*Preisliste!$D$6+Preisliste!$I$24*Preisliste!$D$7+Preisliste!$I$25*Preisliste!$D$8+Preisliste!$I$26*Preisliste!$D$10)*Preisliste!$D$34+Preisliste!$D$13*12) -> 1,284.00 € | E55: =(A55*(Preisliste!$I$22*Preisliste!$E$5+Preisliste!$I$23*Preisliste!$E$6+Preisliste!$I$24*Preisliste!$E$7+Preisliste!$I$25*Preisliste!$E$8+Preisliste!$I$26*Preisliste!$E$10)*Preisliste!$E$34+Preisliste!$E$13*12) -> 1,519.20 €
A56: 520 | B56: =A56*((Preisliste!$I$22*Preisliste!$B$5+Preisliste!$I$23*Preisliste!$B$6+Preisliste!$I$24*Preisliste!$B$7+Preisliste!$I$25*Preisliste!$B$8+Preisliste!$I$26*Preisliste!$B$10)*Preisliste!$B$34) -> 1,664.00 € | C56: =(A56*(Preisliste!$I$22*Preisliste!$C$5+Preisliste!$I$23*Preisliste!$C$6+Preisliste!$I$24*Preisliste!$C$7+Preisliste!$I$25*Preisliste!$C$8+Preisliste!$I$26*Preisliste!$C$10)*Preisliste!$C$34+Preisliste!$C$13*12) -> 1,356.00 € | D56: =(A56*(Preisliste!$I$22*Preisliste!$D$5+Preisliste!$I$23*Preisliste!$D$6+Preisliste!$I$24*Preisliste!$D$7+Preisliste!$I$25*Preisliste!$D$8+Preisliste!$I$26*Preisliste!$D$10)*Preisliste!$D$34+Preisliste!$D$13*12) -> 1,300.00 € | E56: =(A56*(Preisliste!$I$22*Preisliste!$E$5+Preisliste!$I$23*Preisliste!$E$6+Preisliste!$I$24*Preisliste!$E$7+Preisliste!$I$25*Preisliste!$E$8+Preisliste!$I$26*Preisliste!$E$10)*Preisliste!$E$34+Preisliste!$E$13*12) -> 1,530.40 €
A57: 530 | B57: =A57*((Preisliste!$I$22*Preisliste!$B$5+Preisliste!$I$23*Preisliste!$B$6+Preisliste!$I$24*Preisliste!$B$7+Preisliste!$I$25*Preisliste!$B$8+Preisliste!$I$26*Preisliste!$B$10)*Preisliste!$B$34) -> 1,696.00 € | C57: =(A57*(Preisliste!$I$22*Preisliste!$C$5+Preisliste!$I$23*Preisliste!$C$6+Preisliste!$I$24*Preisliste!$C$7+Preisliste!$I$25*Preisliste!$C$8+Preisliste!$I$26*Preisliste!$C$10)*Preisliste!$C$34+Preisliste!$C$13*12) -> 1,380.00 € | D57: =(A57*(Preisliste!$I$22*Preisliste!$D$5+Preisliste!$I$23*Preisliste!$D$6+Preisliste!$I$24*Preisliste!$D$7+Preisliste!$I$25*Preisliste!$D$8+Preisliste!$I$26*Preisliste!$D$10)*Preisliste!$D$34+Preisliste!$D$13*12) -> 1,316.00 € | E57: =(A57*(Preisliste!$I$22*Preisliste!$E$5+Preisliste!$I$23*Preisliste!$E$6+Preisliste!$I$24*Preisliste!$E$7+Preisliste!$I$25*Preisliste!$E$8+Preisliste!$I$26*Preisliste!$E$10)*Preisliste!$E$34+Preisliste!$E$13*12) -> 1,541.60 €
A58: 540 | B58: =A58*((Preisliste!$I$22*Preisliste!$B$5+Preisliste!$I$23*Preisliste!$B$6+Preisliste!$I$24*Preisliste!$B$7+Preisliste!$I$25*Preisliste!$B$8+Preisliste!$I$26*Preisliste!$B$10)*Preisliste!$B$34) -> 1,728.00 € | C58: =(A58*(Preisliste!$I$22*Preisliste!$C$5+Preisliste!$I$23*Preisliste!$C$6+Preisliste!$I$24*Preisliste!$C$7+Preisliste!$I$25*Preisliste!$C$8+Preisliste!$I$26*Preisliste!$C$10)*Preisliste!$C$34+Preisliste!$C$13*12) -> 1,404.00 € | D58: =(A58*(Preisliste!$I$22*Preisliste!$D$5+Preisliste!$I$23*Preisliste!$D$6+Preisliste!$I$24*Preisliste!$D$7+Preisliste!$I$25*Preisliste!$D$8+Preisliste!$I$26*Preisliste!$D$10)*Preisliste!$D$34+Preisliste!$D$13*12) -> 1,332.00 € | E58: =(A58*(Preisliste!$I$22*Preisliste!$E$5+Preisliste!$I$23*Preisliste!$E$6+Preisliste!$I$24*Preisliste!$E$7+Preisliste!$I$25*Preisliste!$E$8+Preisliste!$I$26*Preisliste!$E$10)*Preisliste!$E$34+Preisliste!$E$13*12) -> 1,552.80 €
A59: 550 | B59: =A59*((Preisliste!$I$22*Preisliste!$B$5+Preisliste!$I$23*Preisliste!$B$6+Preisliste!$I$24*Preisliste!$B$7+Preisliste!$I$25*Preisliste!$B$8+Preisliste!$I$26*Preisliste!$B$10)*Preisliste!$B$34) -> 1,760.00 € | C59: =(A59*(Preisliste!$I$22*Preisliste!$C$5+Preisliste!$I$23*Preisliste!$C$6+Preisliste!$I$24*Preisliste!$C$7+Preisliste!$I$25*Preisliste!$C$8+Preisliste!$I$26*Preisliste!$C$10)*Preisliste!$C$34+Preisliste!$C$13*12) -> 1,428.00 € | D59: =(A59*(Preisliste!$I$22*Preisliste!$D$5+Preisliste!$I$23*Preisliste!$D$6+Preisliste!$I$24*Preisliste!$D$7+Preisliste!$I$25*Preisliste!$D$8+Preisliste!$I$26*Preisliste!$D$10)*Preisliste!$D$34+Preisliste!$D$13*12) -> 1,348.00 € | E59: =(A59*(Preisliste!$I$22*Preisliste!$E$5+Preisliste!$I$23*Preisliste!$E$6+Preisliste!$I$24*Preisliste!$E$7+Preisliste!$I$25*Preisliste!$E$8+Preisliste!$I$26*Preisliste!$E$10)*Preisliste!$E$34+Preisliste!$E$13*12) -> 1,564.00 €
A60: 560 | B60: =A60*((Preisliste!$I$22*Preisliste!$B$5+Preisliste!$I$23*Preisliste!$B$6+Preisliste!$I$24*Preisliste!$B$7+Preisliste!$I$25*Preisliste!$B$8+Preisliste!$I$26*Preisliste!$B$10)*Preisliste!$B$34) -> 1,792.00 € | C60: =(A60*(Preisliste!$I$22*Preisliste!$C$5+Preisliste!$I$23*Preisliste!$C$6+Preisliste!$I$24*Preisliste!$C$7+Preisliste!$I$25*Preisliste!$C$8+Preisliste!$I$26*Preisliste!$C$10)*Preisliste!$C$34+Preisliste!$C$13*12) -> 1,452.00 € | D60: =(A60*(Preisliste!$I$22*Preisliste!$D$5+Preisliste!$I$23*Preisliste!$D$6+Preisliste!$I$24*Preisliste!$D$7+Preisliste!$I$25*Preisliste!$D$8+Preisliste!$I$26*Preisliste!$D$10)*Preisliste!$D$34+Preisliste!$D$13*12) -> 1,364.00 € | E60: =(A60*(Preisliste!$I$22*Preisliste!$E$5+Preisliste!$I$23*Preisliste!$E$6+Preisliste!$I$24*Preisliste!$E$7+Preisliste!$I$25*Preisliste!$E$8+Preisliste!$I$26*Preisliste!$E$10)*Preisliste!$E$34+Preisliste!$E$13*12) -> 1,575.20 €
A61: 570 | B61: =A61*((Preisliste!$I$22*Preisliste!$B$5+Preisliste!$I$23*Preisliste!$B$6+Preisliste!$I$24*Preisliste!$B$7+Preisliste!$I$25*Preisliste!$B$8+Preisliste!$I$26*Preisliste!$B$10)*Preisliste!$B$34) -> 1,824.00 € | C61: =(A61*(Preisliste!$I$22*Preisliste!$C$5+Preisliste!$I$23*Preisliste!$C$6+Preisliste!$I$24*Preisliste!$C$7+Preisliste!$I$25*Preisliste!$C$8+Preisliste!$I$26*Preisliste!$C$10)*Preisliste!$C$34+Preisliste!$C$13*12) -> 1,476.00 € | D61: =(A61*(Preisliste!$I$22*Preisliste!$D$5+Preisliste!$I$23*Preisliste!$D$6+Preisliste!$I$24*Preisliste!$D$7+Preisliste!$I$25*Preisliste!$D$8+Preisliste!$I$26*Preisliste!$D$10)*Preisliste!$D$34+Preisliste!$D$13*12) -> 1,380.00 € | E61: =(A61*(Preisliste!$I$22*Preisliste!$E$5+Preisliste!$I$23*Preisliste!$E$6+Preisliste!$I$24*Preisliste!$E$7+Preisliste!$I$25*Preisliste!$E$8+Preisliste!$I$26*Preisliste!$E$10)*Preisliste!$E$34+Preisliste!$E$13*12) -> 1,586.40 €
A62: 580 | B62: =A62*((Preisliste!$I$22*Preisliste!$B$5+Preisliste!$I$23*Preisliste!$B$6+Preisliste!$I$24*Preisliste!$B$7+Preisliste!$I$25*Preisliste!$B$8+Preisliste!$I$26*Preisliste!$B$10)*Preisliste!$B$34) -> 1,856.00 € | C62: =(A62*(Preisliste!$I$22*Preisliste!$C$5+Preisliste!$I$23*Preisliste!$C$6+Preisliste!$I$24*Preisliste!$C$7+Preisliste!$I$25*Preisliste!$C$8+Preisliste!$I$26*Preisliste!$C$10)*Preisliste!$C$34+Preisliste!$C$13*12) -> 1,500.00 € | D62: =(A62*(Preisliste!$I$22*Preisliste!$D$5+Preisliste!$I$23*Preisliste!$D$6+Preisliste!$I$24*Preisliste!$D$7+Preisliste!$I$25*Preisliste!$D$8+Preisliste!$I$26*Preisliste!$D$10)*Preisliste!$D$34+Preisliste!$D$13*12) -> 1,396.00 € | E62: =(A62*(Preisliste!$I$22*Preisliste!$E$5+Preisliste!$I$23*Preisliste!$E$6+Preisliste!$I$24*Preisliste!$E$7+Preisliste!$I$25*Preisliste!$E$8+Preisliste!$I$26*Preisliste!$E$10)*Preisliste!$E$34+Preisliste!$E$13*12) -> 1,597.60 €
A63: 590 | B63: =A63*((Preisliste!$I$22*Preisliste!$B$5+Preisliste!$I$23*Preisliste!$B$6+Preisliste!$I$24*Preisliste!$B$7+Preisliste!$I$25*Preisliste!$B$8+Preisliste!$I$26*Preisliste!$B$10)*Preisliste!$B$34) -> 1,888.00 € | C63: =(A63*(Preisliste!$I$22*Preisliste!$C$5+Preisliste!$I$23*Preisliste!$C$6+Preisliste!$I$24*Preisliste!$C$7+Preisliste!$I$25*Preisliste!$C$8+Preisliste!$I$26*Preisliste!$C$10)*Preisliste!$C$34+Preisliste!$C$13*12) -> 1,524.00 € | D63: =(A63*(Preisliste!$I$22*Preisliste!$D$5+Preisliste!$I$23*Preisliste!$D$6+Preisliste!$I$24*Preisliste!$D$7+Preisliste!$I$25*Preisliste!$D$8+Preisliste!$I$26*Preisliste!$D$10)*Preisliste!$D$34+Preisliste!$D$13*12) -> 1,412.00 € | E63: =(A63*(Preisliste!$I$22*Preisliste!$E$5+Preisliste!$I$23*Preisliste!$E$6+Preisliste!$I$24*Preisliste!$E$7+Preisliste!$I$25*Preisliste!$E$8+Preisliste!$I$26*Preisliste!$E$10)*Preisliste!$E$34+Preisliste!$E$13*12) -> 1,608.80 €
A64: 600 | B64: =A64*((Preisliste!$I$22*Preisliste!$B$5+Preisliste!$I$23*Preisliste!$B$6+Preisliste!$I$24*Preisliste!$B$7+Preisliste!$I$25*Preisliste!$B$8+Preisliste!$I$26*Preisliste!$B$10)*Preisliste!$B$34) -> 1,920.00 € | C64: =(A64*(Preisliste!$I$22*Preisliste!$C$5+Preisliste!$I$23*Preisliste!$C$6+Preisliste!$I$24*Preisliste!$C$7+Preisliste!$I$25*Preisliste!$C$8+Preisliste!$I$26*Preisliste!$C$10)*Preisliste!$C$34+Preisliste!$C$13*12) -> 1,548.00 € | D64: =(A64*(Preisliste!$I$22*Preisliste!$D$5+Preisliste!$I$23*Preisliste!$D$6+Preisliste!$I$24*Preisliste!$D$7+Preisliste!$I$25*Preisliste!$D$8+Preisliste!$I$26*Preisliste!$D$10)*Preisliste!$D$34+Preisliste!$D$13*12) -> 1,428.00 € | E64: =(A64*(Preisliste!$I$22*Preisliste!$E$5+Preisliste!$I$23*Preisliste!$E$6+Preisliste!$I$24*Preisliste!$E$7+Preisliste!$I$25*Preisliste!$E$8+Preisliste!$I$26*Preisliste!$E$10)*Preisliste!$E$34+Preisliste!$E$13*12) -> 1,620.00 €
A65: 610 | B65: =A65*((Preisliste!$I$22*Preisliste!$B$5+Preisliste!$I$23*Preisliste!$B$6+Preisliste!$I$24*Preisliste!$B$7+Preisliste!$I$25*Preisliste!$B$8+Preisliste!$I$26*Preisliste!$B$10)*Preisliste!$B$34) -> 1,952.00 € | C65: =(A65*(Preisliste!$I$22*Preisliste!$C$5+Preisliste!$I$23*Preisliste!$C$6+Preisliste!$I$24*Preisliste!$C$7+Preisliste!$I$25*Preisliste!$C$8+Preisliste!$I$26*Preisliste!$C$10)*Preisliste!$C$34+Preisliste!$C$13*12) -> 1,572.00 € | D65: =(A65*(Preisliste!$I$22*Preisliste!$D$5+Preisliste!$I$23*Preisliste!$D$6+Preisliste!$I$24*Preisliste!$D$7+Preisliste!$I$25*Preisliste!$D$8+Preisliste!$I$26*Preisliste!$D$10)*Preisliste!$D$34+Preisliste!$D$13*12) -> 1,444.00 € | E65: =(A65*(Preisliste!$I$22*Preisliste!$E$5+Preisliste!$I$23*Preisliste!$E$6+Preisliste!$I$24*Preisliste!$E$7+Preisliste!$I$25*Preisliste!$E$8+Preisliste!$I$26*Preisliste!$E$10)*Preisliste!$E$34+Preisliste!$E$13*12) -> 1,631.20 €
A66: 620 | B66: =A66*((Preisliste!$I$22*Preisliste!$B$5+Preisliste!$I$23*Preisliste!$B$6+Preisliste!$I$24*Preisliste!$B$7+Preisliste!$I$25*Preisliste!$B$8+Preisliste!$I$26*Preisliste!$B$10)*Preisliste!$B$34) -> 1,984.00 € | C66: =(A66*(Preisliste!$I$22*Preisliste!$C$5+Preisliste!$I$23*Preisliste!$C$6+Preisliste!$I$24*Preisliste!$C$7+Preisliste!$I$25*Preisliste!$C$8+Preisliste!$I$26*Preisliste!$C$10)*Preisliste!$C$34+Preisliste!$C$13*12) -> 1,596.00 € | D66: =(A66*(Preisliste!$I$22*Preisliste!$D$5+Preisliste!$I$23*Preisliste!$D$6+Preisliste!$I$24*Preisliste!$D$7+Preisliste!$I$25*Preisliste!$D$8+Preisliste!$I$26*Preisliste!$D$10)*Preisliste!$D$34+Preisliste!$D$13*12) -> 1,460.00 € | E66: =(A66*(Preisliste!$I$22*Preisliste!$E$5+Preisliste!$I$23*Preisliste!$E$6+Preisliste!$I$24*Preisliste!$E$7+Preisliste!$I$25*Preisliste!$E$8+Preisliste!$I$26*Preisliste!$E$10)*Preisliste!$E$34+Preisliste!$E$13*12) -> 1,642.40 €
A67: 630 | B67: =A67*((Preisliste!$I$22*Preisliste!$B$5+Preisliste!$I$23*Preisliste!$B$6+Preisliste!$I$24*Preisliste!$B$7+Preisliste!$I$25*Preisliste!$B$8+Preisliste!$I$26*Preisliste!$B$10)*Preisliste!$B$34) -> 2,016.00 € | C67: =(A67*(Preisliste!$I$22*Preisliste!$C$5+Preisliste!$I$23*Preisliste!$C$6+Preisliste!$I$24*Preisliste!$C$7+Preisliste!$I$25*Preisliste!$C$8+Preisliste!$I$26*Preisliste!$C$10)*Preisliste!$C$34+Preisliste!$C$13*12) -> 1,620.00 € | D67: =(A67*(Preisliste!$I$22*Preisliste!$D$5+Preisliste!$I$23*Preisliste!$D$6+Preisliste!$I$24*Preisliste!$D$7+Preisliste!$I$25*Preisliste!$D$8+Preisliste!$I$26*Preisliste!$D$10)*Preisliste!$D$34+Preisliste!$D$13*12) -> 1,476.00 € | E67: =(A67*(Preisliste!$I$22*Preisliste!$E$5+Preisliste!$I$23*Preisliste!$E$6+Preisliste!$I$24*Preisliste!$E$7+Preisliste!$I$25*Preisliste!$E$8+Preisliste!$I$26*Preisliste!$E$10)*Preisliste!$E$34+Preisliste!$E$13*12) -> 1,653.60 €
A68: 640 | B68: =A68*((Preisliste!$I$22*Preisliste!$B$5+Preisliste!$I$23*Preisliste!$B$6+Preisliste!$I$24*Preisliste!$B$7+Preisliste!$I$25*Preisliste!$B$8+Preisliste!$I$26*Preisliste!$B$10)*Preisliste!$B$34) -> 2,048.00 € | C68: =(A68*(Preisliste!$I$22*Preisliste!$C$5+Preisliste!$I$23*Preisliste!$C$6+Preisliste!$I$24*Preisliste!$C$7+Preisliste!$I$25*Preisliste!$C$8+Preisliste!$I$26*Preisliste!$C$10)*Preisliste!$C$34+Preisliste!$C$13*12) -> 1,644.00 € | D68: =(A68*(Preisliste!$I$22*Preisliste!$D$5+Preisliste!$I$23*Preisliste!$D$6+Preisliste!$I$24*Preisliste!$D$7+Preisliste!$I$25*Preisliste!$D$8+Preisliste!$I$26*Preisliste!$D$10)*Preisliste!$D$34+Preisliste!$D$13*12) -> 1,492.00 € | E68: =(A68*(Preisliste!$I$22*Preisliste!$E$5+Preisliste!$I$23*Preisliste!$E$6+Preisliste!$I$24*Preisliste!$E$7+Preisliste!$I$25*Preisliste!$E$8+Preisliste!$I$26*Preisliste!$E$10)*Preisliste!$E$34+Preisliste!$E$13*12) -> 1,664.80 €
A69: 650 | B69: =A69*((Preisliste!$I$22*Preisliste!$B$5+Preisliste!$I$23*Preisliste!$B$6+Preisliste!$I$24*Preisliste!$B$7+Preisliste!$I$25*Preisliste!$B$8+Preisliste!$I$26*Preisliste!$B$10)*Preisliste!$B$34) -> 2,080.00 € | C69: =(A69*(Preisliste!$I$22*Preisliste!$C$5+Preisliste!$I$23*Preisliste!$C$6+Preisliste!$I$24*Preisliste!$C$7+Preisliste!$I$25*Preisliste!$C$8+Preisliste!$I$26*Preisliste!$C$10)*Preisliste!$C$34+Preisliste!$C$13*12) -> 1,668.00 € | D69: =(A69*(Preisliste!$I$22*Preisliste!$D$5+Preisliste!$I$23*Preisliste!$D$6+Preisliste!$I$24*Preisliste!$D$7+Preisliste!$I$25*Preisliste!$D$8+Preisliste!$I$26*Preisliste!$D$10)*Preisliste!$D$34+Preisliste!$D$13*12) -> 1,508.00 € | E69: =(A69*(Preisliste!$I$22*Preisliste!$E$5+Preisliste!$I$23*Preisliste!$E$6+Preisliste!$I$24*Preisliste!$E$7+Preisliste!$I$25*Preisliste!$E$8+Preisliste!$I$26*Preisliste!$E$10)*Preisliste!$E$34+Preisliste!$E$13*12) -> 1,676.00 €
A70: 660 | B70: =A70*((Preisliste!$I$22*Preisliste!$B$5+Preisliste!$I$23*Preisliste!$B$6+Preisliste!$I$24*Preisliste!$B$7+Preisliste!$I$25*Preisliste!$B$8+Preisliste!$I$26*Preisliste!$B$10)*Preisliste!$B$34) -> 2,112.00 € | C70: =(A70*(Preisliste!$I$22*Preisliste!$C$5+Preisliste!$I$23*Preisliste!$C$6+Preisliste!$I$24*Preisliste!$C$7+Preisliste!$I$25*Preisliste!$C$8+Preisliste!$I$26*Preisliste!$C$10)*Preisliste!$C$34+Preisliste!$C$13*12) -> 1,692.00 € | D70: =(A70*(Preisliste!$I$22*Preisliste!$D$5+Preisliste!$I$23*Preisliste!$D$6+Preisliste!$I$24*Preisliste!$D$7+Preisliste!$I$25*Preisliste!$D$8+Preisliste!$I$26*Preisliste!$D$10)*Preisliste!$D$34+Preisliste!$D$13*12) -> 1,524.00 € | E70: =(A70*(Preisliste!$I$22*Preisliste!$E$5+Preisliste!$I$23*Preisliste!$E$6+Preisliste!$I$24*Preisliste!$E$7+Preisliste!$I$25*Preisliste!$E$8+Preisliste!$I$26*Preisliste!$E$10)*Preisliste!$E$34+Preisliste!$E$13*12) -> 1,687.20 €
A71: 670 | B71: =A71*((Preisliste!$I$22*Preisliste!$B$5+Preisliste!$I$23*Preisliste!$B$6+Preisliste!$I$24*Preisliste!$B$7+Preisliste!$I$25*Preisliste!$B$8+Preisliste!$I$26*Preisliste!$B$10)*Preisliste!$B$34) -> 2,144.00 € | C71: =(A71*(Preisliste!$I$22*Preisliste!$C$5+Preisliste!$I$23*Preisliste!$C$6+Preisliste!$I$24*Preisliste!$C$7+Preisliste!$I$25*Preisliste!$C$8+Preisliste!$I$26*Preisliste!$C$10)*Preisliste!$C$34+Preisliste!$C$13*12) -> 1,716.00 € | D71: =(A71*(Preisliste!$I$22*Preisliste!$D$5+Preisliste!$I$23*Preisliste!$D$6+Preisliste!$I$24*Preisliste!$D$7+Preisliste!$I$25*Preisliste!$D$8+Preisliste!$I$26*Preisliste!$D$10)*Preisliste!$D$34+Preisliste!$D$13*12) -> 1,540.00 € | E71: =(A71*(Preisliste!$I$22*Preisliste!$E$5+Preisliste!$I$23*Preisliste!$E$6+Preisliste!$I$24*Preisliste!$E$7+Preisliste!$I$25*Preisliste!$E$8+Preisliste!$I$26*Preisliste!$E$10)*Preisliste!$E$34+Preisliste!$E$13*12) -> 1,698.40 €
A72: 680 | B72: =A72*((Preisliste!$I$22*Preisliste!$B$5+Preisliste!$I$23*Preisliste!$B$6+Preisliste!$I$24*Preisliste!$B$7+Preisliste!$I$25*Preisliste!$B$8+Preisliste!$I$26*Preisliste!$B$10)*Preisliste!$B$34) -> 2,176.00 € | C72: =(A72*(Preisliste!$I$22*Preisliste!$C$5+Preisliste!$I$23*Preisliste!$C$6+Preisliste!$I$24*Preisliste!$C$7+Preisliste!$I$25*Preisliste!$C$8+Preisliste!$I$26*Preisliste!$C$10)*Preisliste!$C$34+Preisliste!$C$13*12) -> 1,740.00 € | D72: =(A72*(Preisliste!$I$22*Preisliste!$D$5+Preisliste!$I$23*Preisliste!$D$6+Preisliste!$I$24*Preisliste!$D$7+Preisliste!$I$25*Preisliste!$D$8+Preisliste!$I$26*Preisliste!$D$10)*Preisliste!$D$34+Preisliste!$D$13*12) -> 1,556.00 € | E72: =(A72*(Preisliste!$I$22*Preisliste!$E$5+Preisliste!$I$23*Preisliste!$E$6+Preisliste!$I$24*Preisliste!$E$7+Preisliste!$I$25*Preisliste!$E$8+Preisliste!$I$26*Preisliste!$E$10)*Preisliste!$E$34+Preisliste!$E$13*12) -> 1,709.60 €
A73: 690 | B73: =A73*((Preisliste!$I$22*Preisliste!$B$5+Preisliste!$I$23*Preisliste!$B$6+Preisliste!$I$24*Preisliste!$B$7+Preisliste!$I$25*Preisliste!$B$8+Preisliste!$I$26*Preisliste!$B$10)*Preisliste!$B$34) -> 2,208.00 € | C73: =(A73*(Preisliste!$I$22*Preisliste!$C$5+Preisliste!$I$23*Preisliste!$C$6+Preisliste!$I$24*Preisliste!$C$7+Preisliste!$I$25*Preisliste!$C$8+Preisliste!$I$26*Preisliste!$C$10)*Preisliste!$C$34+Preisliste!$C$13*12) -> 1,764.00 € | D73: =(A73*(Preisliste!$I$22*Preisliste!$D$5+Preisliste!$I$23*Preisliste!$D$6+Preisliste!$I$24*Preisliste!$D$7+Preisliste!$I$25*Preisliste!$D$8+Preisliste!$I$26*Preisliste!$D$10)*Preisliste!$D$34+Preisliste!$D$13*12) -> 1,572.00 € | E73: =(A73*(Preisliste!$I$22*Preisliste!$E$5+Preisliste!$I$23*Preisliste!$E$6+Preisliste!$I$24*Preisliste!$E$7+Preisliste!$I$25*Preisliste!$E$8+Preisliste!$I$26*Preisliste!$E$10)*Preisliste!$E$34+Preisliste!$E$13*12) -> 1,720.80 €
A74: 700 | B74: =A74*((Preisliste!$I$22*Preisliste!$B$5+Preisliste!$I$23*Preisliste!$B$6+Preisliste!$I$24*Preisliste!$B$7+Preisliste!$I$25*Preisliste!$B$8+Preisliste!$I$26*Preisliste!$B$10)*Preisliste!$B$34) -> 2,240.00 € | C74: =(A74*(Preisliste!$I$22*Preisliste!$C$5+Preisliste!$I$23*Preisliste!$C$6+Preisliste!$I$24*Preisliste!$C$7+Preisliste!$I$25*Preisliste!$C$8+Preisliste!$I$26*Preisliste!$C$10)*Preisliste!$C$34+Preisliste!$C$13*12) -> 1,788.00 € | D74: =(A74*(Preisliste!$I$22*Preisliste!$D$5+Preisliste!$I$23*Preisliste!$D$6+Preisliste!$I$24*Preisliste!$D$7+Preisliste!$I$25*Preisliste!$D$8+Preisliste!$I$26*Preisliste!$D$10)*Preisliste!$D$34+Preisliste!$D$13*12) -> 1,588.00 € | E74: =(A74*(Preisliste!$I$22*Preisliste!$E$5+Preisliste!$I$23*Preisliste!$E$6+Preisliste!$I$24*Preisliste!$E$7+Preisliste!$I$25*Preisliste!$E$8+Preisliste!$I$26*Preisliste!$E$10)*Preisliste!$E$34+Preisliste!$E$13*12) -> 1,732.00 €
A75: 710 | B75: =A75*((Preisliste!$I$22*Preisliste!$B$5+Preisliste!$I$23*Preisliste!$B$6+Preisliste!$I$24*Preisliste!$B$7+Preisliste!$I$25*Preisliste!$B$8+Preisliste!$I$26*Preisliste!$B$10)*Preisliste!$B$34) -> 2,272.00 € | C75: =(A75*(Preisliste!$I$22*Preisliste!$C$5+Preisliste!$I$23*Preisliste!$C$6+Preisliste!$I$24*Preisliste!$C$7+Preisliste!$I$25*Preisliste!$C$8+Preisliste!$I$26*Preisliste!$C$10)*Preisliste!$C$34+Preisliste!$C$13*12) -> 1,812.00 € | D75: =(A75*(Preisliste!$I$22*Preisliste!$D$5+Preisliste!$I$23*Preisliste!$D$6+Preisliste!$I$24*Preisliste!$D$7+Preisliste!$I$25*Preisliste!$D$8+Preisliste!$I$26*Preisliste!$D$10)*Preisliste!$D$34+Preisliste!$D$13*12) -> 1,604.00 € | E75: =(A75*(Preisliste!$I$22*Preisliste!$E$5+Preisliste!$I$23*Preisliste!$E$6+Preisliste!$I$24*Preisliste!$E$7+Preisliste!$I$25*Preisliste!$E$8+Preisliste!$I$26*Preisliste!$E$10)*Preisliste!$E$34+Preisliste!$E$13*12) -> 1,743.20 €
A76: 720 | B76: =A76*((Preisliste!$I$22*Preisliste!$B$5+Preisliste!$I$23*Preisliste!$B$6+Preisliste!$I$24*Preisliste!$B$7+Preisliste!$I$25*Preisliste!$B$8+Preisliste!$I$26*Preisliste!$B$10)*Preisliste!$B$34) -> 2,304.00 € | C76: =(A76*(Preisliste!$I$22*Preisliste!$C$5+Preisliste!$I$23*Preisliste!$C$6+Preisliste!$I$24*Preisliste!$C$7+Preisliste!$I$25*Preisliste!$C$8+Preisliste!$I$26*Preisliste!$C$10)*Preisliste!$C$34+Preisliste!$C$13*12) -> 1,836.00 € | D76: =(A76*(Preisliste!$I$22*Preisliste!$D$5+Preisliste!$I$23*Preisliste!$D$6+Preisliste!$I$24*Preisliste!$D$7+Preisliste!$I$25*Preisliste!$D$8+Preisliste!$I$26*Preisliste!$D$10)*Preisliste!$D$34+Preisliste!$D$13*12) -> 1,620.00 € | E76: =(A76*(Preisliste!$I$22*Preisliste!$E$5+Preisliste!$I$23*Preisliste!$E$6+Preisliste!$I$24*Preisliste!$E$7+Preisliste!$I$25*Preisliste!$E$8+Preisliste!$I$26*Preisliste!$E$10)*Preisliste!$E$34+Preisliste!$E$13*12) -> 1,754.40 €
A77: 730 | B77: =A77*((Preisliste!$I$22*Preisliste!$B$5+Preisliste!$I$23*Preisliste!$B$6+Preisliste!$I$24*Preisliste!$B$7+Preisliste!$I$25*Preisliste!$B$8+Preisliste!$I$26*Preisliste!$B$10)*Preisliste!$B$34) -> 2,336.00 € | C77: =(A77*(Preisliste!$I$22*Preisliste!$C$5+Preisliste!$I$23*Preisliste!$C$6+Preisliste!$I$24*Preisliste!$C$7+Preisliste!$I$25*Preisliste!$C$8+Preisliste!$I$26*Preisliste!$C$10)*Preisliste!$C$34+Preisliste!$C$13*12) -> 1,860.00 € | D77: =(A77*(Preisliste!$I$22*Preisliste!$D$5+Preisliste!$I$23*Preisliste!$D$6+Preisliste!$I$24*Preisliste!$D$7+Preisliste!$I$25*Preisliste!$D$8+Preisliste!$I$26*Preisliste!$D$10)*Preisliste!$D$34+Preisliste!$D$13*12) -> 1,636.00 € | E77: =(A77*(Preisliste!$I$22*Preisliste!$E$5+Preisliste!$I$23*Preisliste!$E$6+Preisliste!$I$24*Preisliste!$E$7+Preisliste!$I$25*Preisliste!$E$8+Preisliste!$I$26*Preisliste!$E$10)*Preisliste!$E$34+Preisliste!$E$13*12) -> 1,765.60 €
A78: 740 | B78: =A78*((Preisliste!$I$22*Preisliste!$B$5+Preisliste!$I$23*Preisliste!$B$6+Preisliste!$I$24*Preisliste!$B$7+Preisliste!$I$25*Preisliste!$B$8+Preisliste!$I$26*Preisliste!$B$10)*Preisliste!$B$34) -> 2,368.00 € | C78: =(A78*(Preisliste!$I$22*Preisliste!$C$5+Preisliste!$I$23*Preisliste!$C$6+Preisliste!$I$24*Preisliste!$C$7+Preisliste!$I$25*Preisliste!$C$8+Preisliste!$I$26*Preisliste!$C$10)*Preisliste!$C$34+Preisliste!$C$13*12) -> 1,884.00 € | D78: =(A78*(Preisliste!$I$22*Preisliste!$D$5+Preisliste!$I$23*Preisliste!$D$6+Preisliste!$I$24*Preisliste!$D$7+Preisliste!$I$25*Preisliste!$D$8+Preisliste!$I$26*Preisliste!$D$10)*Preisliste!$D$34+Preisliste!$D$13*12) -> 1,652.00 € | E78: =(A78*(Preisliste!$I$22*Preisliste!$E$5+Preisliste!$I$23*Preisliste!$E$6+Preisliste!$I$24*Preisliste!$E$7+Preisliste!$I$25*Preisliste!$E$8+Preisliste!$I$26*Preisliste!$E$10)*Preisliste!$E$34+Preisliste!$E$13*12) -> 1,776.80 €
A79: 750 | B79: =A79*((Preisliste!$I$22*Preisliste!$B$5+Preisliste!$I$23*Preisliste!$B$6+Preisliste!$I$24*Preisliste!$B$7+Preisliste!$I$25*Preisliste!$B$8+Preisliste!$I$26*Preisliste!$B$10)*Preisliste!$B$34) -> 2,400.00 € | C79: =(A79*(Preisliste!$I$22*Preisliste!$C$5+Preisliste!$I$23*Preisliste!$C$6+Preisliste!$I$24*Preisliste!$C$7+Preisliste!$I$25*Preisliste!$C$8+Preisliste!$I$26*Preisliste!$C$10)*Preisliste!$C$34+Preisliste!$C$13*12) -> 1,908.00 € | D79: =(A79*(Preisliste!$I$22*Preisliste!$D$5+Preisliste!$I$23*Preisliste!$D$6+Preisliste!$I$24*Preisliste!$D$7+Preisliste!$I$25*Preisliste!$D$8+Preisliste!$I$26*Preisliste!$D$10)*Preisliste!$D$34+Preisliste!$D$13*12) -> 1,668.00 € | E79: =(A79*(Preisliste!$I$22*Preisliste!$E$5+Preisliste!$I$23*Preisliste!$E$6+Preisliste!$I$24*Preisliste!$E$7+Preisliste!$I$25*Preisliste!$E$8+Preisliste!$I$26*Preisliste!$E$10)*Preisliste!$E$34+Preisliste!$E$13*12) -> 1,788.00 €
A80: 760 | B80: =A80*((Preisliste!$I$22*Preisliste!$B$5+Preisliste!$I$23*Preisliste!$B$6+Preisliste!$I$24*Preisliste!$B$7+Preisliste!$I$25*Preisliste!$B$8+Preisliste!$I$26*Preisliste!$B$10)*Preisliste!$B$34) -> 2,432.00 € | C80: =(A80*(Preisliste!$I$22*Preisliste!$C$5+Preisliste!$I$23*Preisliste!$C$6+Preisliste!$I$24*Preisliste!$C$7+Preisliste!$I$25*Preisliste!$C$8+Preisliste!$I$26*Preisliste!$C$10)*Preisliste!$C$34+Preisliste!$C$13*12) -> 1,932.00 € | D80: =(A80*(Preisliste!$I$22*Preisliste!$D$5+Preisliste!$I$23*Preisliste!$D$6+Preisliste!$I$24*Preisliste!$D$7+Preisliste!$I$25*Preisliste!$D$8+Preisliste!$I$26*Preisliste!$D$10)*Preisliste!$D$34+Preisliste!$D$13*12) -> 1,684.00 € | E80: =(A80*(Preisliste!$I$22*Preisliste!$E$5+Preisliste!$I$23*Preisliste!$E$6+Preisliste!$I$24*Preisliste!$E$7+Preisliste!$I$25*Preisliste!$E$8+Preisliste!$I$26*Preisliste!$E$10)*Preisliste!$E$34+Preisliste!$E$13*12) -> 1,799.20 €
A81: 770 | B81: =A81*((Preisliste!$I$22*Preisliste!$B$5+Preisliste!$I$23*Preisliste!$B$6+Preisliste!$I$24*Preisliste!$B$7+Preisliste!$I$25*Preisliste!$B$8+Preisliste!$I$26*Preisliste!$B$10)*Preisliste!$B$34) -> 2,464.00 € | C81: =(A81*(Preisliste!$I$22*Preisliste!$C$5+Preisliste!$I$23*Preisliste!$C$6+Preisliste!$I$24*Preisliste!$C$7+Preisliste!$I$25*Preisliste!$C$8+Preisliste!$I$26*Preisliste!$C$10)*Preisliste!$C$34+Preisliste!$C$13*12) -> 1,956.00 € | D81: =(A81*(Preisliste!$I$22*Preisliste!$D$5+Preisliste!$I$23*Preisliste!$D$6+Preisliste!$I$24*Preisliste!$D$7+Preisliste!$I$25*Preisliste!$D$8+Preisliste!$I$26*Preisliste!$D$10)*Preisliste!$D$34+Preisliste!$D$13*12) -> 1,700.00 € | E81: =(A81*(Preisliste!$I$22*Preisliste!$E$5+Preisliste!$I$23*Preisliste!$E$6+Preisliste!$I$24*Preisliste!$E$7+Preisliste!$I$25*Preisliste!$E$8+Preisliste!$I$26*Preisliste!$E$10)*Preisliste!$E$34+Preisliste!$E$13*12) -> 1,810.40 €
A82: 780 | B82: =A82*((Preisliste!$I$22*Preisliste!$B$5+Preisliste!$I$23*Preisliste!$B$6+Preisliste!$I$24*Preisliste!$B$7+Preisliste!$I$25*Preisliste!$B$8+Preisliste!$I$26*Preisliste!$B$10)*Preisliste!$B$34) -> 2,496.00 € | C82: =(A82*(Preisliste!$I$22*Preisliste!$C$5+Preisliste!$I$23*Preisliste!$C$6+Preisliste!$I$24*Preisliste!$C$7+Preisliste!$I$25*Preisliste!$C$8+Preisliste!$I$26*Preisliste!$C$10)*Preisliste!$C$34+Preisliste!$C$13*12) -> 1,980.00 € | D82: =(A82*(Preisliste!$I$22*Preisliste!$D$5+Preisliste!$I$23*Preisliste!$D$6+Preisliste!$I$24*Preisliste!$D$7+Preisliste!$I$25*Preisliste!$D$8+Preisliste!$I$26*Preisliste!$D$10)*Preisliste!$D$34+Preisliste!$D$13*12) -> 1,716.00 € | E82: =(A82*(Preisliste!$I$22*Preisliste!$E$5+Preisliste!$I$23*Preisliste!$E$6+Preisliste!$I$24*Preisliste!$E$7+Preisliste!$I$25*Preisliste!$E$8+Preisliste!$I$26*Preisliste!$E$10)*Preisliste!$E$34+Preisliste!$E$13*12) -> 1,821.60 €
A83: 790 | B83: =A83*((Preisliste!$I$22*Preisliste!$B$5+Preisliste!$I$23*Preisliste!$B$6+Preisliste!$I$24*Preisliste!$B$7+Preisliste!$I$25*Preisliste!$B$8+Preisliste!$I$26*Preisliste!$B$10)*Preisliste!$B$34) -> 2,528.00 € | C83: =(A83*(Preisliste!$I$22*Preisliste!$C$5+Preisliste!$I$23*Preisliste!$C$6+Preisliste!$I$24*Preisliste!$C$7+Preisliste!$I$25*Preisliste!$C$8+Preisliste!$I$26*Preisliste!$C$10)*Preisliste!$C$34+Preisliste!$C$13*12) -> 2,004.00 € | D83: =(A83*(Preisliste!$I$22*Preisliste!$D$5+Preisliste!$I$23*Preisliste!$D$6+Preisliste!$I$24*Preisliste!$D$7+Preisliste!$I$25*Preisliste!$D$8+Preisliste!$I$26*Preisliste!$D$10)*Preisliste!$D$34+Preisliste!$D$13*12) -> 1,732.00 € | E83: =(A83*(Preisliste!$I$22*Preisliste!$E$5+Preisliste!$I$23*Preisliste!$E$6+Preisliste!$I$24*Preisliste!$E$7+Preisliste!$I$25*Preisliste!$E$8+Preisliste!$I$26*Preisliste!$E$10)*Preisliste!$E$34+Preisliste!$E$13*12) -> 1,832.80 €
A84: 800 | B84: =A84*((Preisliste!$I$22*Preisliste!$B$5+Preisliste!$I$23*Preisliste!$B$6+Preisliste!$I$24*Preisliste!$B$7+Preisliste!$I$25*Preisliste!$B$8+Preisliste!$I$26*Preisliste!$B$10)*Preisliste!$B$34) -> 2,560.00 € | C84: =(A84*(Preisliste!$I$22*Preisliste!$C$5+Preisliste!$I$23*Preisliste!$C$6+Preisliste!$I$24*Preisliste!$C$7+Preisliste!$I$25*Preisliste!$C$8+Preisliste!$I$26*Preisliste!$C$10)*Preisliste!$C$34+Preisliste!$C$13*12) -> 2,028.00 € | D84: =(A84*(Preisliste!$I$22*Preisliste!$D$5+Preisliste!$I$23*Preisliste!$D$6+Preisliste!$I$24*Preisliste!$D$7+Preisliste!$I$25*Preisliste!$D$8+Preisliste!$I$26*Preisliste!$D$10)*Preisliste!$D$34+Preisliste!$D$13*12) -> 1,748.00 € | E84: =(A84*(Preisliste!$I$22*Preisliste!$E$5+Preisliste!$I$23*Preisliste!$E$6+Preisliste!$I$24*Preisliste!$E$7+Preisliste!$I$25*Preisliste!$E$8+Preisliste!$I$26*Preisliste!$E$10)*Preisliste!$E$34+Preisliste!$E$13*12) -> 1,844.00 €
A85: 810 | B85: =A85*((Preisliste!$I$22*Preisliste!$B$5+Preisliste!$I$23*Preisliste!$B$6+Preisliste!$I$24*Preisliste!$B$7+Preisliste!$I$25*Preisliste!$B$8+Preisliste!$I$26*Preisliste!$B$10)*Preisliste!$B$34) -> 2,592.00 € | C85: =(A85*(Preisliste!$I$22*Preisliste!$C$5+Preisliste!$I$23*Preisliste!$C$6+Preisliste!$I$24*Preisliste!$C$7+Preisliste!$I$25*Preisliste!$C$8+Preisliste!$I$26*Preisliste!$C$10)*Preisliste!$C$34+Preisliste!$C$13*12) -> 2,052.00 € | D85: =(A85*(Preisliste!$I$22*Preisliste!$D$5+Preisliste!$I$23*Preisliste!$D$6+Preisliste!$I$24*Preisliste!$D$7+Preisliste!$I$25*Preisliste!$D$8+Preisliste!$I$26*Preisliste!$D$10)*Preisliste!$D$34+Preisliste!$D$13*12) -> 1,764.00 € | E85: =(A85*(Preisliste!$I$22*Preisliste!$E$5+Preisliste!$I$23*Preisliste!$E$6+Preisliste!$I$24*Preisliste!$E$7+Preisliste!$I$25*Preisliste!$E$8+Preisliste!$I$26*Preisliste!$E$10)*Preisliste!$E$34+Preisliste!$E$13*12) -> 1,855.20 €
A86: 820 | B86: =A86*((Preisliste!$I$22*Preisliste!$B$5+Preisliste!$I$23*Preisliste!$B$6+Preisliste!$I$24*Preisliste!$B$7+Preisliste!$I$25*Preisliste!$B$8+Preisliste!$I$26*Preisliste!$B$10)*Preisliste!$B$34) -> 2,624.00 € | C86: =(A86*(Preisliste!$I$22*Preisliste!$C$5+Preisliste!$I$23*Preisliste!$C$6+Preisliste!$I$24*Preisliste!$C$7+Preisliste!$I$25*Preisliste!$C$8+Preisliste!$I$26*Preisliste!$C$10)*Preisliste!$C$34+Preisliste!$C$13*12) -> 2,076.00 € | D86: =(A86*(Preisliste!$I$22*Preisliste!$D$5+Preisliste!$I$23*Preisliste!$D$6+Preisliste!$I$24*Preisliste!$D$7+Preisliste!$I$25*Preisliste!$D$8+Preisliste!$I$26*Preisliste!$D$10)*Preisliste!$D$34+Preisliste!$D$13*12) -> 1,780.00 € | E86: =(A86*(Preisliste!$I$22*Preisliste!$E$5+Preisliste!$I$23*Preisliste!$E$6+Preisliste!$I$24*Preisliste!$E$7+Preisliste!$I$25*Preisliste!$E$8+Preisliste!$I$26*Preisliste!$E$10)*Preisliste!$E$34+Preisliste!$E$13*12) -> 1,866.40 €
A87: 830 | B87: =A87*((Preisliste!$I$22*Preisliste!$B$5+Preisliste!$I$23*Preisliste!$B$6+Preisliste!$I$24*Preisliste!$B$7+Preisliste!$I$25*Preisliste!$B$8+Preisliste!$I$26*Preisliste!$B$10)*Preisliste!$B$34) -> 2,656.00 € | C87: =(A87*(Preisliste!$I$22*Preisliste!$C$5+Preisliste!$I$23*Preisliste!$C$6+Preisliste!$I$24*Preisliste!$C$7+Preisliste!$I$25*Preisliste!$C$8+Preisliste!$I$26*Preisliste!$C$10)*Preisliste!$C$34+Preisliste!$C$13*12) -> 2,100.00 € | D87: =(A87*(Preisliste!$I$22*Preisliste!$D$5+Preisliste!$I$23*Preisliste!$D$6+Preisliste!$I$24*Preisliste!$D$7+Preisliste!$I$25*Preisliste!$D$8+Preisliste!$I$26*Preisliste!$D$10)*Preisliste!$D$34+Preisliste!$D$13*12) -> 1,796.00 € | E87: =(A87*(Preisliste!$I$22*Preisliste!$E$5+Preisliste!$I$23*Preisliste!$E$6+Preisliste!$I$24*Preisliste!$E$7+Preisliste!$I$25*Preisliste!$E$8+Preisliste!$I$26*Preisliste!$E$10)*Preisliste!$E$34+Preisliste!$E$13*12) -> 1,877.60 €
A88: 840 | B88: =A88*((Preisliste!$I$22*Preisliste!$B$5+Preisliste!$I$23*Preisliste!$B$6+Preisliste!$I$24*Preisliste!$B$7+Preisliste!$I$25*Preisliste!$B$8+Preisliste!$I$26*Preisliste!$B$10)*Preisliste!$B$34) -> 2,688.00 € | C88: =(A88*(Preisliste!$I$22*Preisliste!$C$5+Preisliste!$I$23*Preisliste!$C$6+Preisliste!$I$24*Preisliste!$C$7+Preisliste!$I$25*Preisliste!$C$8+Preisliste!$I$26*Preisliste!$C$10)*Preisliste!$C$34+Preisliste!$C$13*12) -> 2,124.00 € | D88: =(A88*(Preisliste!$I$22*Preisliste!$D$5+Preisliste!$I$23*Preisliste!$D$6+Preisliste!$I$24*Preisliste!$D$7+Preisliste!$I$25*Preisliste!$D$8+Preisliste!$I$26*Preisliste!$D$10)*Preisliste!$D$34+Preisliste!$D$13*12) -> 1,812.00 € | E88: =(A88*(Preisliste!$I$22*Preisliste!$E$5+Preisliste!$I$23*Preisliste!$E$6+Preisliste!$I$24*Preisliste!$E$7+Preisliste!$I$25*Preisliste!$E$8+Preisliste!$I$26*Preisliste!$E$10)*Preisliste!$E$34+Preisliste!$E$13*12) -> 1,888.80 €
A89: 850 | B89: =A89*((Preisliste!$I$22*Preisliste!$B$5+Preisliste!$I$23*Preisliste!$B$6+Preisliste!$I$24*Preisliste!$B$7+Preisliste!$I$25*Preisliste!$B$8+Preisliste!$I$26*Preisliste!$B$10)*Preisliste!$B$34) -> 2,720.00 € | C89: =(A89*(Preisliste!$I$22*Preisliste!$C$5+Preisliste!$I$23*Preisliste!$C$6+Preisliste!$I$24*Preisliste!$C$7+Preisliste!$I$25*Preisliste!$C$8+Preisliste!$I$26*Preisliste!$C$10)*Preisliste!$C$34+Preisliste!$C$13*12) -> 2,148.00 € | D89: =(A89*(Preisliste!$I$22*Preisliste!$D$5+Preisliste!$I$23*Preisliste!$D$6+Preisliste!$I$24*Preisliste!$D$7+Preisliste!$I$25*Preisliste!$D$8+Preisliste!$I$26*Preisliste!$D$10)*Preisliste!$D$34+Preisliste!$D$13*12) -> 1,828.00 € | E89: =(A89*(Preisliste!$I$22*Preisliste!$E$5+Preisliste!$I$23*Preisliste!$E$6+Preisliste!$I$24*Preisliste!$E$7+Preisliste!$I$25*Preisliste!$E$8+Preisliste!$I$26*Preisliste!$E$10)*Preisliste!$E$34+Preisliste!$E$13*12) -> 1,900.00 €
A90: 860 | B90: =A90*((Preisliste!$I$22*Preisliste!$B$5+Preisliste!$I$23*Preisliste!$B$6+Preisliste!$I$24*Preisliste!$B$7+Preisliste!$I$25*Preisliste!$B$8+Preisliste!$I$26*Preisliste!$B$10)*Preisliste!$B$34) -> 2,752.00 € | C90: =(A90*(Preisliste!$I$22*Preisliste!$C$5+Preisliste!$I$23*Preisliste!$C$6+Preisliste!$I$24*Preisliste!$C$7+Preisliste!$I$25*Preisliste!$C$8+Preisliste!$I$26*Preisliste!$C$10)*Preisliste!$C$34+Preisliste!$C$13*12) -> 2,172.00 € | D90: =(A90*(Preisliste!$I$22*Preisliste!$D$5+Preisliste!$I$23*Preisliste!$D$6+Preisliste!$I$24*Preisliste!$D$7+Preisliste!$I$25*Preisliste!$D$8+Preisliste!$I$26*Preisliste!$D$10)*Preisliste!$D$34+Preisliste!$D$13*12) -> 1,844.00 € | E90: =(A90*(Preisliste!$I$22*Preisliste!$E$5+Preisliste!$I$23*Preisliste!$E$6+Preisliste!$I$24*Preisliste!$E$7+Preisliste!$I$25*Preisliste!$E$8+Preisliste!$I$26*Preisliste!$E$10)*Preisliste!$E$34+Preisliste!$E$13*12) -> 1,911.20 €
A91: 870 | B91: =A91*((Preisliste!$I$22*Preisliste!$B$5+Preisliste!$I$23*Preisliste!$B$6+Preisliste!$I$24*Preisliste!$B$7+Preisliste!$I$25*Preisliste!$B$8+Preisliste!$I$26*Preisliste!$B$10)*Preisliste!$B$34) -> 2,784.00 € | C91: =(A91*(Preisliste!$I$22*Preisliste!$C$5+Preisliste!$I$23*Preisliste!$C$6+Preisliste!$I$24*Preisliste!$C$7+Preisliste!$I$25*Preisliste!$C$8+Preisliste!$I$26*Preisliste!$C$10)*Preisliste!$C$34+Preisliste!$C$13*12) -> 2,196.00 € | D91: =(A91*(Preisliste!$I$22*Preisliste!$D$5+Preisliste!$I$23*Preisliste!$D$6+Preisliste!$I$24*Preisliste!$D$7+Preisliste!$I$25*Preisliste!$D$8+Preisliste!$I$26*Preisliste!$D$10)*Preisliste!$D$34+Preisliste!$D$13*12) -> 1,860.00 € | E91: =(A91*(Preisliste!$I$22*Preisliste!$E$5+Preisliste!$I$23*Preisliste!$E$6+Preisliste!$I$24*Preisliste!$E$7+Preisliste!$I$25*Preisliste!$E$8+Preisliste!$I$26*Preisliste!$E$10)*Preisliste!$E$34+Preisliste!$E$13*12) -> 1,922.40 €
A92: 880 | B92: =A92*((Preisliste!$I$22*Preisliste!$B$5+Preisliste!$I$23*Preisliste!$B$6+Preisliste!$I$24*Preisliste!$B$7+Preisliste!$I$25*Preisliste!$B$8+Preisliste!$I$26*Preisliste!$B$10)*Preisliste!$B$34) -> 2,816.00 € | C92: =(A92*(Preisliste!$I$22*Preisliste!$C$5+Preisliste!$I$23*Preisliste!$C$6+Preisliste!$I$24*Preisliste!$C$7+Preisliste!$I$25*Preisliste!$C$8+Preisliste!$I$26*Preisliste!$C$10)*Preisliste!$C$34+Preisliste!$C$13*12) -> 2,220.00 € | D92: =(A92*(Preisliste!$I$22*Preisliste!$D$5+Preisliste!$I$23*Preisliste!$D$6+Preisliste!$I$24*Preisliste!$D$7+Preisliste!$I$25*Preisliste!$D$8+Preisliste!$I$26*Preisliste!$D$10)*Preisliste!$D$34+Preisliste!$D$13*12) -> 1,876.00 € | E92: =(A92*(Preisliste!$I$22*Preisliste!$E$5+Preisliste!$I$23*Preisliste!$E$6+Preisliste!$I$24*Preisliste!$E$7+Preisliste!$I$25*Preisliste!$E$8+Preisliste!$I$26*Preisliste!$E$10)*Preisliste!$E$34+Preisliste!$E$13*12) -> 1,933.60 €
A93: 890 | B93: =A93*((Preisliste!$I$22*Preisliste!$B$5+Preisliste!$I$23*Preisliste!$B$6+Preisliste!$I$24*Preisliste!$B$7+Preisliste!$I$25*Preisliste!$B$8+Preisliste!$I$26*Preisliste!$B$10)*Preisliste!$B$34) -> 2,848.00 € | C93: =(A93*(Preisliste!$I$22*Preisliste!$C$5+Preisliste!$I$23*Preisliste!$C$6+Preisliste!$I$24*Preisliste!$C$7+Preisliste!$I$25*Preisliste!$C$8+Preisliste!$I$26*Preisliste!$C$10)*Preisliste!$C$34+Preisliste!$C$13*12) -> 2,244.00 € | D93: =(A93*(Preisliste!$I$22*Preisliste!$D$5+Preisliste!$I$23*Preisliste!$D$6+Preisliste!$I$24*Preisliste!$D$7+Preisliste!$I$25*Preisliste!$D$8+Preisliste!$I$26*Preisliste!$D$10)*Preisliste!$D$34+Preisliste!$D$13*12) -> 1,892.00 € | E93: =(A93*(Preisliste!$I$22*Preisliste!$E$5+Preisliste!$I$23*Preisliste!$E$6+Preisliste!$I$24*Preisliste!$E$7+Preisliste!$I$25*Preisliste!$E$8+Preisliste!$I$26*Preisliste!$E$10)*Preisliste!$E$34+Preisliste!$E$13*12) -> 1,944.80 €
A94: 900 | B94: =A94*((Preisliste!$I$22*Preisliste!$B$5+Preisliste!$I$23*Preisliste!$B$6+Preisliste!$I$24*Preisliste!$B$7+Preisliste!$I$25*Preisliste!$B$8+Preisliste!$I$26*Preisliste!$B$10)*Preisliste!$B$34) -> 2,880.00 € | C94: =(A94*(Preisliste!$I$22*Preisliste!$C$5+Preisliste!$I$23*Preisliste!$C$6+Preisliste!$I$24*Preisliste!$C$7+Preisliste!$I$25*Preisliste!$C$8+Preisliste!$I$26*Preisliste!$C$10)*Preisliste!$C$34+Preisliste!$C$13*12) -> 2,268.00 € | D94: =(A94*(Preisliste!$I$22*Preisliste!$D$5+Preisliste!$I$23*Preisliste!$D$6+Preisliste!$I$24*Preisliste!$D$7+Preisliste!$I$25*Preisliste!$D$8+Preisliste!$I$26*Preisliste!$D$10)*Preisliste!$D$34+Preisliste!$D$13*12) -> 1,908.00 € | E94: =(A94*(Preisliste!$I$22*Preisliste!$E$5+Preisliste!$I$23*Preisliste!$E$6+Preisliste!$I$24*Preisliste!$E$7+Preisliste!$I$25*Preisliste!$E$8+Preisliste!$I$26*Preisliste!$E$10)*Preisliste!$E$34+Preisliste!$E$13*12) -> 1,956.00 €
A95: 910 | B95: =A95*((Preisliste!$I$22*Preisliste!$B$5+Preisliste!$I$23*Preisliste!$B$6+Preisliste!$I$24*Preisliste!$B$7+Preisliste!$I$25*Preisliste!$B$8+Preisliste!$I$26*Preisliste!$B$10)*Preisliste!$B$34) -> 2,912.00 € | C95: =(A95*(Preisliste!$I$22*Preisliste!$C$5+Preisliste!$I$23*Preisliste!$C$6+Preisliste!$I$24*Preisliste!$C$7+Preisliste!$I$25*Preisliste!$C$8+Preisliste!$I$26*Preisliste!$C$10)*Preisliste!$C$34+Preisliste!$C$13*12) -> 2,292.00 € | D95: =(A95*(Preisliste!$I$22*Preisliste!$D$5+Preisliste!$I$23*Preisliste!$D$6+Preisliste!$I$24*Preisliste!$D$7+Preisliste!$I$25*Preisliste!$D$8+Preisliste!$I$26*Preisliste!$D$10)*Preisliste!$D$34+Preisliste!$D$13*12) -> 1,924.00 € | E95: =(A95*(Preisliste!$I$22*Preisliste!$E$5+Preisliste!$I$23*Preisliste!$E$6+Preisliste!$I$24*Preisliste!$E$7+Preisliste!$I$25*Preisliste!$E$8+Preisliste!$I$26*Preisliste!$E$10)*Preisliste!$E$34+Preisliste!$E$13*12) -> 1,967.20 €
A96: 920 | B96: =A96*((Preisliste!$I$22*Preisliste!$B$5+Preisliste!$I$23*Preisliste!$B$6+Preisliste!$I$24*Preisliste!$B$7+Preisliste!$I$25*Preisliste!$B$8+Preisliste!$I$26*Preisliste!$B$10)*Preisliste!$B$34) -> 2,944.00 € | C96: =(A96*(Preisliste!$I$22*Preisliste!$C$5+Preisliste!$I$23*Preisliste!$C$6+Preisliste!$I$24*Preisliste!$C$7+Preisliste!$I$25*Preisliste!$C$8+Preisliste!$I$26*Preisliste!$C$10)*Preisliste!$C$34+Preisliste!$C$13*12) -> 2,316.00 € | D96: =(A96*(Preisliste!$I$22*Preisliste!$D$5+Preisliste!$I$23*Preisliste!$D$6+Preisliste!$I$24*Preisliste!$D$7+Preisliste!$I$25*Preisliste!$D$8+Preisliste!$I$26*Preisliste!$D$10)*Preisliste!$D$34+Preisliste!$D$13*12) -> 1,940.00 € | E96: =(A96*(Preisliste!$I$22*Preisliste!$E$5+Preisliste!$I$23*Preisliste!$E$6+Preisliste!$I$24*Preisliste!$E$7+Preisliste!$I$25*Preisliste!$E$8+Preisliste!$I$26*Preisliste!$E$10)*Preisliste!$E$34+Preisliste!$E$13*12) -> 1,978.40 €
A97: 930 | B97: =A97*((Preisliste!$I$22*Preisliste!$B$5+Preisliste!$I$23*Preisliste!$B$6+Preisliste!$I$24*Preisliste!$B$7+Preisliste!$I$25*Preisliste!$B$8+Preisliste!$I$26*Preisliste!$B$10)*Preisliste!$B$34) -> 2,976.00 € | C97: =(A97*(Preisliste!$I$22*Preisliste!$C$5+Preisliste!$I$23*Preisliste!$C$6+Preisliste!$I$24*Preisliste!$C$7+Preisliste!$I$25*Preisliste!$C$8+Preisliste!$I$26*Preisliste!$C$10)*Preisliste!$C$34+Preisliste!$C$13*12) -> 2,340.00 € | D97: =(A97*(Preisliste!$I$22*Preisliste!$D$5+Preisliste!$I$23*Preisliste!$D$6+Preisliste!$I$24*Preisliste!$D$7+Preisliste!$I$25*Preisliste!$D$8+Preisliste!$I$26*Preisliste!$D$10)*Preisliste!$D$34+Preisliste!$D$13*12) -> 1,956.00 € | E97: =(A97*(Preisliste!$I$22*Preisliste!$E$5+Preisliste!$I$23*Preisliste!$E$6+Preisliste!$I$24*Preisliste!$E$7+Preisliste!$I$25*Preisliste!$E$8+Preisliste!$I$26*Preisliste!$E$10)*Preisliste!$E$34+Preisliste!$E$13*12) -> 1,989.60 €
A98: 940 | B98: =A98*((Preisliste!$I$22*Preisliste!$B$5+Preisliste!$I$23*Preisliste!$B$6+Preisliste!$I$24*Preisliste!$B$7+Preisliste!$I$25*Preisliste!$B$8+Preisliste!$I$26*Preisliste!$B$10)*Preisliste!$B$34) -> 3,008.00 € | C98: =(A98*(Preisliste!$I$22*Preisliste!$C$5+Preisliste!$I$23*Preisliste!$C$6+Preisliste!$I$24*Preisliste!$C$7+Preisliste!$I$25*Preisliste!$C$8+Preisliste!$I$26*Preisliste!$C$10)*Preisliste!$C$34+Preisliste!$C$13*12) -> 2,364.00 € | D98: =(A98*(Preisliste!$I$22*Preisliste!$D$5+Preisliste!$I$23*Preisliste!$D$6+Preisliste!$I$24*Preisliste!$D$7+Preisliste!$I$25*Preisliste!$D$8+Preisliste!$I$26*Preisliste!$D$10)*Preisliste!$D$34+Preisliste!$D$13*12) -> 1,972.00 € | E98: =(A98*(Preisliste!$I$22*Preisliste!$E$5+Preisliste!$I$23*Preisliste!$E$6+Preisliste!$I$24*Preisliste!$E$7+Preisliste!$I$25*Preisliste!$E$8+Preisliste!$I$26*Preisliste!$E$10)*Preisliste!$E$34+Preisliste!$E$13*12) -> 2,000.80 €
A99: 950 | B99: =A99*((Preisliste!$I$22*Preisliste!$B$5+Preisliste!$I$23*Preisliste!$B$6+Preisliste!$I$24*Preisliste!$B$7+Preisliste!$I$25*Preisliste!$B$8+Preisliste!$I$26*Preisliste!$B$10)*Preisliste!$B$34) -> 3,040.00 € | C99: =(A99*(Preisliste!$I$22*Preisliste!$C$5+Preisliste!$I$23*Preisliste!$C$6+Preisliste!$I$24*Preisliste!$C$7+Preisliste!$I$25*Preisliste!$C$8+Preisliste!$I$26*Preisliste!$C$10)*Preisliste!$C$34+Preisliste!$C$13*12) -> 2,388.00 € | D99: =(A99*(Preisliste!$I$22*Preisliste!$D$5+Preisliste!$I$23*Preisliste!$D$6+Preisliste!$I$24*Preisliste!$D$7+Preisliste!$I$25*Preisliste!$D$8+Preisliste!$I$26*Preisliste!$D$10)*Preisliste!$D$34+Preisliste!$D$13*12) -> 1,988.00 € | E99: =(A99*(Preisliste!$I$22*Preisliste!$E$5+Preisliste!$I$23*Preisliste!$E$6+Preisliste!$I$24*Preisliste!$E$7+Preisliste!$I$25*Preisliste!$E$8+Preisliste!$I$26*Preisliste!$E$10)*Preisliste!$E$34+Preisliste!$E$13*12) -> 2,012.00 €
A100: 960 | B100: =A100*((Preisliste!$I$22*Preisliste!$B$5+Preisliste!$I$23*Preisliste!$B$6+Preisliste!$I$24*Preisliste!$B$7+Preisliste!$I$25*Preisliste!$B$8+Preisliste!$I$26*Preisliste!$B$10)*Preisliste!$B$34) -> 3,072.00 € | C100: =(A100*(Preisliste!$I$22*Preisliste!$C$5+Preisliste!$I$23*Preisliste!$C$6+Preisliste!$I$24*Preisliste!$C$7+Preisliste!$I$25*Preisliste!$C$8+Preisliste!$I$26*Preisliste!$C$10)*Preisliste!$C$34+Preisliste!$C$13*12) -> 2,412.00 € | D100: =(A100*(Preisliste!$I$22*Preisliste!$D$5+Preisliste!$I$23*Preisliste!$D$6+Preisliste!$I$24*Preisliste!$D$7+Preisliste!$I$25*Preisliste!$D$8+Preisliste!$I$26*Preisliste!$D$10)*Preisliste!$D$34+Preisliste!$D$13*12) -> 2,004.00 € | E100: =(A100*(Preisliste!$I$22*Preisliste!$E$5+Preisliste!$I$23*Preisliste!$E$6+Preisliste!$I$24*Preisliste!$E$7+Preisliste!$I$25*Preisliste!$E$8+Preisliste!$I$26*Preisliste!$E$10)*Preisliste!$E$34+Preisliste!$E$13*12) -> 2,023.20 €
A101: 970 | B101: =A101*((Preisliste!$I$22*Preisliste!$B$5+Preisliste!$I$23*Preisliste!$B$6+Preisliste!$I$24*Preisliste!$B$7+Preisliste!$I$25*Preisliste!$B$8+Preisliste!$I$26*Preisliste!$B$10)*Preisliste!$B$34) -> 3,104.00 € | C101: =(A101*(Preisliste!$I$22*Preisliste!$C$5+Preisliste!$I$23*Preisliste!$C$6+Preisliste!$I$24*Preisliste!$C$7+Preisliste!$I$25*Preisliste!$C$8+Preisliste!$I$26*Preisliste!$C$10)*Preisliste!$C$34+Preisliste!$C$13*12) -> 2,436.00 € | D101: =(A101*(Preisliste!$I$22*Preisliste!$D$5+Preisliste!$I$23*Preisliste!$D$6+Preisliste!$I$24*Preisliste!$D$7+Preisliste!$I$25*Preisliste!$D$8+Preisliste!$I$26*Preisliste!$D$10)*Preisliste!$D$34+Preisliste!$D$13*12) -> 2,020.00 € | E101: =(A101*(Preisliste!$I$22*Preisliste!$E$5+Preisliste!$I$23*Preisliste!$E$6+Preisliste!$I$24*Preisliste!$E$7+Preisliste!$I$25*Preisliste!$E$8+Preisliste!$I$26*Preisliste!$E$10)*Preisliste!$E$34+Preisliste!$E$13*12) -> 2,034.40 €
A102: 980 | B102: =A102*((Preisliste!$I$22*Preisliste!$B$5+Preisliste!$I$23*Preisliste!$B$6+Preisliste!$I$24*Preisliste!$B$7+Preisliste!$I$25*Preisliste!$B$8+Preisliste!$I$26*Preisliste!$B$10)*Preisliste!$B$34) -> 3,136.00 € | C102: =(A102*(Preisliste!$I$22*Preisliste!$C$5+Preisliste!$I$23*Preisliste!$C$6+Preisliste!$I$24*Preisliste!$C$7+Preisliste!$I$25*Preisliste!$C$8+Preisliste!$I$26*Preisliste!$C$10)*Preisliste!$C$34+Preisliste!$C$13*12) -> 2,460.00 € | D102: =(A102*(Preisliste!$I$22*Preisliste!$D$5+Preisliste!$I$23*Preisliste!$D$6+Preisliste!$I$24*Preisliste!$D$7+Preisliste!$I$25*Preisliste!$D$8+Preisliste!$I$26*Preisliste!$D$10)*Preisliste!$D$34+Preisliste!$D$13*12) -> 2,036.00 € | E102: =(A102*(Preisliste!$I$22*Preisliste!$E$5+Preisliste!$I$23*Preisliste!$E$6+Preisliste!$I$24*Preisliste!$E$7+Preisliste!$I$25*Preisliste!$E$8+Preisliste!$I$26*Preisliste!$E$10)*Preisliste!$E$34+Preisliste!$E$13*12) -> 2,045.60 €
A103: 990 | B103: =A103*((Preisliste!$I$22*Preisliste!$B$5+Preisliste!$I$23*Preisliste!$B$6+Preisliste!$I$24*Preisliste!$B$7+Preisliste!$I$25*Preisliste!$B$8+Preisliste!$I$26*Preisliste!$B$10)*Preisliste!$B$34) -> 3,168.00 € | C103: =(A103*(Preisliste!$I$22*Preisliste!$C$5+Preisliste!$I$23*Preisliste!$C$6+Preisliste!$I$24*Preisliste!$C$7+Preisliste!$I$25*Preisliste!$C$8+Preisliste!$I$26*Preisliste!$C$10)*Preisliste!$C$34+Preisliste!$C$13*12) -> 2,484.00 € | D103: =(A103*(Preisliste!$I$22*Preisliste!$D$5+Preisliste!$I$23*Preisliste!$D$6+Preisliste!$I$24*Preisliste!$D$7+Preisliste!$I$25*Preisliste!$D$8+Preisliste!$I$26*Preisliste!$D$10)*Preisliste!$D$34+Preisliste!$D$13*12) -> 2,052.00 € | E103: =(A103*(Preisliste!$I$22*Preisliste!$E$5+Preisliste!$I$23*Preisliste!$E$6+Preisliste!$I$24*Preisliste!$E$7+Preisliste!$I$25*Preisliste!$E$8+Preisliste!$I$26*Preisliste!$E$10)*Preisliste!$E$34+Preisliste!$E$13*12) -> 2,056.80 €
A104: 1,000 | B104: =A104*((Preisliste!$I$22*Preisliste!$B$5+Preisliste!$I$23*Preisliste!$B$6+Preisliste!$I$24*Preisliste!$B$7+Preisliste!$I$25*Preisliste!$B$8+Preisliste!$I$26*Preisliste!$B$10)*Preisliste!$B$34) -> 3,200.00 € | C104: =(A104*(Preisliste!$I$22*Preisliste!$C$5+Preisliste!$I$23*Preisliste!$C$6+Preisliste!$I$24*Preisliste!$C$7+Preisliste!$I$25*Preisliste!$C$8+Preisliste!$I$26*Preisliste!$C$10)*Preisliste!$C$34+Preisliste!$C$13*12) -> 2,508.00 € | D104: =(A104*(Preisliste!$I$22*Preisliste!$D$5+Preisliste!$I$23*Preisliste!$D$6+Preisliste!$I$24*Preisliste!$D$7+Preisliste!$I$25*Preisliste!$D$8+Preisliste!$I$26*Preisliste!$D$10)*Preisliste!$D$34+Preisliste!$D$13*12) -> 2,068.00 € | E104: =(A104*(Preisliste!$I$22*Preisliste!$E$5+Preisliste!$I$23*Preisliste!$E$6+Preisliste!$I$24*Preisliste!$E$7+Preisliste!$I$25*Preisliste!$E$8+Preisliste!$I$26*Preisliste!$E$10)*Preisliste!$E$34+Preisliste!$E$13*12) -> 2,068.00 €
A105: 1,010 | B105: =A105*((Preisliste!$I$22*Preisliste!$B$5+Preisliste!$I$23*Preisliste!$B$6+Preisliste!$I$24*Preisliste!$B$7+Preisliste!$I$25*Preisliste!$B$8+Preisliste!$I$26*Preisliste!$B$10)*Preisliste!$B$34) -> 3,232.00 € | C105: =(A105*(Preisliste!$I$22*Preisliste!$C$5+Preisliste!$I$23*Preisliste!$C$6+Preisliste!$I$24*Preisliste!$C$7+Preisliste!$I$25*Preisliste!$C$8+Preisliste!$I$26*Preisliste!$C$10)*Preisliste!$C$34+Preisliste!$C$13*12) -> 2,532.00 € | D105: =(A105*(Preisliste!$I$22*Preisliste!$D$5+Preisliste!$I$23*Preisliste!$D$6+Preisliste!$I$24*Preisliste!$D$7+Preisliste!$I$25*Preisliste!$D$8+Preisliste!$I$26*Preisliste!$D$10)*Preisliste!$D$34+Preisliste!$D$13*12) -> 2,084.00 € | E105: =(A105*(Preisliste!$I$22*Preisliste!$E$5+Preisliste!$I$23*Preisliste!$E$6+Preisliste!$I$24*Preisliste!$E$7+Preisliste!$I$25*Preisliste!$E$8+Preisliste!$I$26*Preisliste!$E$10)*Preisliste!$E$34+Preisliste!$E$13*12) -> 2,079.20 €
A106: 1,020 | B106: =A106*((Preisliste!$I$22*Preisliste!$B$5+Preisliste!$I$23*Preisliste!$B$6+Preisliste!$I$24*Preisliste!$B$7+Preisliste!$I$25*Preisliste!$B$8+Preisliste!$I$26*Preisliste!$B$10)*Preisliste!$B$34) -> 3,264.00 € | C106: =(A106*(Preisliste!$I$22*Preisliste!$C$5+Preisliste!$I$23*Preisliste!$C$6+Preisliste!$I$24*Preisliste!$C$7+Preisliste!$I$25*Preisliste!$C$8+Preisliste!$I$26*Preisliste!$C$10)*Preisliste!$C$34+Preisliste!$C$13*12) -> 2,556.00 € | D106: =(A106*(Preisliste!$I$22*Preisliste!$D$5+Preisliste!$I$23*Preisliste!$D$6+Preisliste!$I$24*Preisliste!$D$7+Preisliste!$I$25*Preisliste!$D$8+Preisliste!$I$26*Preisliste!$D$10)*Preisliste!$D$34+Preisliste!$D$13*12) -> 2,100.00 € | E106: =(A106*(Preisliste!$I$22*Preisliste!$E$5+Preisliste!$I$23*Preisliste!$E$6+Preisliste!$I$24*Preisliste!$E$7+Preisliste!$I$25*Preisliste!$E$8+Preisliste!$I$26*Preisliste!$E$10)*Preisliste!$E$34+Preisliste!$E$13*12) -> 2,090.40 €
A107: 1,030 | B107: =A107*((Preisliste!$I$22*Preisliste!$B$5+Preisliste!$I$23*Preisliste!$B$6+Preisliste!$I$24*Preisliste!$B$7+Preisliste!$I$25*Preisliste!$B$8+Preisliste!$I$26*Preisliste!$B$10)*Preisliste!$B$34) -> 3,296.00 € | C107: =(A107*(Preisliste!$I$22*Preisliste!$C$5+Preisliste!$I$23*Preisliste!$C$6+Preisliste!$I$24*Preisliste!$C$7+Preisliste!$I$25*Preisliste!$C$8+Preisliste!$I$26*Preisliste!$C$10)*Preisliste!$C$34+Preisliste!$C$13*12) -> 2,580.00 € | D107: =(A107*(Preisliste!$I$22*Preisliste!$D$5+Preisliste!$I$23*Preisliste!$D$6+Preisliste!$I$24*Preisliste!$D$7+Preisliste!$I$25*Preisliste!$D$8+Preisliste!$I$26*Preisliste!$D$10)*Preisliste!$D$34+Preisliste!$D$13*12) -> 2,116.00 € | E107: =(A107*(Preisliste!$I$22*Preisliste!$E$5+Preisliste!$I$23*Preisliste!$E$6+Preisliste!$I$24*Preisliste!$E$7+Preisliste!$I$25*Preisliste!$E$8+Preisliste!$I$26*Preisliste!$E$10)*Preisliste!$E$34+Preisliste!$E$13*12) -> 2,101.60 €
A108: 1,040 | B108: =A108*((Preisliste!$I$22*Preisliste!$B$5+Preisliste!$I$23*Preisliste!$B$6+Preisliste!$I$24*Preisliste!$B$7+Preisliste!$I$25*Preisliste!$B$8+Preisliste!$I$26*Preisliste!$B$10)*Preisliste!$B$34) -> 3,328.00 € | C108: =(A108*(Preisliste!$I$22*Preisliste!$C$5+Preisliste!$I$23*Preisliste!$C$6+Preisliste!$I$24*Preisliste!$C$7+Preisliste!$I$25*Preisliste!$C$8+Preisliste!$I$26*Preisliste!$C$10)*Preisliste!$C$34+Preisliste!$C$13*12) -> 2,604.00 € | D108: =(A108*(Preisliste!$I$22*Preisliste!$D$5+Preisliste!$I$23*Preisliste!$D$6+Preisliste!$I$24*Preisliste!$D$7+Preisliste!$I$25*Preisliste!$D$8+Preisliste!$I$26*Preisliste!$D$10)*Preisliste!$D$34+Preisliste!$D$13*12) -> 2,132.00 € | E108: =(A108*(Preisliste!$I$22*Preisliste!$E$5+Preisliste!$I$23*Preisliste!$E$6+Preisliste!$I$24*Preisliste!$E$7+Preisliste!$I$25*Preisliste!$E$8+Preisliste!$I$26*Preisliste!$E$10)*Preisliste!$E$34+Preisliste!$E$13*12) -> 2,112.80 €
A109: 1,050 | B109: =A109*((Preisliste!$I$22*Preisliste!$B$5+Preisliste!$I$23*Preisliste!$B$6+Preisliste!$I$24*Preisliste!$B$7+Preisliste!$I$25*Preisliste!$B$8+Preisliste!$I$26*Preisliste!$B$10)*Preisliste!$B$34) -> 3,360.00 € | C109: =(A109*(Preisliste!$I$22*Preisliste!$C$5+Preisliste!$I$23*Preisliste!$C$6+Preisliste!$I$24*Preisliste!$C$7+Preisliste!$I$25*Preisliste!$C$8+Preisliste!$I$26*Preisliste!$C$10)*Preisliste!$C$34+Preisliste!$C$13*12) -> 2,628.00 € | D109: =(A109*(Preisliste!$I$22*Preisliste!$D$5+Preisliste!$I$23*Preisliste!$D$6+Preisliste!$I$24*Preisliste!$D$7+Preisliste!$I$25*Preisliste!$D$8+Preisliste!$I$26*Preisliste!$D$10)*Preisliste!$D$34+Preisliste!$D$13*12) -> 2,148.00 € | E109: =(A109*(Preisliste!$I$22*Preisliste!$E$5+Preisliste!$I$23*Preisliste!$E$6+Preisliste!$I$24*Preisliste!$E$7+Preisliste!$I$25*Preisliste!$E$8+Preisliste!$I$26*Preisliste!$E$10)*Preisliste!$E$34+Preisliste!$E$13*12) -> 2,124.00 €
A110: 1,060 | B110: =A110*((Preisliste!$I$22*Preisliste!$B$5+Preisliste!$I$23*Preisliste!$B$6+Preisliste!$I$24*Preisliste!$B$7+Preisliste!$I$25*Preisliste!$B$8+Preisliste!$I$26*Preisliste!$B$10)*Preisliste!$B$34) -> 3,392.00 € | C110: =(A110*(Preisliste!$I$22*Preisliste!$C$5+Preisliste!$I$23*Preisliste!$C$6+Preisliste!$I$24*Preisliste!$C$7+Preisliste!$I$25*Preisliste!$C$8+Preisliste!$I$26*Preisliste!$C$10)*Preisliste!$C$34+Preisliste!$C$13*12) -> 2,652.00 € | D110: =(A110*(Preisliste!$I$22*Preisliste!$D$5+Preisliste!$I$23*Preisliste!$D$6+Preisliste!$I$24*Preisliste!$D$7+Preisliste!$I$25*Preisliste!$D$8+Preisliste!$I$26*Preisliste!$D$10)*Preisliste!$D$34+Preisliste!$D$13*12) -> 2,164.00 € | E110: =(A110*(Preisliste!$I$22*Preisliste!$E$5+Preisliste!$I$23*Preisliste!$E$6+Preisliste!$I$24*Preisliste!$E$7+Preisliste!$I$25*Preisliste!$E$8+Preisliste!$I$26*Preisliste!$E$10)*Preisliste!$E$34+Preisliste!$E$13*12) -> 2,135.20 €
A111: 1,070 | B111: =A111*((Preisliste!$I$22*Preisliste!$B$5+Preisliste!$I$23*Preisliste!$B$6+Preisliste!$I$24*Preisliste!$B$7+Preisliste!$I$25*Preisliste!$B$8+Preisliste!$I$26*Preisliste!$B$10)*Preisliste!$B$34) -> 3,424.00 € | C111: =(A111*(Preisliste!$I$22*Preisliste!$C$5+Preisliste!$I$23*Preisliste!$C$6+Preisliste!$I$24*Preisliste!$C$7+Preisliste!$I$25*Preisliste!$C$8+Preisliste!$I$26*Preisliste!$C$10)*Preisliste!$C$34+Preisliste!$C$13*12) -> 2,676.00 € | D111: =(A111*(Preisliste!$I$22*Preisliste!$D$5+Preisliste!$I$23*Preisliste!$D$6+Preisliste!$I$24*Preisliste!$D$7+Preisliste!$I$25*Preisliste!$D$8+Preisliste!$I$26*Preisliste!$D$10)*Preisliste!$D$34+Preisliste!$D$13*12) -> 2,180.00 € | E111: =(A111*(Preisliste!$I$22*Preisliste!$E$5+Preisliste!$I$23*Preisliste!$E$6+Preisliste!$I$24*Preisliste!$E$7+Preisliste!$I$25*Preisliste!$E$8+Preisliste!$I$26*Preisliste!$E$10)*Preisliste!$E$34+Preisliste!$E$13*12) -> 2,146.40 €
A112: 1,080 | B112: =A112*((Preisliste!$I$22*Preisliste!$B$5+Preisliste!$I$23*Preisliste!$B$6+Preisliste!$I$24*Preisliste!$B$7+Preisliste!$I$25*Preisliste!$B$8+Preisliste!$I$26*Preisliste!$B$10)*Preisliste!$B$34) -> 3,456.00 € | C112: =(A112*(Preisliste!$I$22*Preisliste!$C$5+Preisliste!$I$23*Preisliste!$C$6+Preisliste!$I$24*Preisliste!$C$7+Preisliste!$I$25*Preisliste!$C$8+Preisliste!$I$26*Preisliste!$C$10)*Preisliste!$C$34+Preisliste!$C$13*12) -> 2,700.00 € | D112: =(A112*(Preisliste!$I$22*Preisliste!$D$5+Preisliste!$I$23*Preisliste!$D$6+Preisliste!$I$24*Preisliste!$D$7+Preisliste!$I$25*Preisliste!$D$8+Preisliste!$I$26*Preisliste!$D$10)*Preisliste!$D$34+Preisliste!$D$13*12) -> 2,196.00 € | E112: =(A112*(Preisliste!$I$22*Preisliste!$E$5+Preisliste!$I$23*Preisliste!$E$6+Preisliste!$I$24*Preisliste!$E$7+Preisliste!$I$25*Preisliste!$E$8+Preisliste!$I$26*Preisliste!$E$10)*Preisliste!$E$34+Preisliste!$E$13*12) -> 2,157.60 €
A113: 1,090 | B113: =A113*((Preisliste!$I$22*Preisliste!$B$5+Preisliste!$I$23*Preisliste!$B$6+Preisliste!$I$24*Preisliste!$B$7+Preisliste!$I$25*Preisliste!$B$8+Preisliste!$I$26*Preisliste!$B$10)*Preisliste!$B$34) -> 3,488.00 € | C113: =(A113*(Preisliste!$I$22*Preisliste!$C$5+Preisliste!$I$23*Preisliste!$C$6+Preisliste!$I$24*Preisliste!$C$7+Preisliste!$I$25*Preisliste!$C$8+Preisliste!$I$26*Preisliste!$C$10)*Preisliste!$C$34+Preisliste!$C$13*12) -> 2,724.00 € | D113: =(A113*(Preisliste!$I$22*Preisliste!$D$5+Preisliste!$I$23*Preisliste!$D$6+Preisliste!$I$24*Preisliste!$D$7+Preisliste!$I$25*Preisliste!$D$8+Preisliste!$I$26*Preisliste!$D$10)*Preisliste!$D$34+Preisliste!$D$13*12) -> 2,212.00 € | E113: =(A113*(Preisliste!$I$22*Preisliste!$E$5+Preisliste!$I$23*Preisliste!$E$6+Preisliste!$I$24*Preisliste!$E$7+Preisliste!$I$25*Preisliste!$E$8+Preisliste!$I$26*Preisliste!$E$10)*Preisliste!$E$34+Preisliste!$E$13*12) -> 2,168.80 €
A114: 1,100 | B114: =A114*((Preisliste!$I$22*Preisliste!$B$5+Preisliste!$I$23*Preisliste!$B$6+Preisliste!$I$24*Preisliste!$B$7+Preisliste!$I$25*Preisliste!$B$8+Preisliste!$I$26*Preisliste!$B$10)*Preisliste!$B$34) -> 3,520.00 € | C114: =(A114*(Preisliste!$I$22*Preisliste!$C$5+Preisliste!$I$23*Preisliste!$C$6+Preisliste!$I$24*Preisliste!$C$7+Preisliste!$I$25*Preisliste!$C$8+Preisliste!$I$26*Preisliste!$C$10)*Preisliste!$C$34+Preisliste!$C$13*12) -> 2,748.00 € | D114: =(A114*(Preisliste!$I$22*Preisliste!$D$5+Preisliste!$I$23*Preisliste!$D$6+Preisliste!$I$24*Preisliste!$D$7+Preisliste!$I$25*Preisliste!$D$8+Preisliste!$I$26*Preisliste!$D$10)*Preisliste!$D$34+Preisliste!$D$13*12) -> 2,228.00 € | E114: =(A114*(Preisliste!$I$22*Preisliste!$E$5+Preisliste!$I$23*Preisliste!$E$6+Preisliste!$I$24*Preisliste!$E$7+Preisliste!$I$25*Preisliste!$E$8+Preisliste!$I$26*Preisliste!$E$10)*Preisliste!$E$34+Preisliste!$E$13*12) -> 2,180.00 €
A115: 1,110 | B115: =A115*((Preisliste!$I$22*Preisliste!$B$5+Preisliste!$I$23*Preisliste!$B$6+Preisliste!$I$24*Preisliste!$B$7+Preisliste!$I$25*Preisliste!$B$8+Preisliste!$I$26*Preisliste!$B$10)*Preisliste!$B$34) -> 3,552.00 € | C115: =(A115*(Preisliste!$I$22*Preisliste!$C$5+Preisliste!$I$23*Preisliste!$C$6+Preisliste!$I$24*Preisliste!$C$7+Preisliste!$I$25*Preisliste!$C$8+Preisliste!$I$26*Preisliste!$C$10)*Preisliste!$C$34+Preisliste!$C$13*12) -> 2,772.00 € | D115: =(A115*(Preisliste!$I$22*Preisliste!$D$5+Preisliste!$I$23*Preisliste!$D$6+Preisliste!$I$24*Preisliste!$D$7+Preisliste!$I$25*Preisliste!$D$8+Preisliste!$I$26*Preisliste!$D$10)*Preisliste!$D$34+Preisliste!$D$13*12) -> 2,244.00 € | E115: =(A115*(Preisliste!$I$22*Preisliste!$E$5+Preisliste!$I$23*Preisliste!$E$6+Preisliste!$I$24*Preisliste!$E$7+Preisliste!$I$25*Preisliste!$E$8+Preisliste!$I$26*Preisliste!$E$10)*Preisliste!$E$34+Preisliste!$E$13*12) -> 2,191.20 €
A116: 1,120 | B116: =A116*((Preisliste!$I$22*Preisliste!$B$5+Preisliste!$I$23*Preisliste!$B$6+Preisliste!$I$24*Preisliste!$B$7+Preisliste!$I$25*Preisliste!$B$8+Preisliste!$I$26*Preisliste!$B$10)*Preisliste!$B$34) -> 3,584.00 € | C116: =(A116*(Preisliste!$I$22*Preisliste!$C$5+Preisliste!$I$23*Preisliste!$C$6+Preisliste!$I$24*Preisliste!$C$7+Preisliste!$I$25*Preisliste!$C$8+Preisliste!$I$26*Preisliste!$C$10)*Preisliste!$C$34+Preisliste!$C$13*12) -> 2,796.00 € | D116: =(A116*(Preisliste!$I$22*Preisliste!$D$5+Preisliste!$I$23*Preisliste!$D$6+Preisliste!$I$24*Preisliste!$D$7+Preisliste!$I$25*Preisliste!$D$8+Preisliste!$I$26*Preisliste!$D$10)*Preisliste!$D$34+Preisliste!$D$13*12) -> 2,260.00 € | E116: =(A116*(Preisliste!$I$22*Preisliste!$E$5+Preisliste!$I$23*Preisliste!$E$6+Preisliste!$I$24*Preisliste!$E$7+Preisliste!$I$25*Preisliste!$E$8+Preisliste!$I$26*Preisliste!$E$10)*Preisliste!$E$34+Preisliste!$E$13*12) -> 2,202.40 €
A117: 1,130 | B117: =A117*((Preisliste!$I$22*Preisliste!$B$5+Preisliste!$I$23*Preisliste!$B$6+Preisliste!$I$24*Preisliste!$B$7+Preisliste!$I$25*Preisliste!$B$8+Preisliste!$I$26*Preisliste!$B$10)*Preisliste!$B$34) -> 3,616.00 € | C117: =(A117*(Preisliste!$I$22*Preisliste!$C$5+Preisliste!$I$23*Preisliste!$C$6+Preisliste!$I$24*Preisliste!$C$7+Preisliste!$I$25*Preisliste!$C$8+Preisliste!$I$26*Preisliste!$C$10)*Preisliste!$C$34+Preisliste!$C$13*12) -> 2,820.00 € | D117: =(A117*(Preisliste!$I$22*Preisliste!$D$5+Preisliste!$I$23*Preisliste!$D$6+Preisliste!$I$24*Preisliste!$D$7+Preisliste!$I$25*Preisliste!$D$8+Preisliste!$I$26*Preisliste!$D$10)*Preisliste!$D$34+Preisliste!$D$13*12) -> 2,276.00 € | E117: =(A117*(Preisliste!$I$22*Preisliste!$E$5+Preisliste!$I$23*Preisliste!$E$6+Preisliste!$I$24*Preisliste!$E$7+Preisliste!$I$25*Preisliste!$E$8+Preisliste!$I$26*Preisliste!$E$10)*Preisliste!$E$34+Preisliste!$E$13*12) -> 2,213.60 €
A118: 1,140 | B118: =A118*((Preisliste!$I$22*Preisliste!$B$5+Preisliste!$I$23*Preisliste!$B$6+Preisliste!$I$24*Preisliste!$B$7+Preisliste!$I$25*Preisliste!$B$8+Preisliste!$I$26*Preisliste!$B$10)*Preisliste!$B$34) -> 3,648.00 € | C118: =(A118*(Preisliste!$I$22*Preisliste!$C$5+Preisliste!$I$23*Preisliste!$C$6+Preisliste!$I$24*Preisliste!$C$7+Preisliste!$I$25*Preisliste!$C$8+Preisliste!$I$26*Preisliste!$C$10)*Preisliste!$C$34+Preisliste!$C$13*12) -> 2,844.00 € | D118: =(A118*(Preisliste!$I$22*Preisliste!$D$5+Preisliste!$I$23*Preisliste!$D$6+Preisliste!$I$24*Preisliste!$D$7+Preisliste!$I$25*Preisliste!$D$8+Preisliste!$I$26*Preisliste!$D$10)*Preisliste!$D$34+Preisliste!$D$13*12) -> 2,292.00 € | E118: =(A118*(Preisliste!$I$22*Preisliste!$E$5+Preisliste!$I$23*Preisliste!$E$6+Preisliste!$I$24*Preisliste!$E$7+Preisliste!$I$25*Preisliste!$E$8+Preisliste!$I$26*Preisliste!$E$10)*Preisliste!$E$34+Preisliste!$E$13*12) -> 2,224.80 €
A119: 1,150 | B119: =A119*((Preisliste!$I$22*Preisliste!$B$5+Preisliste!$I$23*Preisliste!$B$6+Preisliste!$I$24*Preisliste!$B$7+Preisliste!$I$25*Preisliste!$B$8+Preisliste!$I$26*Preisliste!$B$10)*Preisliste!$B$34) -> 3,680.00 € | C119: =(A119*(Preisliste!$I$22*Preisliste!$C$5+Preisliste!$I$23*Preisliste!$C$6+Preisliste!$I$24*Preisliste!$C$7+Preisliste!$I$25*Preisliste!$C$8+Preisliste!$I$26*Preisliste!$C$10)*Preisliste!$C$34+Preisliste!$C$13*12) -> 2,868.00 € | D119: =(A119*(Preisliste!$I$22*Preisliste!$D$5+Preisliste!$I$23*Preisliste!$D$6+Preisliste!$I$24*Preisliste!$D$7+Preisliste!$I$25*Preisliste!$D$8+Preisliste!$I$26*Preisliste!$D$10)*Preisliste!$D$34+Preisliste!$D$13*12) -> 2,308.00 € | E119: =(A119*(Preisliste!$I$22*Preisliste!$E$5+Preisliste!$I$23*Preisliste!$E$6+Preisliste!$I$24*Preisliste!$E$7+Preisliste!$I$25*Preisliste!$E$8+Preisliste!$I$26*Preisliste!$E$10)*Preisliste!$E$34+Preisliste!$E$13*12) -> 2,236.00 €
A120: 1,160 | B120: =A120*((Preisliste!$I$22*Preisliste!$B$5+Preisliste!$I$23*Preisliste!$B$6+Preisliste!$I$24*Preisliste!$B$7+Preisliste!$I$25*Preisliste!$B$8+Preisliste!$I$26*Preisliste!$B$10)*Preisliste!$B$34) -> 3,712.00 € | C120: =(A120*(Preisliste!$I$22*Preisliste!$C$5+Preisliste!$I$23*Preisliste!$C$6+Preisliste!$I$24*Preisliste!$C$7+Preisliste!$I$25*Preisliste!$C$8+Preisliste!$I$26*Preisliste!$C$10)*Preisliste!$C$34+Preisliste!$C$13*12) -> 2,892.00 € | D120: =(A120*(Preisliste!$I$22*Preisliste!$D$5+Preisliste!$I$23*Preisliste!$D$6+Preisliste!$I$24*Preisliste!$D$7+Preisliste!$I$25*Preisliste!$D$8+Preisliste!$I$26*Preisliste!$D$10)*Preisliste!$D$34+Preisliste!$D$13*12) -> 2,324.00 € | E120: =(A120*(Preisliste!$I$22*Preisliste!$E$5+Preisliste!$I$23*Preisliste!$E$6+Preisliste!$I$24*Preisliste!$E$7+Preisliste!$I$25*Preisliste!$E$8+Preisliste!$I$26*Preisliste!$E$10)*Preisliste!$E$34+Preisliste!$E$13*12) -> 2,247.20 €
A121: 1,170 | B121: =A121*((Preisliste!$I$22*Preisliste!$B$5+Preisliste!$I$23*Preisliste!$B$6+Preisliste!$I$24*Preisliste!$B$7+Preisliste!$I$25*Preisliste!$B$8+Preisliste!$I$26*Preisliste!$B$10)*Preisliste!$B$34) -> 3,744.00 € | C121: =(A121*(Preisliste!$I$22*Preisliste!$C$5+Preisliste!$I$23*Preisliste!$C$6+Preisliste!$I$24*Preisliste!$C$7+Preisliste!$I$25*Preisliste!$C$8+Preisliste!$I$26*Preisliste!$C$10)*Preisliste!$C$34+Preisliste!$C$13*12) -> 2,916.00 € | D121: =(A121*(Preisliste!$I$22*Preisliste!$D$5+Preisliste!$I$23*Preisliste!$D$6+Preisliste!$I$24*Preisliste!$D$7+Preisliste!$I$25*Preisliste!$D$8+Preisliste!$I$26*Preisliste!$D$10)*Preisliste!$D$34+Preisliste!$D$13*12) -> 2,340.00 € | E121: =(A121*(Preisliste!$I$22*Preisliste!$E$5+Preisliste!$I$23*Preisliste!$E$6+Preisliste!$I$24*Preisliste!$E$7+Preisliste!$I$25*Preisliste!$E$8+Preisliste!$I$26*Preisliste!$E$10)*Preisliste!$E$34+Preisliste!$E$13*12) -> 2,258.40 €
A122: 1,180 | B122: =A122*((Preisliste!$I$22*Preisliste!$B$5+Preisliste!$I$23*Preisliste!$B$6+Preisliste!$I$24*Preisliste!$B$7+Preisliste!$I$25*Preisliste!$B$8+Preisliste!$I$26*Preisliste!$B$10)*Preisliste!$B$34) -> 3,776.00 € | C122: =(A122*(Preisliste!$I$22*Preisliste!$C$5+Preisliste!$I$23*Preisliste!$C$6+Preisliste!$I$24*Preisliste!$C$7+Preisliste!$I$25*Preisliste!$C$8+Preisliste!$I$26*Preisliste!$C$10)*Preisliste!$C$34+Preisliste!$C$13*12) -> 2,940.00 € | D122: =(A122*(Preisliste!$I$22*Preisliste!$D$5+Preisliste!$I$23*Preisliste!$D$6+Preisliste!$I$24*Preisliste!$D$7+Preisliste!$I$25*Preisliste!$D$8+Preisliste!$I$26*Preisliste!$D$10)*Preisliste!$D$34+Preisliste!$D$13*12) -> 2,356.00 € | E122: =(A122*(Preisliste!$I$22*Preisliste!$E$5+Preisliste!$I$23*Preisliste!$E$6+Preisliste!$I$24*Preisliste!$E$7+Preisliste!$I$25*Preisliste!$E$8+Preisliste!$I$26*Preisliste!$E$10)*Preisliste!$E$34+Preisliste!$E$13*12) -> 2,269.60 €
A123: 1,190 | B123: =A123*((Preisliste!$I$22*Preisliste!$B$5+Preisliste!$I$23*Preisliste!$B$6+Preisliste!$I$24*Preisliste!$B$7+Preisliste!$I$25*Preisliste!$B$8+Preisliste!$I$26*Preisliste!$B$10)*Preisliste!$B$34) -> 3,808.00 € | C123: =(A123*(Preisliste!$I$22*Preisliste!$C$5+Preisliste!$I$23*Preisliste!$C$6+Preisliste!$I$24*Preisliste!$C$7+Preisliste!$I$25*Preisliste!$C$8+Preisliste!$I$26*Preisliste!$C$10)*Preisliste!$C$34+Preisliste!$C$13*12) -> 2,964.00 € | D123: =(A123*(Preisliste!$I$22*Preisliste!$D$5+Preisliste!$I$23*Preisliste!$D$6+Preisliste!$I$24*Preisliste!$D$7+Preisliste!$I$25*Preisliste!$D$8+Preisliste!$I$26*Preisliste!$D$10)*Preisliste!$D$34+Preisliste!$D$13*12) -> 2,372.00 € | E123: =(A123*(Preisliste!$I$22*Preisliste!$E$5+Preisliste!$I$23*Preisliste!$E$6+Preisliste!$I$24*Preisliste!$E$7+Preisliste!$I$25*Preisliste!$E$8+Preisliste!$I$26*Preisliste!$E$10)*Preisliste!$E$34+Preisliste!$E$13*12) -> 2,280.80 €
A124: 1,200 | B124: =A124*((Preisliste!$I$22*Preisliste!$B$5+Preisliste!$I$23*Preisliste!$B$6+Preisliste!$I$24*Preisliste!$B$7+Preisliste!$I$25*Preisliste!$B$8+Preisliste!$I$26*Preisliste!$B$10)*Preisliste!$B$34) -> 3,840.00 € | C124: =(A124*(Preisliste!$I$22*Preisliste!$C$5+Preisliste!$I$23*Preisliste!$C$6+Preisliste!$I$24*Preisliste!$C$7+Preisliste!$I$25*Preisliste!$C$8+Preisliste!$I$26*Preisliste!$C$10)*Preisliste!$C$34+Preisliste!$C$13*12) -> 2,988.00 € | D124: =(A124*(Preisliste!$I$22*Preisliste!$D$5+Preisliste!$I$23*Preisliste!$D$6+Preisliste!$I$24*Preisliste!$D$7+Preisliste!$I$25*Preisliste!$D$8+Preisliste!$I$26*Preisliste!$D$10)*Preisliste!$D$34+Preisliste!$D$13*12) -> 2,388.00 € | E124: =(A124*(Preisliste!$I$22*Preisliste!$E$5+Preisliste!$I$23*Preisliste!$E$6+Preisliste!$I$24*Preisliste!$E$7+Preisliste!$I$25*Preisliste!$E$8+Preisliste!$I$26*Preisliste!$E$10)*Preisliste!$E$34+Preisliste!$E$13*12) -> 2,292.00 €
A125: 1,210 | B125: =A125*((Preisliste!$I$22*Preisliste!$B$5+Preisliste!$I$23*Preisliste!$B$6+Preisliste!$I$24*Preisliste!$B$7+Preisliste!$I$25*Preisliste!$B$8+Preisliste!$I$26*Preisliste!$B$10)*Preisliste!$B$34) -> 3,872.00 € | C125: =(A125*(Preisliste!$I$22*Preisliste!$C$5+Preisliste!$I$23*Preisliste!$C$6+Preisliste!$I$24*Preisliste!$C$7+Preisliste!$I$25*Preisliste!$C$8+Preisliste!$I$26*Preisliste!$C$10)*Preisliste!$C$34+Preisliste!$C$13*12) -> 3,012.00 € | D125: =(A125*(Preisliste!$I$22*Preisliste!$D$5+Preisliste!$I$23*Preisliste!$D$6+Preisliste!$I$24*Preisliste!$D$7+Preisliste!$I$25*Preisliste!$D$8+Preisliste!$I$26*Preisliste!$D$10)*Preisliste!$D$34+Preisliste!$D$13*12) -> 2,404.00 € | E125: =(A125*(Preisliste!$I$22*Preisliste!$E$5+Preisliste!$I$23*Preisliste!$E$6+Preisliste!$I$24*Preisliste!$E$7+Preisliste!$I$25*Preisliste!$E$8+Preisliste!$I$26*Preisliste!$E$10)*Preisliste!$E$34+Preisliste!$E$13*12) -> 2,303.20 €
A126: 1,220 | B126: =A126*((Preisliste!$I$22*Preisliste!$B$5+Preisliste!$I$23*Preisliste!$B$6+Preisliste!$I$24*Preisliste!$B$7+Preisliste!$I$25*Preisliste!$B$8+Preisliste!$I$26*Preisliste!$B$10)*Preisliste!$B$34) -> 3,904.00 € | C126: =(A126*(Preisliste!$I$22*Preisliste!$C$5+Preisliste!$I$23*Preisliste!$C$6+Preisliste!$I$24*Preisliste!$C$7+Preisliste!$I$25*Preisliste!$C$8+Preisliste!$I$26*Preisliste!$C$10)*Preisliste!$C$34+Preisliste!$C$13*12) -> 3,036.00 € | D126: =(A126*(Preisliste!$I$22*Preisliste!$D$5+Preisliste!$I$23*Preisliste!$D$6+Preisliste!$I$24*Preisliste!$D$7+Preisliste!$I$25*Preisliste!$D$8+Preisliste!$I$26*Preisliste!$D$10)*Preisliste!$D$34+Preisliste!$D$13*12) -> 2,420.00 € | E126: =(A126*(Preisliste!$I$22*Preisliste!$E$5+Preisliste!$I$23*Preisliste!$E$6+Preisliste!$I$24*Preisliste!$E$7+Preisliste!$I$25*Preisliste!$E$8+Preisliste!$I$26*Preisliste!$E$10)*Preisliste!$E$34+Preisliste!$E$13*12) -> 2,314.40 €
A127: 1,230 | B127: =A127*((Preisliste!$I$22*Preisliste!$B$5+Preisliste!$I$23*Preisliste!$B$6+Preisliste!$I$24*Preisliste!$B$7+Preisliste!$I$25*Preisliste!$B$8+Preisliste!$I$26*Preisliste!$B$10)*Preisliste!$B$34) -> 3,936.00 € | C127: =(A127*(Preisliste!$I$22*Preisliste!$C$5+Preisliste!$I$23*Preisliste!$C$6+Preisliste!$I$24*Preisliste!$C$7+Preisliste!$I$25*Preisliste!$C$8+Preisliste!$I$26*Preisliste!$C$10)*Preisliste!$C$34+Preisliste!$C$13*12) -> 3,060.00 € | D127: =(A127*(Preisliste!$I$22*Preisliste!$D$5+Preisliste!$I$23*Preisliste!$D$6+Preisliste!$I$24*Preisliste!$D$7+Preisliste!$I$25*Preisliste!$D$8+Preisliste!$I$26*Preisliste!$D$10)*Preisliste!$D$34+Preisliste!$D$13*12) -> 2,436.00 € | E127: =(A127*(Preisliste!$I$22*Preisliste!$E$5+Preisliste!$I$23*Preisliste!$E$6+Preisliste!$I$24*Preisliste!$E$7+Preisliste!$I$25*Preisliste!$E$8+Preisliste!$I$26*Preisliste!$E$10)*Preisliste!$E$34+Preisliste!$E$13*12) -> 2,325.60 €
A128: 1,240 | B128: =A128*((Preisliste!$I$22*Preisliste!$B$5+Preisliste!$I$23*Preisliste!$B$6+Preisliste!$I$24*Preisliste!$B$7+Preisliste!$I$25*Preisliste!$B$8+Preisliste!$I$26*Preisliste!$B$10)*Preisliste!$B$34) -> 3,968.00 € | C128: =(A128*(Preisliste!$I$22*Preisliste!$C$5+Preisliste!$I$23*Preisliste!$C$6+Preisliste!$I$24*Preisliste!$C$7+Preisliste!$I$25*Preisliste!$C$8+Preisliste!$I$26*Preisliste!$C$10)*Preisliste!$C$34+Preisliste!$C$13*12) -> 3,084.00 € | D128: =(A128*(Preisliste!$I$22*Preisliste!$D$5+Preisliste!$I$23*Preisliste!$D$6+Preisliste!$I$24*Preisliste!$D$7+Preisliste!$I$25*Preisliste!$D$8+Preisliste!$I$26*Preisliste!$D$10)*Preisliste!$D$34+Preisliste!$D$13*12) -> 2,452.00 € | E128: =(A128*(Preisliste!$I$22*Preisliste!$E$5+Preisliste!$I$23*Preisliste!$E$6+Preisliste!$I$24*Preisliste!$E$7+Preisliste!$I$25*Preisliste!$E$8+Preisliste!$I$26*Preisliste!$E$10)*Preisliste!$E$34+Preisliste!$E$13*12) -> 2,336.80 €
A129: 1,250 | B129: =A129*((Preisliste!$I$22*Preisliste!$B$5+Preisliste!$I$23*Preisliste!$B$6+Preisliste!$I$24*Preisliste!$B$7+Preisliste!$I$25*Preisliste!$B$8+Preisliste!$I$26*Preisliste!$B$10)*Preisliste!$B$34) -> 4,000.00 € | C129: =(A129*(Preisliste!$I$22*Preisliste!$C$5+Preisliste!$I$23*Preisliste!$C$6+Preisliste!$I$24*Preisliste!$C$7+Preisliste!$I$25*Preisliste!$C$8+Preisliste!$I$26*Preisliste!$C$10)*Preisliste!$C$34+Preisliste!$C$13*12) -> 3,108.00 € | D129: =(A129*(Preisliste!$I$22*Preisliste!$D$5+Preisliste!$I$23*Preisliste!$D$6+Preisliste!$I$24*Preisliste!$D$7+Preisliste!$I$25*Preisliste!$D$8+Preisliste!$I$26*Preisliste!$D$10)*Preisliste!$D$34+Preisliste!$D$13*12) -> 2,468.00 € | E129: =(A129*(Preisliste!$I$22*Preisliste!$E$5+Preisliste!$I$23*Preisliste!$E$6+Preisliste!$I$24*Preisliste!$E$7+Preisliste!$I$25*Preisliste!$E$8+Preisliste!$I$26*Preisliste!$E$10)*Preisliste!$E$34+Preisliste!$E$13*12) -> 2,348.00 €
A130: 1,260 | B130: =A130*((Preisliste!$I$22*Preisliste!$B$5+Preisliste!$I$23*Preisliste!$B$6+Preisliste!$I$24*Preisliste!$B$7+Preisliste!$I$25*Preisliste!$B$8+Preisliste!$I$26*Preisliste!$B$10)*Preisliste!$B$34) -> 4,032.00 € | C130: =(A130*(Preisliste!$I$22*Preisliste!$C$5+Preisliste!$I$23*Preisliste!$C$6+Preisliste!$I$24*Preisliste!$C$7+Preisliste!$I$25*Preisliste!$C$8+Preisliste!$I$26*Preisliste!$C$10)*Preisliste!$C$34+Preisliste!$C$13*12) -> 3,132.00 € | D130: =(A130*(Preisliste!$I$22*Preisliste!$D$5+Preisliste!$I$23*Preisliste!$D$6+Preisliste!$I$24*Preisliste!$D$7+Preisliste!$I$25*Preisliste!$D$8+Preisliste!$I$26*Preisliste!$D$10)*Preisliste!$D$34+Preisliste!$D$13*12) -> 2,484.00 € | E130: =(A130*(Preisliste!$I$22*Preisliste!$E$5+Preisliste!$I$23*Preisliste!$E$6+Preisliste!$I$24*Preisliste!$E$7+Preisliste!$I$25*Preisliste!$E$8+Preisliste!$I$26*Preisliste!$E$10)*Preisliste!$E$34+Preisliste!$E$13*12) -> 2,359.20 €
A131: 1,270 | B131: =A131*((Preisliste!$I$22*Preisliste!$B$5+Preisliste!$I$23*Preisliste!$B$6+Preisliste!$I$24*Preisliste!$B$7+Preisliste!$I$25*Preisliste!$B$8+Preisliste!$I$26*Preisliste!$B$10)*Preisliste!$B$34) -> 4,064.00 € | C131: =(A131*(Preisliste!$I$22*Preisliste!$C$5+Preisliste!$I$23*Preisliste!$C$6+Preisliste!$I$24*Preisliste!$C$7+Preisliste!$I$25*Preisliste!$C$8+Preisliste!$I$26*Preisliste!$C$10)*Preisliste!$C$34+Preisliste!$C$13*12) -> 3,156.00 € | D131: =(A131*(Preisliste!$I$22*Preisliste!$D$5+Preisliste!$I$23*Preisliste!$D$6+Preisliste!$I$24*Preisliste!$D$7+Preisliste!$I$25*Preisliste!$D$8+Preisliste!$I$26*Preisliste!$D$10)*Preisliste!$D$34+Preisliste!$D$13*12) -> 2,500.00 € | E131: =(A131*(Preisliste!$I$22*Preisliste!$E$5+Preisliste!$I$23*Preisliste!$E$6+Preisliste!$I$24*Preisliste!$E$7+Preisliste!$I$25*Preisliste!$E$8+Preisliste!$I$26*Preisliste!$E$10)*Preisliste!$E$34+Preisliste!$E$13*12) -> 2,370.40 €
A132: 1,280 | B132: =A132*((Preisliste!$I$22*Preisliste!$B$5+Preisliste!$I$23*Preisliste!$B$6+Preisliste!$I$24*Preisliste!$B$7+Preisliste!$I$25*Preisliste!$B$8+Preisliste!$I$26*Preisliste!$B$10)*Preisliste!$B$34) -> 4,096.00 € | C132: =(A132*(Preisliste!$I$22*Preisliste!$C$5+Preisliste!$I$23*Preisliste!$C$6+Preisliste!$I$24*Preisliste!$C$7+Preisliste!$I$25*Preisliste!$C$8+Preisliste!$I$26*Preisliste!$C$10)*Preisliste!$C$34+Preisliste!$C$13*12) -> 3,180.00 € | D132: =(A132*(Preisliste!$I$22*Preisliste!$D$5+Preisliste!$I$23*Preisliste!$D$6+Preisliste!$I$24*Preisliste!$D$7+Preisliste!$I$25*Preisliste!$D$8+Preisliste!$I$26*Preisliste!$D$10)*Preisliste!$D$34+Preisliste!$D$13*12) -> 2,516.00 € | E132: =(A132*(Preisliste!$I$22*Preisliste!$E$5+Preisliste!$I$23*Preisliste!$E$6+Preisliste!$I$24*Preisliste!$E$7+Preisliste!$I$25*Preisliste!$E$8+Preisliste!$I$26*Preisliste!$E$10)*Preisliste!$E$34+Preisliste!$E$13*12) -> 2,381.60 €
A133: 1,290 | B133: =A133*((Preisliste!$I$22*Preisliste!$B$5+Preisliste!$I$23*Preisliste!$B$6+Preisliste!$I$24*Preisliste!$B$7+Preisliste!$I$25*Preisliste!$B$8+Preisliste!$I$26*Preisliste!$B$10)*Preisliste!$B$34) -> 4,128.00 € | C133: =(A133*(Preisliste!$I$22*Preisliste!$C$5+Preisliste!$I$23*Preisliste!$C$6+Preisliste!$I$24*Preisliste!$C$7+Preisliste!$I$25*Preisliste!$C$8+Preisliste!$I$26*Preisliste!$C$10)*Preisliste!$C$34+Preisliste!$C$13*12) -> 3,204.00 € | D133: =(A133*(Preisliste!$I$22*Preisliste!$D$5+Preisliste!$I$23*Preisliste!$D$6+Preisliste!$I$24*Preisliste!$D$7+Preisliste!$I$25*Preisliste!$D$8+Preisliste!$I$26*Preisliste!$D$10)*Preisliste!$D$34+Preisliste!$D$13*12) -> 2,532.00 € | E133: =(A133*(Preisliste!$I$22*Preisliste!$E$5+Preisliste!$I$23*Preisliste!$E$6+Preisliste!$I$24*Preisliste!$E$7+Preisliste!$I$25*Preisliste!$E$8+Preisliste!$I$26*Preisliste!$E$10)*Preisliste!$E$34+Preisliste!$E$13*12) -> 2,392.80 €
A134: 1,300 | B134: =A134*((Preisliste!$I$22*Preisliste!$B$5+Preisliste!$I$23*Preisliste!$B$6+Preisliste!$I$24*Preisliste!$B$7+Preisliste!$I$25*Preisliste!$B$8+Preisliste!$I$26*Preisliste!$B$10)*Preisliste!$B$34) -> 4,160.00 € | C134: =(A134*(Preisliste!$I$22*Preisliste!$C$5+Preisliste!$I$23*Preisliste!$C$6+Preisliste!$I$24*Preisliste!$C$7+Preisliste!$I$25*Preisliste!$C$8+Preisliste!$I$26*Preisliste!$C$10)*Preisliste!$C$34+Preisliste!$C$13*12) -> 3,228.00 € | D134: =(A134*(Preisliste!$I$22*Preisliste!$D$5+Preisliste!$I$23*Preisliste!$D$6+Preisliste!$I$24*Preisliste!$D$7+Preisliste!$I$25*Preisliste!$D$8+Preisliste!$I$26*Preisliste!$D$10)*Preisliste!$D$34+Preisliste!$D$13*12) -> 2,548.00 € | E134: =(A134*(Preisliste!$I$22*Preisliste!$E$5+Preisliste!$I$23*Preisliste!$E$6+Preisliste!$I$24*Preisliste!$E$7+Preisliste!$I$25*Preisliste!$E$8+Preisliste!$I$26*Preisliste!$E$10)*Preisliste!$E$34+Preisliste!$E$13*12) -> 2,404.00 €
A135: 1,310 | B135: =A135*((Preisliste!$I$22*Preisliste!$B$5+Preisliste!$I$23*Preisliste!$B$6+Preisliste!$I$24*Preisliste!$B$7+Preisliste!$I$25*Preisliste!$B$8+Preisliste!$I$26*Preisliste!$B$10)*Preisliste!$B$34) -> 4,192.00 € | C135: =(A135*(Preisliste!$I$22*Preisliste!$C$5+Preisliste!$I$23*Preisliste!$C$6+Preisliste!$I$24*Preisliste!$C$7+Preisliste!$I$25*Preisliste!$C$8+Preisliste!$I$26*Preisliste!$C$10)*Preisliste!$C$34+Preisliste!$C$13*12) -> 3,252.00 € | D135: =(A135*(Preisliste!$I$22*Preisliste!$D$5+Preisliste!$I$23*Preisliste!$D$6+Preisliste!$I$24*Preisliste!$D$7+Preisliste!$I$25*Preisliste!$D$8+Preisliste!$I$26*Preisliste!$D$10)*Preisliste!$D$34+Preisliste!$D$13*12) -> 2,564.00 € | E135: =(A135*(Preisliste!$I$22*Preisliste!$E$5+Preisliste!$I$23*Preisliste!$E$6+Preisliste!$I$24*Preisliste!$E$7+Preisliste!$I$25*Preisliste!$E$8+Preisliste!$I$26*Preisliste!$E$10)*Preisliste!$E$34+Preisliste!$E$13*12) -> 2,415.20 €
A136: 1,320 | B136: =A136*((Preisliste!$I$22*Preisliste!$B$5+Preisliste!$I$23*Preisliste!$B$6+Preisliste!$I$24*Preisliste!$B$7+Preisliste!$I$25*Preisliste!$B$8+Preisliste!$I$26*Preisliste!$B$10)*Preisliste!$B$34) -> 4,224.00 € | C136: =(A136*(Preisliste!$I$22*Preisliste!$C$5+Preisliste!$I$23*Preisliste!$C$6+Preisliste!$I$24*Preisliste!$C$7+Preisliste!$I$25*Preisliste!$C$8+Preisliste!$I$26*Preisliste!$C$10)*Preisliste!$C$34+Preisliste!$C$13*12) -> 3,276.00 € | D136: =(A136*(Preisliste!$I$22*Preisliste!$D$5+Preisliste!$I$23*Preisliste!$D$6+Preisliste!$I$24*Preisliste!$D$7+Preisliste!$I$25*Preisliste!$D$8+Preisliste!$I$26*Preisliste!$D$10)*Preisliste!$D$34+Preisliste!$D$13*12) -> 2,580.00 € | E136: =(A136*(Preisliste!$I$22*Preisliste!$E$5+Preisliste!$I$23*Preisliste!$E$6+Preisliste!$I$24*Preisliste!$E$7+Preisliste!$I$25*Preisliste!$E$8+Preisliste!$I$26*Preisliste!$E$10)*Preisliste!$E$34+Preisliste!$E$13*12) -> 2,426.40 €
A137: 1,330 | B137: =A137*((Preisliste!$I$22*Preisliste!$B$5+Preisliste!$I$23*Preisliste!$B$6+Preisliste!$I$24*Preisliste!$B$7+Preisliste!$I$25*Preisliste!$B$8+Preisliste!$I$26*Preisliste!$B$10)*Preisliste!$B$34) -> 4,256.00 € | C137: =(A137*(Preisliste!$I$22*Preisliste!$C$5+Preisliste!$I$23*Preisliste!$C$6+Preisliste!$I$24*Preisliste!$C$7+Preisliste!$I$25*Preisliste!$C$8+Preisliste!$I$26*Preisliste!$C$10)*Preisliste!$C$34+Preisliste!$C$13*12) -> 3,300.00 € | D137: =(A137*(Preisliste!$I$22*Preisliste!$D$5+Preisliste!$I$23*Preisliste!$D$6+Preisliste!$I$24*Preisliste!$D$7+Preisliste!$I$25*Preisliste!$D$8+Preisliste!$I$26*Preisliste!$D$10)*Preisliste!$D$34+Preisliste!$D$13*12) -> 2,596.00 € | E137: =(A137*(Preisliste!$I$22*Preisliste!$E$5+Preisliste!$I$23*Preisliste!$E$6+Preisliste!$I$24*Preisliste!$E$7+Preisliste!$I$25*Preisliste!$E$8+Preisliste!$I$26*Preisliste!$E$10)*Preisliste!$E$34+Preisliste!$E$13*12) -> 2,437.60 €
A138: 1,340 | B138: =A138*((Preisliste!$I$22*Preisliste!$B$5+Preisliste!$I$23*Preisliste!$B$6+Preisliste!$I$24*Preisliste!$B$7+Preisliste!$I$25*Preisliste!$B$8+Preisliste!$I$26*Preisliste!$B$10)*Preisliste!$B$34) -> 4,288.00 € | C138: =(A138*(Preisliste!$I$22*Preisliste!$C$5+Preisliste!$I$23*Preisliste!$C$6+Preisliste!$I$24*Preisliste!$C$7+Preisliste!$I$25*Preisliste!$C$8+Preisliste!$I$26*Preisliste!$C$10)*Preisliste!$C$34+Preisliste!$C$13*12) -> 3,324.00 € | D138: =(A138*(Preisliste!$I$22*Preisliste!$D$5+Preisliste!$I$23*Preisliste!$D$6+Preisliste!$I$24*Preisliste!$D$7+Preisliste!$I$25*Preisliste!$D$8+Preisliste!$I$26*Preisliste!$D$10)*Preisliste!$D$34+Preisliste!$D$13*12) -> 2,612.00 € | E138: =(A138*(Preisliste!$I$22*Preisliste!$E$5+Preisliste!$I$23*Preisliste!$E$6+Preisliste!$I$24*Preisliste!$E$7+Preisliste!$I$25*Preisliste!$E$8+Preisliste!$I$26*Preisliste!$E$10)*Preisliste!$E$34+Preisliste!$E$13*12) -> 2,448.80 €
A139: 1,350 | B139: =A139*((Preisliste!$I$22*Preisliste!$B$5+Preisliste!$I$23*Preisliste!$B$6+Preisliste!$I$24*Preisliste!$B$7+Preisliste!$I$25*Preisliste!$B$8+Preisliste!$I$26*Preisliste!$B$10)*Preisliste!$B$34) -> 4,320.00 € | C139: =(A139*(Preisliste!$I$22*Preisliste!$C$5+Preisliste!$I$23*Preisliste!$C$6+Preisliste!$I$24*Preisliste!$C$7+Preisliste!$I$25*Preisliste!$C$8+Preisliste!$I$26*Preisliste!$C$10)*Preisliste!$C$34+Preisliste!$C$13*12) -> 3,348.00 € | D139: =(A139*(Preisliste!$I$22*Preisliste!$D$5+Preisliste!$I$23*Preisliste!$D$6+Preisliste!$I$24*Preisliste!$D$7+Preisliste!$I$25*Preisliste!$D$8+Preisliste!$I$26*Preisliste!$D$10)*Preisliste!$D$34+Preisliste!$D$13*12) -> 2,628.00 € | E139: =(A139*(Preisliste!$I$22*Preisliste!$E$5+Preisliste!$I$23*Preisliste!$E$6+Preisliste!$I$24*Preisliste!$E$7+Preisliste!$I$25*Preisliste!$E$8+Preisliste!$I$26*Preisliste!$E$10)*Preisliste!$E$34+Preisliste!$E$13*12) -> 2,460.00 €
A140: 1,360 | B140: =A140*((Preisliste!$I$22*Preisliste!$B$5+Preisliste!$I$23*Preisliste!$B$6+Preisliste!$I$24*Preisliste!$B$7+Preisliste!$I$25*Preisliste!$B$8+Preisliste!$I$26*Preisliste!$B$10)*Preisliste!$B$34) -> 4,352.00 € | C140: =(A140*(Preisliste!$I$22*Preisliste!$C$5+Preisliste!$I$23*Preisliste!$C$6+Preisliste!$I$24*Preisliste!$C$7+Preisliste!$I$25*Preisliste!$C$8+Preisliste!$I$26*Preisliste!$C$10)*Preisliste!$C$34+Preisliste!$C$13*12) -> 3,372.00 € | D140: =(A140*(Preisliste!$I$22*Preisliste!$D$5+Preisliste!$I$23*Preisliste!$D$6+Preisliste!$I$24*Preisliste!$D$7+Preisliste!$I$25*Preisliste!$D$8+Preisliste!$I$26*Preisliste!$D$10)*Preisliste!$D$34+Preisliste!$D$13*12) -> 2,644.00 € | E140: =(A140*(Preisliste!$I$22*Preisliste!$E$5+Preisliste!$I$23*Preisliste!$E$6+Preisliste!$I$24*Preisliste!$E$7+Preisliste!$I$25*Preisliste!$E$8+Preisliste!$I$26*Preisliste!$E$10)*Preisliste!$E$34+Preisliste!$E$13*12) -> 2,471.20 €
A141: 1,370 | B141: =A141*((Preisliste!$I$22*Preisliste!$B$5+Preisliste!$I$23*Preisliste!$B$6+Preisliste!$I$24*Preisliste!$B$7+Preisliste!$I$25*Preisliste!$B$8+Preisliste!$I$26*Preisliste!$B$10)*Preisliste!$B$34) -> 4,384.00 € | C141: =(A141*(Preisliste!$I$22*Preisliste!$C$5+Preisliste!$I$23*Preisliste!$C$6+Preisliste!$I$24*Preisliste!$C$7+Preisliste!$I$25*Preisliste!$C$8+Preisliste!$I$26*Preisliste!$C$10)*Preisliste!$C$34+Preisliste!$C$13*12) -> 3,396.00 € | D141: =(A141*(Preisliste!$I$22*Preisliste!$D$5+Preisliste!$I$23*Preisliste!$D$6+Preisliste!$I$24*Preisliste!$D$7+Preisliste!$I$25*Preisliste!$D$8+Preisliste!$I$26*Preisliste!$D$10)*Preisliste!$D$34+Preisliste!$D$13*12) -> 2,660.00 € | E141: =(A141*(Preisliste!$I$22*Preisliste!$E$5+Preisliste!$I$23*Preisliste!$E$6+Preisliste!$I$24*Preisliste!$E$7+Preisliste!$I$25*Preisliste!$E$8+Preisliste!$I$26*Preisliste!$E$10)*Preisliste!$E$34+Preisliste!$E$13*12) -> 2,482.40 €
A142: 1,380 | B142: =A142*((Preisliste!$I$22*Preisliste!$B$5+Preisliste!$I$23*Preisliste!$B$6+Preisliste!$I$24*Preisliste!$B$7+Preisliste!$I$25*Preisliste!$B$8+Preisliste!$I$26*Preisliste!$B$10)*Preisliste!$B$34) -> 4,416.00 € | C142: =(A142*(Preisliste!$I$22*Preisliste!$C$5+Preisliste!$I$23*Preisliste!$C$6+Preisliste!$I$24*Preisliste!$C$7+Preisliste!$I$25*Preisliste!$C$8+Preisliste!$I$26*Preisliste!$C$10)*Preisliste!$C$34+Preisliste!$C$13*12) -> 3,420.00 € | D142: =(A142*(Preisliste!$I$22*Preisliste!$D$5+Preisliste!$I$23*Preisliste!$D$6+Preisliste!$I$24*Preisliste!$D$7+Preisliste!$I$25*Preisliste!$D$8+Preisliste!$I$26*Preisliste!$D$10)*Preisliste!$D$34+Preisliste!$D$13*12) -> 2,676.00 € | E142: =(A142*(Preisliste!$I$22*Preisliste!$E$5+Preisliste!$I$23*Preisliste!$E$6+Preisliste!$I$24*Preisliste!$E$7+Preisliste!$I$25*Preisliste!$E$8+Preisliste!$I$26*Preisliste!$E$10)*Preisliste!$E$34+Preisliste!$E$13*12) -> 2,493.60 €
A143: 1,390 | B143: =A143*((Preisliste!$I$22*Preisliste!$B$5+Preisliste!$I$23*Preisliste!$B$6+Preisliste!$I$24*Preisliste!$B$7+Preisliste!$I$25*Preisliste!$B$8+Preisliste!$I$26*Preisliste!$B$10)*Preisliste!$B$34) -> 4,448.00 € | C143: =(A143*(Preisliste!$I$22*Preisliste!$C$5+Preisliste!$I$23*Preisliste!$C$6+Preisliste!$I$24*Preisliste!$C$7+Preisliste!$I$25*Preisliste!$C$8+Preisliste!$I$26*Preisliste!$C$10)*Preisliste!$C$34+Preisliste!$C$13*12) -> 3,444.00 € | D143: =(A143*(Preisliste!$I$22*Preisliste!$D$5+Preisliste!$I$23*Preisliste!$D$6+Preisliste!$I$24*Preisliste!$D$7+Preisliste!$I$25*Preisliste!$D$8+Preisliste!$I$26*Preisliste!$D$10)*Preisliste!$D$34+Preisliste!$D$13*12) -> 2,692.00 € | E143: =(A143*(Preisliste!$I$22*Preisliste!$E$5+Preisliste!$I$23*Preisliste!$E$6+Preisliste!$I$24*Preisliste!$E$7+Preisliste!$I$25*Preisliste!$E$8+Preisliste!$I$26*Preisliste!$E$10)*Preisliste!$E$34+Preisliste!$E$13*12) -> 2,504.80 €
A144: 1,400 | B144: =A144*((Preisliste!$I$22*Preisliste!$B$5+Preisliste!$I$23*Preisliste!$B$6+Preisliste!$I$24*Preisliste!$B$7+Preisliste!$I$25*Preisliste!$B$8+Preisliste!$I$26*Preisliste!$B$10)*Preisliste!$B$34) -> 4,480.00 € | C144: =(A144*(Preisliste!$I$22*Preisliste!$C$5+Preisliste!$I$23*Preisliste!$C$6+Preisliste!$I$24*Preisliste!$C$7+Preisliste!$I$25*Preisliste!$C$8+Preisliste!$I$26*Preisliste!$C$10)*Preisliste!$C$34+Preisliste!$C$13*12) -> 3,468.00 € | D144: =(A144*(Preisliste!$I$22*Preisliste!$D$5+Preisliste!$I$23*Preisliste!$D$6+Preisliste!$I$24*Preisliste!$D$7+Preisliste!$I$25*Preisliste!$D$8+Preisliste!$I$26*Preisliste!$D$10)*Preisliste!$D$34+Preisliste!$D$13*12) -> 2,708.00 € | E144: =(A144*(Preisliste!$I$22*Preisliste!$E$5+Preisliste!$I$23*Preisliste!$E$6+Preisliste!$I$24*Preisliste!$E$7+Preisliste!$I$25*Preisliste!$E$8+Preisliste!$I$26*Preisliste!$E$10)*Preisliste!$E$34+Preisliste!$E$13*12) -> 2,516.00 €
A145: 1,410 | B145: =A145*((Preisliste!$I$22*Preisliste!$B$5+Preisliste!$I$23*Preisliste!$B$6+Preisliste!$I$24*Preisliste!$B$7+Preisliste!$I$25*Preisliste!$B$8+Preisliste!$I$26*Preisliste!$B$10)*Preisliste!$B$34) -> 4,512.00 € | C145: =(A145*(Preisliste!$I$22*Preisliste!$C$5+Preisliste!$I$23*Preisliste!$C$6+Preisliste!$I$24*Preisliste!$C$7+Preisliste!$I$25*Preisliste!$C$8+Preisliste!$I$26*Preisliste!$C$10)*Preisliste!$C$34+Preisliste!$C$13*12) -> 3,492.00 € | D145: =(A145*(Preisliste!$I$22*Preisliste!$D$5+Preisliste!$I$23*Preisliste!$D$6+Preisliste!$I$24*Preisliste!$D$7+Preisliste!$I$25*Preisliste!$D$8+Preisliste!$I$26*Preisliste!$D$10)*Preisliste!$D$34+Preisliste!$D$13*12) -> 2,724.00 € | E145: =(A145*(Preisliste!$I$22*Preisliste!$E$5+Preisliste!$I$23*Preisliste!$E$6+Preisliste!$I$24*Preisliste!$E$7+Preisliste!$I$25*Preisliste!$E$8+Preisliste!$I$26*Preisliste!$E$10)*Preisliste!$E$34+Preisliste!$E$13*12) -> 2,527.20 €
A146: 1,420 | B146: =A146*((Preisliste!$I$22*Preisliste!$B$5+Preisliste!$I$23*Preisliste!$B$6+Preisliste!$I$24*Preisliste!$B$7+Preisliste!$I$25*Preisliste!$B$8+Preisliste!$I$26*Preisliste!$B$10)*Preisliste!$B$34) -> 4,544.00 € | C146: =(A146*(Preisliste!$I$22*Preisliste!$C$5+Preisliste!$I$23*Preisliste!$C$6+Preisliste!$I$24*Preisliste!$C$7+Preisliste!$I$25*Preisliste!$C$8+Preisliste!$I$26*Preisliste!$C$10)*Preisliste!$C$34+Preisliste!$C$13*12) -> 3,516.00 € | D146: =(A146*(Preisliste!$I$22*Preisliste!$D$5+Preisliste!$I$23*Preisliste!$D$6+Preisliste!$I$24*Preisliste!$D$7+Preisliste!$I$25*Preisliste!$D$8+Preisliste!$I$26*Preisliste!$D$10)*Preisliste!$D$34+Preisliste!$D$13*12) -> 2,740.00 € | E146: =(A146*(Preisliste!$I$22*Preisliste!$E$5+Preisliste!$I$23*Preisliste!$E$6+Preisliste!$I$24*Preisliste!$E$7+Preisliste!$I$25*Preisliste!$E$8+Preisliste!$I$26*Preisliste!$E$10)*Preisliste!$E$34+Preisliste!$E$13*12) -> 2,538.40 €
A147: 1,430 | B147: =A147*((Preisliste!$I$22*Preisliste!$B$5+Preisliste!$I$23*Preisliste!$B$6+Preisliste!$I$24*Preisliste!$B$7+Preisliste!$I$25*Preisliste!$B$8+Preisliste!$I$26*Preisliste!$B$10)*Preisliste!$B$34) -> 4,576.00 € | C147: =(A147*(Preisliste!$I$22*Preisliste!$C$5+Preisliste!$I$23*Preisliste!$C$6+Preisliste!$I$24*Preisliste!$C$7+Preisliste!$I$25*Preisliste!$C$8+Preisliste!$I$26*Preisliste!$C$10)*Preisliste!$C$34+Preisliste!$C$13*12) -> 3,540.00 € | D147: =(A147*(Preisliste!$I$22*Preisliste!$D$5+Preisliste!$I$23*Preisliste!$D$6+Preisliste!$I$24*Preisliste!$D$7+Preisliste!$I$25*Preisliste!$D$8+Preisliste!$I$26*Preisliste!$D$10)*Preisliste!$D$34+Preisliste!$D$13*12) -> 2,756.00 € | E147: =(A147*(Preisliste!$I$22*Preisliste!$E$5+Preisliste!$I$23*Preisliste!$E$6+Preisliste!$I$24*Preisliste!$E$7+Preisliste!$I$25*Preisliste!$E$8+Preisliste!$I$26*Preisliste!$E$10)*Preisliste!$E$34+Preisliste!$E$13*12) -> 2,549.60 €
A148: 1,440 | B148: =A148*((Preisliste!$I$22*Preisliste!$B$5+Preisliste!$I$23*Preisliste!$B$6+Preisliste!$I$24*Preisliste!$B$7+Preisliste!$I$25*Preisliste!$B$8+Preisliste!$I$26*Preisliste!$B$10)*Preisliste!$B$34) -> 4,608.00 € | C148: =(A148*(Preisliste!$I$22*Preisliste!$C$5+Preisliste!$I$23*Preisliste!$C$6+Preisliste!$I$24*Preisliste!$C$7+Preisliste!$I$25*Preisliste!$C$8+Preisliste!$I$26*Preisliste!$C$10)*Preisliste!$C$34+Preisliste!$C$13*12) -> 3,564.00 € | D148: =(A148*(Preisliste!$I$22*Preisliste!$D$5+Preisliste!$I$23*Preisliste!$D$6+Preisliste!$I$24*Preisliste!$D$7+Preisliste!$I$25*Preisliste!$D$8+Preisliste!$I$26*Preisliste!$D$10)*Preisliste!$D$34+Preisliste!$D$13*12) -> 2,772.00 € | E148: =(A148*(Preisliste!$I$22*Preisliste!$E$5+Preisliste!$I$23*Preisliste!$E$6+Preisliste!$I$24*Preisliste!$E$7+Preisliste!$I$25*Preisliste!$E$8+Preisliste!$I$26*Preisliste!$E$10)*Preisliste!$E$34+Preisliste!$E$13*12) -> 2,560.80 €
A149: 1,450 | B149: =A149*((Preisliste!$I$22*Preisliste!$B$5+Preisliste!$I$23*Preisliste!$B$6+Preisliste!$I$24*Preisliste!$B$7+Preisliste!$I$25*Preisliste!$B$8+Preisliste!$I$26*Preisliste!$B$10)*Preisliste!$B$34) -> 4,640.00 € | C149: =(A149*(Preisliste!$I$22*Preisliste!$C$5+Preisliste!$I$23*Preisliste!$C$6+Preisliste!$I$24*Preisliste!$C$7+Preisliste!$I$25*Preisliste!$C$8+Preisliste!$I$26*Preisliste!$C$10)*Preisliste!$C$34+Preisliste!$C$13*12) -> 3,588.00 € | D149: =(A149*(Preisliste!$I$22*Preisliste!$D$5+Preisliste!$I$23*Preisliste!$D$6+Preisliste!$I$24*Preisliste!$D$7+Preisliste!$I$25*Preisliste!$D$8+Preisliste!$I$26*Preisliste!$D$10)*Preisliste!$D$34+Preisliste!$D$13*12) -> 2,788.00 € | E149: =(A149*(Preisliste!$I$22*Preisliste!$E$5+Preisliste!$I$23*Preisliste!$E$6+Preisliste!$I$24*Preisliste!$E$7+Preisliste!$I$25*Preisliste!$E$8+Preisliste!$I$26*Preisliste!$E$10)*Preisliste!$E$34+Preisliste!$E$13*12) -> 2,572.00 €
A150: 1,460 | B150: =A150*((Preisliste!$I$22*Preisliste!$B$5+Preisliste!$I$23*Preisliste!$B$6+Preisliste!$I$24*Preisliste!$B$7+Preisliste!$I$25*Preisliste!$B$8+Preisliste!$I$26*Preisliste!$B$10)*Preisliste!$B$34) -> 4,672.00 € | C150: =(A150*(Preisliste!$I$22*Preisliste!$C$5+Preisliste!$I$23*Preisliste!$C$6+Preisliste!$I$24*Preisliste!$C$7+Preisliste!$I$25*Preisliste!$C$8+Preisliste!$I$26*Preisliste!$C$10)*Preisliste!$C$34+Preisliste!$C$13*12) -> 3,612.00 € | D150: =(A150*(Preisliste!$I$22*Preisliste!$D$5+Preisliste!$I$23*Preisliste!$D$6+Preisliste!$I$24*Preisliste!$D$7+Preisliste!$I$25*Preisliste!$D$8+Preisliste!$I$26*Preisliste!$D$10)*Preisliste!$D$34+Preisliste!$D$13*12) -> 2,804.00 € | E150: =(A150*(Preisliste!$I$22*Preisliste!$E$5+Preisliste!$I$23*Preisliste!$E$6+Preisliste!$I$24*Preisliste!$E$7+Preisliste!$I$25*Preisliste!$E$8+Preisliste!$I$26*Preisliste!$E$10)*Preisliste!$E$34+Preisliste!$E$13*12) -> 2,583.20 €
A151: 1,470 | B151: =A151*((Preisliste!$I$22*Preisliste!$B$5+Preisliste!$I$23*Preisliste!$B$6+Preisliste!$I$24*Preisliste!$B$7+Preisliste!$I$25*Preisliste!$B$8+Preisliste!$I$26*Preisliste!$B$10)*Preisliste!$B$34) -> 4,704.00 € | C151: =(A151*(Preisliste!$I$22*Preisliste!$C$5+Preisliste!$I$23*Preisliste!$C$6+Preisliste!$I$24*Preisliste!$C$7+Preisliste!$I$25*Preisliste!$C$8+Preisliste!$I$26*Preisliste!$C$10)*Preisliste!$C$34+Preisliste!$C$13*12) -> 3,636.00 € | D151: =(A151*(Preisliste!$I$22*Preisliste!$D$5+Preisliste!$I$23*Preisliste!$D$6+Preisliste!$I$24*Preisliste!$D$7+Preisliste!$I$25*Preisliste!$D$8+Preisliste!$I$26*Preisliste!$D$10)*Preisliste!$D$34+Preisliste!$D$13*12) -> 2,820.00 € | E151: =(A151*(Preisliste!$I$22*Preisliste!$E$5+Preisliste!$I$23*Preisliste!$E$6+Preisliste!$I$24*Preisliste!$E$7+Preisliste!$I$25*Preisliste!$E$8+Preisliste!$I$26*Preisliste!$E$10)*Preisliste!$E$34+Preisliste!$E$13*12) -> 2,594.40 €
A152: 1,480 | B152: =A152*((Preisliste!$I$22*Preisliste!$B$5+Preisliste!$I$23*Preisliste!$B$6+Preisliste!$I$24*Preisliste!$B$7+Preisliste!$I$25*Preisliste!$B$8+Preisliste!$I$26*Preisliste!$B$10)*Preisliste!$B$34) -> 4,736.00 € | C152: =(A152*(Preisliste!$I$22*Preisliste!$C$5+Preisliste!$I$23*Preisliste!$C$6+Preisliste!$I$24*Preisliste!$C$7+Preisliste!$I$25*Preisliste!$C$8+Preisliste!$I$26*Preisliste!$C$10)*Preisliste!$C$34+Preisliste!$C$13*12) -> 3,660.00 € | D152: =(A152*(Preisliste!$I$22*Preisliste!$D$5+Preisliste!$I$23*Preisliste!$D$6+Preisliste!$I$24*Preisliste!$D$7+Preisliste!$I$25*Preisliste!$D$8+Preisliste!$I$26*Preisliste!$D$10)*Preisliste!$D$34+Preisliste!$D$13*12) -> 2,836.00 € | E152: =(A152*(Preisliste!$I$22*Preisliste!$E$5+Preisliste!$I$23*Preisliste!$E$6+Preisliste!$I$24*Preisliste!$E$7+Preisliste!$I$25*Preisliste!$E$8+Preisliste!$I$26*Preisliste!$E$10)*Preisliste!$E$34+Preisliste!$E$13*12) -> 2,605.60 €
A153: 1,490 | B153: =A153*((Preisliste!$I$22*Preisliste!$B$5+Preisliste!$I$23*Preisliste!$B$6+Preisliste!$I$24*Preisliste!$B$7+Preisliste!$I$25*Preisliste!$B$8+Preisliste!$I$26*Preisliste!$B$10)*Preisliste!$B$34) -> 4,768.00 € | C153: =(A153*(Preisliste!$I$22*Preisliste!$C$5+Preisliste!$I$23*Preisliste!$C$6+Preisliste!$I$24*Preisliste!$C$7+Preisliste!$I$25*Preisliste!$C$8+Preisliste!$I$26*Preisliste!$C$10)*Preisliste!$C$34+Preisliste!$C$13*12) -> 3,684.00 € | D153: =(A153*(Preisliste!$I$22*Preisliste!$D$5+Preisliste!$I$23*Preisliste!$D$6+Preisliste!$I$24*Preisliste!$D$7+Preisliste!$I$25*Preisliste!$D$8+Preisliste!$I$26*Preisliste!$D$10)*Preisliste!$D$34+Preisliste!$D$13*12) -> 2,852.00 € | E153: =(A153*(Preisliste!$I$22*Preisliste!$E$5+Preisliste!$I$23*Preisliste!$E$6+Preisliste!$I$24*Preisliste!$E$7+Preisliste!$I$25*Preisliste!$E$8+Preisliste!$I$26*Preisliste!$E$10)*Preisliste!$E$34+Preisliste!$E$13*12) -> 2,616.80 €
A154: 1,500 | B154: =A154*((Preisliste!$I$22*Preisliste!$B$5+Preisliste!$I$23*Preisliste!$B$6+Preisliste!$I$24*Preisliste!$B$7+Preisliste!$I$25*Preisliste!$B$8+Preisliste!$I$26*Preisliste!$B$10)*Preisliste!$B$34) -> 4,800.00 € | C154: =(A154*(Preisliste!$I$22*Preisliste!$C$5+Preisliste!$I$23*Preisliste!$C$6+Preisliste!$I$24*Preisliste!$C$7+Preisliste!$I$25*Preisliste!$C$8+Preisliste!$I$26*Preisliste!$C$10)*Preisliste!$C$34+Preisliste!$C$13*12) -> 3,708.00 € | D154: =(A154*(Preisliste!$I$22*Preisliste!$D$5+Preisliste!$I$23*Preisliste!$D$6+Preisliste!$I$24*Preisliste!$D$7+Preisliste!$I$25*Preisliste!$D$8+Preisliste!$I$26*Preisliste!$D$10)*Preisliste!$D$34+Preisliste!$D$13*12) -> 2,868.00 € | E154: =(A154*(Preisliste!$I$22*Preisliste!$E$5+Preisliste!$I$23*Preisliste!$E$6+Preisliste!$I$24*Preisliste!$E$7+Preisliste!$I$25*Preisliste!$E$8+Preisliste!$I$26*Preisliste!$E$10)*Preisliste!$E$34+Preisliste!$E$13*12) -> 2,628.00 €
A155: 1,510 | B155: =A155*((Preisliste!$I$22*Preisliste!$B$5+Preisliste!$I$23*Preisliste!$B$6+Preisliste!$I$24*Preisliste!$B$7+Preisliste!$I$25*Preisliste!$B$8+Preisliste!$I$26*Preisliste!$B$10)*Preisliste!$B$34) -> 4,832.00 € | C155: =(A155*(Preisliste!$I$22*Preisliste!$C$5+Preisliste!$I$23*Preisliste!$C$6+Preisliste!$I$24*Preisliste!$C$7+Preisliste!$I$25*Preisliste!$C$8+Preisliste!$I$26*Preisliste!$C$10)*Preisliste!$C$34+Preisliste!$C$13*12) -> 3,732.00 € | D155: =(A155*(Preisliste!$I$22*Preisliste!$D$5+Preisliste!$I$23*Preisliste!$D$6+Preisliste!$I$24*Preisliste!$D$7+Preisliste!$I$25*Preisliste!$D$8+Preisliste!$I$26*Preisliste!$D$10)*Preisliste!$D$34+Preisliste!$D$13*12) -> 2,884.00 € | E155: =(A155*(Preisliste!$I$22*Preisliste!$E$5+Preisliste!$I$23*Preisliste!$E$6+Preisliste!$I$24*Preisliste!$E$7+Preisliste!$I$25*Preisliste!$E$8+Preisliste!$I$26*Preisliste!$E$10)*Preisliste!$E$34+Preisliste!$E$13*12) -> 2,639.20 €
A156: 1,520 | B156: =A156*((Preisliste!$I$22*Preisliste!$B$5+Preisliste!$I$23*Preisliste!$B$6+Preisliste!$I$24*Preisliste!$B$7+Preisliste!$I$25*Preisliste!$B$8+Preisliste!$I$26*Preisliste!$B$10)*Preisliste!$B$34) -> 4,864.00 € | C156: =(A156*(Preisliste!$I$22*Preisliste!$C$5+Preisliste!$I$23*Preisliste!$C$6+Preisliste!$I$24*Preisliste!$C$7+Preisliste!$I$25*Preisliste!$C$8+Preisliste!$I$26*Preisliste!$C$10)*Preisliste!$C$34+Preisliste!$C$13*12) -> 3,756.00 € | D156: =(A156*(Preisliste!$I$22*Preisliste!$D$5+Preisliste!$I$23*Preisliste!$D$6+Preisliste!$I$24*Preisliste!$D$7+Preisliste!$I$25*Preisliste!$D$8+Preisliste!$I$26*Preisliste!$D$10)*Preisliste!$D$34+Preisliste!$D$13*12) -> 2,900.00 € | E156: =(A156*(Preisliste!$I$22*Preisliste!$E$5+Preisliste!$I$23*Preisliste!$E$6+Preisliste!$I$24*Preisliste!$E$7+Preisliste!$I$25*Preisliste!$E$8+Preisliste!$I$26*Preisliste!$E$10)*Preisliste!$E$34+Preisliste!$E$13*12) -> 2,650.40 €
A157: 1,530 | B157: =A157*((Preisliste!$I$22*Preisliste!$B$5+Preisliste!$I$23*Preisliste!$B$6+Preisliste!$I$24*Preisliste!$B$7+Preisliste!$I$25*Preisliste!$B$8+Preisliste!$I$26*Preisliste!$B$10)*Preisliste!$B$34) -> 4,896.00 € | C157: =(A157*(Preisliste!$I$22*Preisliste!$C$5+Preisliste!$I$23*Preisliste!$C$6+Preisliste!$I$24*Preisliste!$C$7+Preisliste!$I$25*Preisliste!$C$8+Preisliste!$I$26*Preisliste!$C$10)*Preisliste!$C$34+Preisliste!$C$13*12) -> 3,780.00 € | D157: =(A157*(Preisliste!$I$22*Preisliste!$D$5+Preisliste!$I$23*Preisliste!$D$6+Preisliste!$I$24*Preisliste!$D$7+Preisliste!$I$25*Preisliste!$D$8+Preisliste!$I$26*Preisliste!$D$10)*Preisliste!$D$34+Preisliste!$D$13*12) -> 2,916.00 € | E157: =(A157*(Preisliste!$I$22*Preisliste!$E$5+Preisliste!$I$23*Preisliste!$E$6+Preisliste!$I$24*Preisliste!$E$7+Preisliste!$I$25*Preisliste!$E$8+Preisliste!$I$26*Preisliste!$E$10)*Preisliste!$E$34+Preisliste!$E$13*12) -> 2,661.60 €
A158: 1,540 | B158: =A158*((Preisliste!$I$22*Preisliste!$B$5+Preisliste!$I$23*Preisliste!$B$6+Preisliste!$I$24*Preisliste!$B$7+Preisliste!$I$25*Preisliste!$B$8+Preisliste!$I$26*Preisliste!$B$10)*Preisliste!$B$34) -> 4,928.00 € | C158: =(A158*(Preisliste!$I$22*Preisliste!$C$5+Preisliste!$I$23*Preisliste!$C$6+Preisliste!$I$24*Preisliste!$C$7+Preisliste!$I$25*Preisliste!$C$8+Preisliste!$I$26*Preisliste!$C$10)*Preisliste!$C$34+Preisliste!$C$13*12) -> 3,804.00 € | D158: =(A158*(Preisliste!$I$22*Preisliste!$D$5+Preisliste!$I$23*Preisliste!$D$6+Preisliste!$I$24*Preisliste!$D$7+Preisliste!$I$25*Preisliste!$D$8+Preisliste!$I$26*Preisliste!$D$10)*Preisliste!$D$34+Preisliste!$D$13*12) -> 2,932.00 € | E158: =(A158*(Preisliste!$I$22*Preisliste!$E$5+Preisliste!$I$23*Preisliste!$E$6+Preisliste!$I$24*Preisliste!$E$7+Preisliste!$I$25*Preisliste!$E$8+Preisliste!$I$26*Preisliste!$E$10)*Preisliste!$E$34+Preisliste!$E$13*12) -> 2,672.80 €
A159: 1,550 | B159: =A159*((Preisliste!$I$22*Preisliste!$B$5+Preisliste!$I$23*Preisliste!$B$6+Preisliste!$I$24*Preisliste!$B$7+Preisliste!$I$25*Preisliste!$B$8+Preisliste!$I$26*Preisliste!$B$10)*Preisliste!$B$34) -> 4,960.00 € | C159: =(A159*(Preisliste!$I$22*Preisliste!$C$5+Preisliste!$I$23*Preisliste!$C$6+Preisliste!$I$24*Preisliste!$C$7+Preisliste!$I$25*Preisliste!$C$8+Preisliste!$I$26*Preisliste!$C$10)*Preisliste!$C$34+Preisliste!$C$13*12) -> 3,828.00 € | D159: =(A159*(Preisliste!$I$22*Preisliste!$D$5+Preisliste!$I$23*Preisliste!$D$6+Preisliste!$I$24*Preisliste!$D$7+Preisliste!$I$25*Preisliste!$D$8+Preisliste!$I$26*Preisliste!$D$10)*Preisliste!$D$34+Preisliste!$D$13*12) -> 2,948.00 € | E159: =(A159*(Preisliste!$I$22*Preisliste!$E$5+Preisliste!$I$23*Preisliste!$E$6+Preisliste!$I$24*Preisliste!$E$7+Preisliste!$I$25*Preisliste!$E$8+Preisliste!$I$26*Preisliste!$E$10)*Preisliste!$E$34+Preisliste!$E$13*12) -> 2,684.00 €
A160: 1,560 | B160: =A160*((Preisliste!$I$22*Preisliste!$B$5+Preisliste!$I$23*Preisliste!$B$6+Preisliste!$I$24*Preisliste!$B$7+Preisliste!$I$25*Preisliste!$B$8+Preisliste!$I$26*Preisliste!$B$10)*Preisliste!$B$34) -> 4,992.00 € | C160: =(A160*(Preisliste!$I$22*Preisliste!$C$5+Preisliste!$I$23*Preisliste!$C$6+Preisliste!$I$24*Preisliste!$C$7+Preisliste!$I$25*Preisliste!$C$8+Preisliste!$I$26*Preisliste!$C$10)*Preisliste!$C$34+Preisliste!$C$13*12) -> 3,852.00 € | D160: =(A160*(Preisliste!$I$22*Preisliste!$D$5+Preisliste!$I$23*Preisliste!$D$6+Preisliste!$I$24*Preisliste!$D$7+Preisliste!$I$25*Preisliste!$D$8+Preisliste!$I$26*Preisliste!$D$10)*Preisliste!$D$34+Preisliste!$D$13*12) -> 2,964.00 € | E160: =(A160*(Preisliste!$I$22*Preisliste!$E$5+Preisliste!$I$23*Preisliste!$E$6+Preisliste!$I$24*Preisliste!$E$7+Preisliste!$I$25*Preisliste!$E$8+Preisliste!$I$26*Preisliste!$E$10)*Preisliste!$E$34+Preisliste!$E$13*12) -> 2,695.20 €
A161: 1,570 | B161: =A161*((Preisliste!$I$22*Preisliste!$B$5+Preisliste!$I$23*Preisliste!$B$6+Preisliste!$I$24*Preisliste!$B$7+Preisliste!$I$25*Preisliste!$B$8+Preisliste!$I$26*Preisliste!$B$10)*Preisliste!$B$34) -> 5,024.00 € | C161: =(A161*(Preisliste!$I$22*Preisliste!$C$5+Preisliste!$I$23*Preisliste!$C$6+Preisliste!$I$24*Preisliste!$C$7+Preisliste!$I$25*Preisliste!$C$8+Preisliste!$I$26*Preisliste!$C$10)*Preisliste!$C$34+Preisliste!$C$13*12) -> 3,876.00 € | D161: =(A161*(Preisliste!$I$22*Preisliste!$D$5+Preisliste!$I$23*Preisliste!$D$6+Preisliste!$I$24*Preisliste!$D$7+Preisliste!$I$25*Preisliste!$D$8+Preisliste!$I$26*Preisliste!$D$10)*Preisliste!$D$34+Preisliste!$D$13*12) -> 2,980.00 € | E161: =(A161*(Preisliste!$I$22*Preisliste!$E$5+Preisliste!$I$23*Preisliste!$E$6+Preisliste!$I$24*Preisliste!$E$7+Preisliste!$I$25*Preisliste!$E$8+Preisliste!$I$26*Preisliste!$E$10)*Preisliste!$E$34+Preisliste!$E$13*12) -> 2,706.40 €
A162: 1,580 | B162: =A162*((Preisliste!$I$22*Preisliste!$B$5+Preisliste!$I$23*Preisliste!$B$6+Preisliste!$I$24*Preisliste!$B$7+Preisliste!$I$25*Preisliste!$B$8+Preisliste!$I$26*Preisliste!$B$10)*Preisliste!$B$34) -> 5,056.00 € | C162: =(A162*(Preisliste!$I$22*Preisliste!$C$5+Preisliste!$I$23*Preisliste!$C$6+Preisliste!$I$24*Preisliste!$C$7+Preisliste!$I$25*Preisliste!$C$8+Preisliste!$I$26*Preisliste!$C$10)*Preisliste!$C$34+Preisliste!$C$13*12) -> 3,900.00 € | D162: =(A162*(Preisliste!$I$22*Preisliste!$D$5+Preisliste!$I$23*Preisliste!$D$6+Preisliste!$I$24*Preisliste!$D$7+Preisliste!$I$25*Preisliste!$D$8+Preisliste!$I$26*Preisliste!$D$10)*Preisliste!$D$34+Preisliste!$D$13*12) -> 2,996.00 € | E162: =(A162*(Preisliste!$I$22*Preisliste!$E$5+Preisliste!$I$23*Preisliste!$E$6+Preisliste!$I$24*Preisliste!$E$7+Preisliste!$I$25*Preisliste!$E$8+Preisliste!$I$26*Preisliste!$E$10)*Preisliste!$E$34+Preisliste!$E$13*12) -> 2,717.60 €
A163: 1,590 | B163: =A163*((Preisliste!$I$22*Preisliste!$B$5+Preisliste!$I$23*Preisliste!$B$6+Preisliste!$I$24*Preisliste!$B$7+Preisliste!$I$25*Preisliste!$B$8+Preisliste!$I$26*Preisliste!$B$10)*Preisliste!$B$34) -> 5,088.00 € | C163: =(A163*(Preisliste!$I$22*Preisliste!$C$5+Preisliste!$I$23*Preisliste!$C$6+Preisliste!$I$24*Preisliste!$C$7+Preisliste!$I$25*Preisliste!$C$8+Preisliste!$I$26*Preisliste!$C$10)*Preisliste!$C$34+Preisliste!$C$13*12) -> 3,924.00 € | D163: =(A163*(Preisliste!$I$22*Preisliste!$D$5+Preisliste!$I$23*Preisliste!$D$6+Preisliste!$I$24*Preisliste!$D$7+Preisliste!$I$25*Preisliste!$D$8+Preisliste!$I$26*Preisliste!$D$10)*Preisliste!$D$34+Preisliste!$D$13*12) -> 3,012.00 € | E163: =(A163*(Preisliste!$I$22*Preisliste!$E$5+Preisliste!$I$23*Preisliste!$E$6+Preisliste!$I$24*Preisliste!$E$7+Preisliste!$I$25*Preisliste!$E$8+Preisliste!$I$26*Preisliste!$E$10)*Preisliste!$E$34+Preisliste!$E$13*12) -> 2,728.80 €
A164: 1,600 | B164: =A164*((Preisliste!$I$22*Preisliste!$B$5+Preisliste!$I$23*Preisliste!$B$6+Preisliste!$I$24*Preisliste!$B$7+Preisliste!$I$25*Preisliste!$B$8+Preisliste!$I$26*Preisliste!$B$10)*Preisliste!$B$34) -> 5,120.00 € | C164: =(A164*(Preisliste!$I$22*Preisliste!$C$5+Preisliste!$I$23*Preisliste!$C$6+Preisliste!$I$24*Preisliste!$C$7+Preisliste!$I$25*Preisliste!$C$8+Preisliste!$I$26*Preisliste!$C$10)*Preisliste!$C$34+Preisliste!$C$13*12) -> 3,948.00 € | D164: =(A164*(Preisliste!$I$22*Preisliste!$D$5+Preisliste!$I$23*Preisliste!$D$6+Preisliste!$I$24*Preisliste!$D$7+Preisliste!$I$25*Preisliste!$D$8+Preisliste!$I$26*Preisliste!$D$10)*Preisliste!$D$34+Preisliste!$D$13*12) -> 3,028.00 € | E164: =(A164*(Preisliste!$I$22*Preisliste!$E$5+Preisliste!$I$23*Preisliste!$E$6+Preisliste!$I$24*Preisliste!$E$7+Preisliste!$I$25*Preisliste!$E$8+Preisliste!$I$26*Preisliste!$E$10)*Preisliste!$E$34+Preisliste!$E$13*12) -> 2,740.00 €
A165: 1,610 | B165: =A165*((Preisliste!$I$22*Preisliste!$B$5+Preisliste!$I$23*Preisliste!$B$6+Preisliste!$I$24*Preisliste!$B$7+Preisliste!$I$25*Preisliste!$B$8+Preisliste!$I$26*Preisliste!$B$10)*Preisliste!$B$34) -> 5,152.00 € | C165: =(A165*(Preisliste!$I$22*Preisliste!$C$5+Preisliste!$I$23*Preisliste!$C$6+Preisliste!$I$24*Preisliste!$C$7+Preisliste!$I$25*Preisliste!$C$8+Preisliste!$I$26*Preisliste!$C$10)*Preisliste!$C$34+Preisliste!$C$13*12) -> 3,972.00 € | D165: =(A165*(Preisliste!$I$22*Preisliste!$D$5+Preisliste!$I$23*Preisliste!$D$6+Preisliste!$I$24*Preisliste!$D$7+Preisliste!$I$25*Preisliste!$D$8+Preisliste!$I$26*Preisliste!$D$10)*Preisliste!$D$34+Preisliste!$D$13*12) -> 3,044.00 € | E165: =(A165*(Preisliste!$I$22*Preisliste!$E$5+Preisliste!$I$23*Preisliste!$E$6+Preisliste!$I$24*Preisliste!$E$7+Preisliste!$I$25*Preisliste!$E$8+Preisliste!$I$26*Preisliste!$E$10)*Preisliste!$E$34+Preisliste!$E$13*12) -> 2,751.20 €
A166: 1,620 | B166: =A166*((Preisliste!$I$22*Preisliste!$B$5+Preisliste!$I$23*Preisliste!$B$6+Preisliste!$I$24*Preisliste!$B$7+Preisliste!$I$25*Preisliste!$B$8+Preisliste!$I$26*Preisliste!$B$10)*Preisliste!$B$34) -> 5,184.00 € | C166: =(A166*(Preisliste!$I$22*Preisliste!$C$5+Preisliste!$I$23*Preisliste!$C$6+Preisliste!$I$24*Preisliste!$C$7+Preisliste!$I$25*Preisliste!$C$8+Preisliste!$I$26*Preisliste!$C$10)*Preisliste!$C$34+Preisliste!$C$13*12) -> 3,996.00 € | D166: =(A166*(Preisliste!$I$22*Preisliste!$D$5+Preisliste!$I$23*Preisliste!$D$6+Preisliste!$I$24*Preisliste!$D$7+Preisliste!$I$25*Preisliste!$D$8+Preisliste!$I$26*Preisliste!$D$10)*Preisliste!$D$34+Preisliste!$D$13*12) -> 3,060.00 € | E166: =(A166*(Preisliste!$I$22*Preisliste!$E$5+Preisliste!$I$23*Preisliste!$E$6+Preisliste!$I$24*Preisliste!$E$7+Preisliste!$I$25*Preisliste!$E$8+Preisliste!$I$26*Preisliste!$E$10)*Preisliste!$E$34+Preisliste!$E$13*12) -> 2,762.40 €
A167: 1,630 | B167: =A167*((Preisliste!$I$22*Preisliste!$B$5+Preisliste!$I$23*Preisliste!$B$6+Preisliste!$I$24*Preisliste!$B$7+Preisliste!$I$25*Preisliste!$B$8+Preisliste!$I$26*Preisliste!$B$10)*Preisliste!$B$34) -> 5,216.00 € | C167: =(A167*(Preisliste!$I$22*Preisliste!$C$5+Preisliste!$I$23*Preisliste!$C$6+Preisliste!$I$24*Preisliste!$C$7+Preisliste!$I$25*Preisliste!$C$8+Preisliste!$I$26*Preisliste!$C$10)*Preisliste!$C$34+Preisliste!$C$13*12) -> 4,020.00 € | D167: =(A167*(Preisliste!$I$22*Preisliste!$D$5+Preisliste!$I$23*Preisliste!$D$6+Preisliste!$I$24*Preisliste!$D$7+Preisliste!$I$25*Preisliste!$D$8+Preisliste!$I$26*Preisliste!$D$10)*Preisliste!$D$34+Preisliste!$D$13*12) -> 3,076.00 € | E167: =(A167*(Preisliste!$I$22*Preisliste!$E$5+Preisliste!$I$23*Preisliste!$E$6+Preisliste!$I$24*Preisliste!$E$7+Preisliste!$I$25*Preisliste!$E$8+Preisliste!$I$26*Preisliste!$E$10)*Preisliste!$E$34+Preisliste!$E$13*12) -> 2,773.60 €
A168: 1,640 | B168: =A168*((Preisliste!$I$22*Preisliste!$B$5+Preisliste!$I$23*Preisliste!$B$6+Preisliste!$I$24*Preisliste!$B$7+Preisliste!$I$25*Preisliste!$B$8+Preisliste!$I$26*Preisliste!$B$10)*Preisliste!$B$34) -> 5,248.00 € | C168: =(A168*(Preisliste!$I$22*Preisliste!$C$5+Preisliste!$I$23*Preisliste!$C$6+Preisliste!$I$24*Preisliste!$C$7+Preisliste!$I$25*Preisliste!$C$8+Preisliste!$I$26*Preisliste!$C$10)*Preisliste!$C$34+Preisliste!$C$13*12) -> 4,044.00 € | D168: =(A168*(Preisliste!$I$22*Preisliste!$D$5+Preisliste!$I$23*Preisliste!$D$6+Preisliste!$I$24*Preisliste!$D$7+Preisliste!$I$25*Preisliste!$D$8+Preisliste!$I$26*Preisliste!$D$10)*Preisliste!$D$34+Preisliste!$D$13*12) -> 3,092.00 € | E168: =(A168*(Preisliste!$I$22*Preisliste!$E$5+Preisliste!$I$23*Preisliste!$E$6+Preisliste!$I$24*Preisliste!$E$7+Preisliste!$I$25*Preisliste!$E$8+Preisliste!$I$26*Preisliste!$E$10)*Preisliste!$E$34+Preisliste!$E$13*12) -> 2,784.80 €
A169: 1,650 | B169: =A169*((Preisliste!$I$22*Preisliste!$B$5+Preisliste!$I$23*Preisliste!$B$6+Preisliste!$I$24*Preisliste!$B$7+Preisliste!$I$25*Preisliste!$B$8+Preisliste!$I$26*Preisliste!$B$10)*Preisliste!$B$34) -> 5,280.00 € | C169: =(A169*(Preisliste!$I$22*Preisliste!$C$5+Preisliste!$I$23*Preisliste!$C$6+Preisliste!$I$24*Preisliste!$C$7+Preisliste!$I$25*Preisliste!$C$8+Preisliste!$I$26*Preisliste!$C$10)*Preisliste!$C$34+Preisliste!$C$13*12) -> 4,068.00 € | D169: =(A169*(Preisliste!$I$22*Preisliste!$D$5+Preisliste!$I$23*Preisliste!$D$6+Preisliste!$I$24*Preisliste!$D$7+Preisliste!$I$25*Preisliste!$D$8+Preisliste!$I$26*Preisliste!$D$10)*Preisliste!$D$34+Preisliste!$D$13*12) -> 3,108.00 € | E169: =(A169*(Preisliste!$I$22*Preisliste!$E$5+Preisliste!$I$23*Preisliste!$E$6+Preisliste!$I$24*Preisliste!$E$7+Preisliste!$I$25*Preisliste!$E$8+Preisliste!$I$26*Preisliste!$E$10)*Preisliste!$E$34+Preisliste!$E$13*12) -> 2,796.00 €
A170: 1,660 | B170: =A170*((Preisliste!$I$22*Preisliste!$B$5+Preisliste!$I$23*Preisliste!$B$6+Preisliste!$I$24*Preisliste!$B$7+Preisliste!$I$25*Preisliste!$B$8+Preisliste!$I$26*Preisliste!$B$10)*Preisliste!$B$34) -> 5,312.00 € | C170: =(A170*(Preisliste!$I$22*Preisliste!$C$5+Preisliste!$I$23*Preisliste!$C$6+Preisliste!$I$24*Preisliste!$C$7+Preisliste!$I$25*Preisliste!$C$8+Preisliste!$I$26*Preisliste!$C$10)*Preisliste!$C$34+Preisliste!$C$13*12) -> 4,092.00 € | D170: =(A170*(Preisliste!$I$22*Preisliste!$D$5+Preisliste!$I$23*Preisliste!$D$6+Preisliste!$I$24*Preisliste!$D$7+Preisliste!$I$25*Preisliste!$D$8+Preisliste!$I$26*Preisliste!$D$10)*Preisliste!$D$34+Preisliste!$D$13*12) -> 3,124.00 € | E170: =(A170*(Preisliste!$I$22*Preisliste!$E$5+Preisliste!$I$23*Preisliste!$E$6+Preisliste!$I$24*Preisliste!$E$7+Preisliste!$I$25*Preisliste!$E$8+Preisliste!$I$26*Preisliste!$E$10)*Preisliste!$E$34+Preisliste!$E$13*12) -> 2,807.20 €
A171: 1,670 | B171: =A171*((Preisliste!$I$22*Preisliste!$B$5+Preisliste!$I$23*Preisliste!$B$6+Preisliste!$I$24*Preisliste!$B$7+Preisliste!$I$25*Preisliste!$B$8+Preisliste!$I$26*Preisliste!$B$10)*Preisliste!$B$34) -> 5,344.00 € | C171: =(A171*(Preisliste!$I$22*Preisliste!$C$5+Preisliste!$I$23*Preisliste!$C$6+Preisliste!$I$24*Preisliste!$C$7+Preisliste!$I$25*Preisliste!$C$8+Preisliste!$I$26*Preisliste!$C$10)*Preisliste!$C$34+Preisliste!$C$13*12) -> 4,116.00 € | D171: =(A171*(Preisliste!$I$22*Preisliste!$D$5+Preisliste!$I$23*Preisliste!$D$6+Preisliste!$I$24*Preisliste!$D$7+Preisliste!$I$25*Preisliste!$D$8+Preisliste!$I$26*Preisliste!$D$10)*Preisliste!$D$34+Preisliste!$D$13*12) -> 3,140.00 € | E171: =(A171*(Preisliste!$I$22*Preisliste!$E$5+Preisliste!$I$23*Preisliste!$E$6+Preisliste!$I$24*Preisliste!$E$7+Preisliste!$I$25*Preisliste!$E$8+Preisliste!$I$26*Preisliste!$E$10)*Preisliste!$E$34+Preisliste!$E$13*12) -> 2,818.40 €
A172: 1,680 | B172: =A172*((Preisliste!$I$22*Preisliste!$B$5+Preisliste!$I$23*Preisliste!$B$6+Preisliste!$I$24*Preisliste!$B$7+Preisliste!$I$25*Preisliste!$B$8+Preisliste!$I$26*Preisliste!$B$10)*Preisliste!$B$34) -> 5,376.00 € | C172: =(A172*(Preisliste!$I$22*Preisliste!$C$5+Preisliste!$I$23*Preisliste!$C$6+Preisliste!$I$24*Preisliste!$C$7+Preisliste!$I$25*Preisliste!$C$8+Preisliste!$I$26*Preisliste!$C$10)*Preisliste!$C$34+Preisliste!$C$13*12) -> 4,140.00 € | D172: =(A172*(Preisliste!$I$22*Preisliste!$D$5+Preisliste!$I$23*Preisliste!$D$6+Preisliste!$I$24*Preisliste!$D$7+Preisliste!$I$25*Preisliste!$D$8+Preisliste!$I$26*Preisliste!$D$10)*Preisliste!$D$34+Preisliste!$D$13*12) -> 3,156.00 € | E172: =(A172*(Preisliste!$I$22*Preisliste!$E$5+Preisliste!$I$23*Preisliste!$E$6+Preisliste!$I$24*Preisliste!$E$7+Preisliste!$I$25*Preisliste!$E$8+Preisliste!$I$26*Preisliste!$E$10)*Preisliste!$E$34+Preisliste!$E$13*12) -> 2,829.60 €
A173: 1,690 | B173: =A173*((Preisliste!$I$22*Preisliste!$B$5+Preisliste!$I$23*Preisliste!$B$6+Preisliste!$I$24*Preisliste!$B$7+Preisliste!$I$25*Preisliste!$B$8+Preisliste!$I$26*Preisliste!$B$10)*Preisliste!$B$34) -> 5,408.00 € | C173: =(A173*(Preisliste!$I$22*Preisliste!$C$5+Preisliste!$I$23*Preisliste!$C$6+Preisliste!$I$24*Preisliste!$C$7+Preisliste!$I$25*Preisliste!$C$8+Preisliste!$I$26*Preisliste!$C$10)*Preisliste!$C$34+Preisliste!$C$13*12) -> 4,164.00 € | D173: =(A173*(Preisliste!$I$22*Preisliste!$D$5+Preisliste!$I$23*Preisliste!$D$6+Preisliste!$I$24*Preisliste!$D$7+Preisliste!$I$25*Preisliste!$D$8+Preisliste!$I$26*Preisliste!$D$10)*Preisliste!$D$34+Preisliste!$D$13*12) -> 3,172.00 € | E173: =(A173*(Preisliste!$I$22*Preisliste!$E$5+Preisliste!$I$23*Preisliste!$E$6+Preisliste!$I$24*Preisliste!$E$7+Preisliste!$I$25*Preisliste!$E$8+Preisliste!$I$26*Preisliste!$E$10)*Preisliste!$E$34+Preisliste!$E$13*12) -> 2,840.80 €
A174: 1,700 | B174: =A174*((Preisliste!$I$22*Preisliste!$B$5+Preisliste!$I$23*Preisliste!$B$6+Preisliste!$I$24*Preisliste!$B$7+Preisliste!$I$25*Preisliste!$B$8+Preisliste!$I$26*Preisliste!$B$10)*Preisliste!$B$34) -> 5,440.00 € | C174: =(A174*(Preisliste!$I$22*Preisliste!$C$5+Preisliste!$I$23*Preisliste!$C$6+Preisliste!$I$24*Preisliste!$C$7+Preisliste!$I$25*Preisliste!$C$8+Preisliste!$I$26*Preisliste!$C$10)*Preisliste!$C$34+Preisliste!$C$13*12) -> 4,188.00 € | D174: =(A174*(Preisliste!$I$22*Preisliste!$D$5+Preisliste!$I$23*Preisliste!$D$6+Preisliste!$I$24*Preisliste!$D$7+Preisliste!$I$25*Preisliste!$D$8+Preisliste!$I$26*Preisliste!$D$10)*Preisliste!$D$34+Preisliste!$D$13*12) -> 3,188.00 € | E174: =(A174*(Preisliste!$I$22*Preisliste!$E$5+Preisliste!$I$23*Preisliste!$E$6+Preisliste!$I$24*Preisliste!$E$7+Preisliste!$I$25*Preisliste!$E$8+Preisliste!$I$26*Preisliste!$E$10)*Preisliste!$E$34+Preisliste!$E$13*12) -> 2,852.00 €
A175: 1,710 | B175: =A175*((Preisliste!$I$22*Preisliste!$B$5+Preisliste!$I$23*Preisliste!$B$6+Preisliste!$I$24*Preisliste!$B$7+Preisliste!$I$25*Preisliste!$B$8+Preisliste!$I$26*Preisliste!$B$10)*Preisliste!$B$34) -> 5,472.00 € | C175: =(A175*(Preisliste!$I$22*Preisliste!$C$5+Preisliste!$I$23*Preisliste!$C$6+Preisliste!$I$24*Preisliste!$C$7+Preisliste!$I$25*Preisliste!$C$8+Preisliste!$I$26*Preisliste!$C$10)*Preisliste!$C$34+Preisliste!$C$13*12) -> 4,212.00 € | D175: =(A175*(Preisliste!$I$22*Preisliste!$D$5+Preisliste!$I$23*Preisliste!$D$6+Preisliste!$I$24*Preisliste!$D$7+Preisliste!$I$25*Preisliste!$D$8+Preisliste!$I$26*Preisliste!$D$10)*Preisliste!$D$34+Preisliste!$D$13*12) -> 3,204.00 € | E175: =(A175*(Preisliste!$I$22*Preisliste!$E$5+Preisliste!$I$23*Preisliste!$E$6+Preisliste!$I$24*Preisliste!$E$7+Preisliste!$I$25*Preisliste!$E$8+Preisliste!$I$26*Preisliste!$E$10)*Preisliste!$E$34+Preisliste!$E$13*12) -> 2,863.20 €
A176: 1,720 | B176: =A176*((Preisliste!$I$22*Preisliste!$B$5+Preisliste!$I$23*Preisliste!$B$6+Preisliste!$I$24*Preisliste!$B$7+Preisliste!$I$25*Preisliste!$B$8+Preisliste!$I$26*Preisliste!$B$10)*Preisliste!$B$34) -> 5,504.00 € | C176: =(A176*(Preisliste!$I$22*Preisliste!$C$5+Preisliste!$I$23*Preisliste!$C$6+Preisliste!$I$24*Preisliste!$C$7+Preisliste!$I$25*Preisliste!$C$8+Preisliste!$I$26*Preisliste!$C$10)*Preisliste!$C$34+Preisliste!$C$13*12) -> 4,236.00 € | D176: =(A176*(Preisliste!$I$22*Preisliste!$D$5+Preisliste!$I$23*Preisliste!$D$6+Preisliste!$I$24*Preisliste!$D$7+Preisliste!$I$25*Preisliste!$D$8+Preisliste!$I$26*Preisliste!$D$10)*Preisliste!$D$34+Preisliste!$D$13*12) -> 3,220.00 € | E176: =(A176*(Preisliste!$I$22*Preisliste!$E$5+Preisliste!$I$23*Preisliste!$E$6+Preisliste!$I$24*Preisliste!$E$7+Preisliste!$I$25*Preisliste!$E$8+Preisliste!$I$26*Preisliste!$E$10)*Preisliste!$E$34+Preisliste!$E$13*12) -> 2,874.40 €
A177: 1,730 | B177: =A177*((Preisliste!$I$22*Preisliste!$B$5+Preisliste!$I$23*Preisliste!$B$6+Preisliste!$I$24*Preisliste!$B$7+Preisliste!$I$25*Preisliste!$B$8+Preisliste!$I$26*Preisliste!$B$10)*Preisliste!$B$34) -> 5,536.00 € | C177: =(A177*(Preisliste!$I$22*Preisliste!$C$5+Preisliste!$I$23*Preisliste!$C$6+Preisliste!$I$24*Preisliste!$C$7+Preisliste!$I$25*Preisliste!$C$8+Preisliste!$I$26*Preisliste!$C$10)*Preisliste!$C$34+Preisliste!$C$13*12) -> 4,260.00 € | D177: =(A177*(Preisliste!$I$22*Preisliste!$D$5+Preisliste!$I$23*Preisliste!$D$6+Preisliste!$I$24*Preisliste!$D$7+Preisliste!$I$25*Preisliste!$D$8+Preisliste!$I$26*Preisliste!$D$10)*Preisliste!$D$34+Preisliste!$D$13*12) -> 3,236.00 € | E177: =(A177*(Preisliste!$I$22*Preisliste!$E$5+Preisliste!$I$23*Preisliste!$E$6+Preisliste!$I$24*Preisliste!$E$7+Preisliste!$I$25*Preisliste!$E$8+Preisliste!$I$26*Preisliste!$E$10)*Preisliste!$E$34+Preisliste!$E$13*12) -> 2,885.60 €
A178: 1,740 | B178: =A178*((Preisliste!$I$22*Preisliste!$B$5+Preisliste!$I$23*Preisliste!$B$6+Preisliste!$I$24*Preisliste!$B$7+Preisliste!$I$25*Preisliste!$B$8+Preisliste!$I$26*Preisliste!$B$10)*Preisliste!$B$34) -> 5,568.00 € | C178: =(A178*(Preisliste!$I$22*Preisliste!$C$5+Preisliste!$I$23*Preisliste!$C$6+Preisliste!$I$24*Preisliste!$C$7+Preisliste!$I$25*Preisliste!$C$8+Preisliste!$I$26*Preisliste!$C$10)*Preisliste!$C$34+Preisliste!$C$13*12) -> 4,284.00 € | D178: =(A178*(Preisliste!$I$22*Preisliste!$D$5+Preisliste!$I$23*Preisliste!$D$6+Preisliste!$I$24*Preisliste!$D$7+Preisliste!$I$25*Preisliste!$D$8+Preisliste!$I$26*Preisliste!$D$10)*Preisliste!$D$34+Preisliste!$D$13*12) -> 3,252.00 € | E178: =(A178*(Preisliste!$I$22*Preisliste!$E$5+Preisliste!$I$23*Preisliste!$E$6+Preisliste!$I$24*Preisliste!$E$7+Preisliste!$I$25*Preisliste!$E$8+Preisliste!$I$26*Preisliste!$E$10)*Preisliste!$E$34+Preisliste!$E$13*12) -> 2,896.80 €
A179: 1,750 | B179: =A179*((Preisliste!$I$22*Preisliste!$B$5+Preisliste!$I$23*Preisliste!$B$6+Preisliste!$I$24*Preisliste!$B$7+Preisliste!$I$25*Preisliste!$B$8+Preisliste!$I$26*Preisliste!$B$10)*Preisliste!$B$34) -> 5,600.00 € | C179: =(A179*(Preisliste!$I$22*Preisliste!$C$5+Preisliste!$I$23*Preisliste!$C$6+Preisliste!$I$24*Preisliste!$C$7+Preisliste!$I$25*Preisliste!$C$8+Preisliste!$I$26*Preisliste!$C$10)*Preisliste!$C$34+Preisliste!$C$13*12) -> 4,308.00 € | D179: =(A179*(Preisliste!$I$22*Preisliste!$D$5+Preisliste!$I$23*Preisliste!$D$6+Preisliste!$I$24*Preisliste!$D$7+Preisliste!$I$25*Preisliste!$D$8+Preisliste!$I$26*Preisliste!$D$10)*Preisliste!$D$34+Preisliste!$D$13*12) -> 3,268.00 € | E179: =(A179*(Preisliste!$I$22*Preisliste!$E$5+Preisliste!$I$23*Preisliste!$E$6+Preisliste!$I$24*Preisliste!$E$7+Preisliste!$I$25*Preisliste!$E$8+Preisliste!$I$26*Preisliste!$E$10)*Preisliste!$E$34+Preisliste!$E$13*12) -> 2,908.00 €
A180: 1,760 | B180: =A180*((Preisliste!$I$22*Preisliste!$B$5+Preisliste!$I$23*Preisliste!$B$6+Preisliste!$I$24*Preisliste!$B$7+Preisliste!$I$25*Preisliste!$B$8+Preisliste!$I$26*Preisliste!$B$10)*Preisliste!$B$34) -> 5,632.00 € | C180: =(A180*(Preisliste!$I$22*Preisliste!$C$5+Preisliste!$I$23*Preisliste!$C$6+Preisliste!$I$24*Preisliste!$C$7+Preisliste!$I$25*Preisliste!$C$8+Preisliste!$I$26*Preisliste!$C$10)*Preisliste!$C$34+Preisliste!$C$13*12) -> 4,332.00 € | D180: =(A180*(Preisliste!$I$22*Preisliste!$D$5+Preisliste!$I$23*Preisliste!$D$6+Preisliste!$I$24*Preisliste!$D$7+Preisliste!$I$25*Preisliste!$D$8+Preisliste!$I$26*Preisliste!$D$10)*Preisliste!$D$34+Preisliste!$D$13*12) -> 3,284.00 € | E180: =(A180*(Preisliste!$I$22*Preisliste!$E$5+Preisliste!$I$23*Preisliste!$E$6+Preisliste!$I$24*Preisliste!$E$7+Preisliste!$I$25*Preisliste!$E$8+Preisliste!$I$26*Preisliste!$E$10)*Preisliste!$E$34+Preisliste!$E$13*12) -> 2,919.20 €
A181: 1,770 | B181: =A181*((Preisliste!$I$22*Preisliste!$B$5+Preisliste!$I$23*Preisliste!$B$6+Preisliste!$I$24*Preisliste!$B$7+Preisliste!$I$25*Preisliste!$B$8+Preisliste!$I$26*Preisliste!$B$10)*Preisliste!$B$34) -> 5,664.00 € | C181: =(A181*(Preisliste!$I$22*Preisliste!$C$5+Preisliste!$I$23*Preisliste!$C$6+Preisliste!$I$24*Preisliste!$C$7+Preisliste!$I$25*Preisliste!$C$8+Preisliste!$I$26*Preisliste!$C$10)*Preisliste!$C$34+Preisliste!$C$13*12) -> 4,356.00 € | D181: =(A181*(Preisliste!$I$22*Preisliste!$D$5+Preisliste!$I$23*Preisliste!$D$6+Preisliste!$I$24*Preisliste!$D$7+Preisliste!$I$25*Preisliste!$D$8+Preisliste!$I$26*Preisliste!$D$10)*Preisliste!$D$34+Preisliste!$D$13*12) -> 3,300.00 € | E181: =(A181*(Preisliste!$I$22*Preisliste!$E$5+Preisliste!$I$23*Preisliste!$E$6+Preisliste!$I$24*Preisliste!$E$7+Preisliste!$I$25*Preisliste!$E$8+Preisliste!$I$26*Preisliste!$E$10)*Preisliste!$E$34+Preisliste!$E$13*12) -> 2,930.40 €
A182: 1,780 | B182: =A182*((Preisliste!$I$22*Preisliste!$B$5+Preisliste!$I$23*Preisliste!$B$6+Preisliste!$I$24*Preisliste!$B$7+Preisliste!$I$25*Preisliste!$B$8+Preisliste!$I$26*Preisliste!$B$10)*Preisliste!$B$34) -> 5,696.00 € | C182: =(A182*(Preisliste!$I$22*Preisliste!$C$5+Preisliste!$I$23*Preisliste!$C$6+Preisliste!$I$24*Preisliste!$C$7+Preisliste!$I$25*Preisliste!$C$8+Preisliste!$I$26*Preisliste!$C$10)*Preisliste!$C$34+Preisliste!$C$13*12) -> 4,380.00 € | D182: =(A182*(Preisliste!$I$22*Preisliste!$D$5+Preisliste!$I$23*Preisliste!$D$6+Preisliste!$I$24*Preisliste!$D$7+Preisliste!$I$25*Preisliste!$D$8+Preisliste!$I$26*Preisliste!$D$10)*Preisliste!$D$34+Preisliste!$D$13*12) -> 3,316.00 € | E182: =(A182*(Preisliste!$I$22*Preisliste!$E$5+Preisliste!$I$23*Preisliste!$E$6+Preisliste!$I$24*Preisliste!$E$7+Preisliste!$I$25*Preisliste!$E$8+Preisliste!$I$26*Preisliste!$E$10)*Preisliste!$E$34+Preisliste!$E$13*12) -> 2,941.60 €
A183: 1,790 | B183: =A183*((Preisliste!$I$22*Preisliste!$B$5+Preisliste!$I$23*Preisliste!$B$6+Preisliste!$I$24*Preisliste!$B$7+Preisliste!$I$25*Preisliste!$B$8+Preisliste!$I$26*Preisliste!$B$10)*Preisliste!$B$34) -> 5,728.00 € | C183: =(A183*(Preisliste!$I$22*Preisliste!$C$5+Preisliste!$I$23*Preisliste!$C$6+Preisliste!$I$24*Preisliste!$C$7+Preisliste!$I$25*Preisliste!$C$8+Preisliste!$I$26*Preisliste!$C$10)*Preisliste!$C$34+Preisliste!$C$13*12) -> 4,404.00 € | D183: =(A183*(Preisliste!$I$22*Preisliste!$D$5+Preisliste!$I$23*Preisliste!$D$6+Preisliste!$I$24*Preisliste!$D$7+Preisliste!$I$25*Preisliste!$D$8+Preisliste!$I$26*Preisliste!$D$10)*Preisliste!$D$34+Preisliste!$D$13*12) -> 3,332.00 € | E183: =(A183*(Preisliste!$I$22*Preisliste!$E$5+Preisliste!$I$23*Preisliste!$E$6+Preisliste!$I$24*Preisliste!$E$7+Preisliste!$I$25*Preisliste!$E$8+Preisliste!$I$26*Preisliste!$E$10)*Preisliste!$E$34+Preisliste!$E$13*12) -> 2,952.80 €
A184: 1,800 | B184: =A184*((Preisliste!$I$22*Preisliste!$B$5+Preisliste!$I$23*Preisliste!$B$6+Preisliste!$I$24*Preisliste!$B$7+Preisliste!$I$25*Preisliste!$B$8+Preisliste!$I$26*Preisliste!$B$10)*Preisliste!$B$34) -> 5,760.00 € | C184: =(A184*(Preisliste!$I$22*Preisliste!$C$5+Preisliste!$I$23*Preisliste!$C$6+Preisliste!$I$24*Preisliste!$C$7+Preisliste!$I$25*Preisliste!$C$8+Preisliste!$I$26*Preisliste!$C$10)*Preisliste!$C$34+Preisliste!$C$13*12) -> 4,428.00 € | D184: =(A184*(Preisliste!$I$22*Preisliste!$D$5+Preisliste!$I$23*Preisliste!$D$6+Preisliste!$I$24*Preisliste!$D$7+Preisliste!$I$25*Preisliste!$D$8+Preisliste!$I$26*Preisliste!$D$10)*Preisliste!$D$34+Preisliste!$D$13*12) -> 3,348.00 € | E184: =(A184*(Preisliste!$I$22*Preisliste!$E$5+Preisliste!$I$23*Preisliste!$E$6+Preisliste!$I$24*Preisliste!$E$7+Preisliste!$I$25*Preisliste!$E$8+Preisliste!$I$26*Preisliste!$E$10)*Preisliste!$E$34+Preisliste!$E$13*12) -> 2,964.00 €
A185: 1,810 | B185: =A185*((Preisliste!$I$22*Preisliste!$B$5+Preisliste!$I$23*Preisliste!$B$6+Preisliste!$I$24*Preisliste!$B$7+Preisliste!$I$25*Preisliste!$B$8+Preisliste!$I$26*Preisliste!$B$10)*Preisliste!$B$34) -> 5,792.00 € | C185: =(A185*(Preisliste!$I$22*Preisliste!$C$5+Preisliste!$I$23*Preisliste!$C$6+Preisliste!$I$24*Preisliste!$C$7+Preisliste!$I$25*Preisliste!$C$8+Preisliste!$I$26*Preisliste!$C$10)*Preisliste!$C$34+Preisliste!$C$13*12) -> 4,452.00 € | D185: =(A185*(Preisliste!$I$22*Preisliste!$D$5+Preisliste!$I$23*Preisliste!$D$6+Preisliste!$I$24*Preisliste!$D$7+Preisliste!$I$25*Preisliste!$D$8+Preisliste!$I$26*Preisliste!$D$10)*Preisliste!$D$34+Preisliste!$D$13*12) -> 3,364.00 € | E185: =(A185*(Preisliste!$I$22*Preisliste!$E$5+Preisliste!$I$23*Preisliste!$E$6+Preisliste!$I$24*Preisliste!$E$7+Preisliste!$I$25*Preisliste!$E$8+Preisliste!$I$26*Preisliste!$E$10)*Preisliste!$E$34+Preisliste!$E$13*12) -> 2,975.20 €
A186: 1,820 | B186: =A186*((Preisliste!$I$22*Preisliste!$B$5+Preisliste!$I$23*Preisliste!$B$6+Preisliste!$I$24*Preisliste!$B$7+Preisliste!$I$25*Preisliste!$B$8+Preisliste!$I$26*Preisliste!$B$10)*Preisliste!$B$34) -> 5,824.00 € | C186: =(A186*(Preisliste!$I$22*Preisliste!$C$5+Preisliste!$I$23*Preisliste!$C$6+Preisliste!$I$24*Preisliste!$C$7+Preisliste!$I$25*Preisliste!$C$8+Preisliste!$I$26*Preisliste!$C$10)*Preisliste!$C$34+Preisliste!$C$13*12) -> 4,476.00 € | D186: =(A186*(Preisliste!$I$22*Preisliste!$D$5+Preisliste!$I$23*Preisliste!$D$6+Preisliste!$I$24*Preisliste!$D$7+Preisliste!$I$25*Preisliste!$D$8+Preisliste!$I$26*Preisliste!$D$10)*Preisliste!$D$34+Preisliste!$D$13*12) -> 3,380.00 € | E186: =(A186*(Preisliste!$I$22*Preisliste!$E$5+Preisliste!$I$23*Preisliste!$E$6+Preisliste!$I$24*Preisliste!$E$7+Preisliste!$I$25*Preisliste!$E$8+Preisliste!$I$26*Preisliste!$E$10)*Preisliste!$E$34+Preisliste!$E$13*12) -> 2,986.40 €
A187: 1,830 | B187: =A187*((Preisliste!$I$22*Preisliste!$B$5+Preisliste!$I$23*Preisliste!$B$6+Preisliste!$I$24*Preisliste!$B$7+Preisliste!$I$25*Preisliste!$B$8+Preisliste!$I$26*Preisliste!$B$10)*Preisliste!$B$34) -> 5,856.00 € | C187: =(A187*(Preisliste!$I$22*Preisliste!$C$5+Preisliste!$I$23*Preisliste!$C$6+Preisliste!$I$24*Preisliste!$C$7+Preisliste!$I$25*Preisliste!$C$8+Preisliste!$I$26*Preisliste!$C$10)*Preisliste!$C$34+Preisliste!$C$13*12) -> 4,500.00 € | D187: =(A187*(Preisliste!$I$22*Preisliste!$D$5+Preisliste!$I$23*Preisliste!$D$6+Preisliste!$I$24*Preisliste!$D$7+Preisliste!$I$25*Preisliste!$D$8+Preisliste!$I$26*Preisliste!$D$10)*Preisliste!$D$34+Preisliste!$D$13*12) -> 3,396.00 € | E187: =(A187*(Preisliste!$I$22*Preisliste!$E$5+Preisliste!$I$23*Preisliste!$E$6+Preisliste!$I$24*Preisliste!$E$7+Preisliste!$I$25*Preisliste!$E$8+Preisliste!$I$26*Preisliste!$E$10)*Preisliste!$E$34+Preisliste!$E$13*12) -> 2,997.60 €
A188: 1,840 | B188: =A188*((Preisliste!$I$22*Preisliste!$B$5+Preisliste!$I$23*Preisliste!$B$6+Preisliste!$I$24*Preisliste!$B$7+Preisliste!$I$25*Preisliste!$B$8+Preisliste!$I$26*Preisliste!$B$10)*Preisliste!$B$34) -> 5,888.00 € | C188: =(A188*(Preisliste!$I$22*Preisliste!$C$5+Preisliste!$I$23*Preisliste!$C$6+Preisliste!$I$24*Preisliste!$C$7+Preisliste!$I$25*Preisliste!$C$8+Preisliste!$I$26*Preisliste!$C$10)*Preisliste!$C$34+Preisliste!$C$13*12) -> 4,524.00 € | D188: =(A188*(Preisliste!$I$22*Preisliste!$D$5+Preisliste!$I$23*Preisliste!$D$6+Preisliste!$I$24*Preisliste!$D$7+Preisliste!$I$25*Preisliste!$D$8+Preisliste!$I$26*Preisliste!$D$10)*Preisliste!$D$34+Preisliste!$D$13*12) -> 3,412.00 € | E188: =(A188*(Preisliste!$I$22*Preisliste!$E$5+Preisliste!$I$23*Preisliste!$E$6+Preisliste!$I$24*Preisliste!$E$7+Preisliste!$I$25*Preisliste!$E$8+Preisliste!$I$26*Preisliste!$E$10)*Preisliste!$E$34+Preisliste!$E$13*12) -> 3,008.80 €
A189: 1,850 | B189: =A189*((Preisliste!$I$22*Preisliste!$B$5+Preisliste!$I$23*Preisliste!$B$6+Preisliste!$I$24*Preisliste!$B$7+Preisliste!$I$25*Preisliste!$B$8+Preisliste!$I$26*Preisliste!$B$10)*Preisliste!$B$34) -> 5,920.00 € | C189: =(A189*(Preisliste!$I$22*Preisliste!$C$5+Preisliste!$I$23*Preisliste!$C$6+Preisliste!$I$24*Preisliste!$C$7+Preisliste!$I$25*Preisliste!$C$8+Preisliste!$I$26*Preisliste!$C$10)*Preisliste!$C$34+Preisliste!$C$13*12) -> 4,548.00 € | D189: =(A189*(Preisliste!$I$22*Preisliste!$D$5+Preisliste!$I$23*Preisliste!$D$6+Preisliste!$I$24*Preisliste!$D$7+Preisliste!$I$25*Preisliste!$D$8+Preisliste!$I$26*Preisliste!$D$10)*Preisliste!$D$34+Preisliste!$D$13*12) -> 3,428.00 € | E189: =(A189*(Preisliste!$I$22*Preisliste!$E$5+Preisliste!$I$23*Preisliste!$E$6+Preisliste!$I$24*Preisliste!$E$7+Preisliste!$I$25*Preisliste!$E$8+Preisliste!$I$26*Preisliste!$E$10)*Preisliste!$E$34+Preisliste!$E$13*12) -> 3,020.00 €
A190: 1,860 | B190: =A190*((Preisliste!$I$22*Preisliste!$B$5+Preisliste!$I$23*Preisliste!$B$6+Preisliste!$I$24*Preisliste!$B$7+Preisliste!$I$25*Preisliste!$B$8+Preisliste!$I$26*Preisliste!$B$10)*Preisliste!$B$34) -> 5,952.00 € | C190: =(A190*(Preisliste!$I$22*Preisliste!$C$5+Preisliste!$I$23*Preisliste!$C$6+Preisliste!$I$24*Preisliste!$C$7+Preisliste!$I$25*Preisliste!$C$8+Preisliste!$I$26*Preisliste!$C$10)*Preisliste!$C$34+Preisliste!$C$13*12) -> 4,572.00 € | D190: =(A190*(Preisliste!$I$22*Preisliste!$D$5+Preisliste!$I$23*Preisliste!$D$6+Preisliste!$I$24*Preisliste!$D$7+Preisliste!$I$25*Preisliste!$D$8+Preisliste!$I$26*Preisliste!$D$10)*Preisliste!$D$34+Preisliste!$D$13*12) -> 3,444.00 € | E190: =(A190*(Preisliste!$I$22*Preisliste!$E$5+Preisliste!$I$23*Preisliste!$E$6+Preisliste!$I$24*Preisliste!$E$7+Preisliste!$I$25*Preisliste!$E$8+Preisliste!$I$26*Preisliste!$E$10)*Preisliste!$E$34+Preisliste!$E$13*12) -> 3,031.20 €
A191: 1,870 | B191: =A191*((Preisliste!$I$22*Preisliste!$B$5+Preisliste!$I$23*Preisliste!$B$6+Preisliste!$I$24*Preisliste!$B$7+Preisliste!$I$25*Preisliste!$B$8+Preisliste!$I$26*Preisliste!$B$10)*Preisliste!$B$34) -> 5,984.00 € | C191: =(A191*(Preisliste!$I$22*Preisliste!$C$5+Preisliste!$I$23*Preisliste!$C$6+Preisliste!$I$24*Preisliste!$C$7+Preisliste!$I$25*Preisliste!$C$8+Preisliste!$I$26*Preisliste!$C$10)*Preisliste!$C$34+Preisliste!$C$13*12) -> 4,596.00 € | D191: =(A191*(Preisliste!$I$22*Preisliste!$D$5+Preisliste!$I$23*Preisliste!$D$6+Preisliste!$I$24*Preisliste!$D$7+Preisliste!$I$25*Preisliste!$D$8+Preisliste!$I$26*Preisliste!$D$10)*Preisliste!$D$34+Preisliste!$D$13*12) -> 3,460.00 € | E191: =(A191*(Preisliste!$I$22*Preisliste!$E$5+Preisliste!$I$23*Preisliste!$E$6+Preisliste!$I$24*Preisliste!$E$7+Preisliste!$I$25*Preisliste!$E$8+Preisliste!$I$26*Preisliste!$E$10)*Preisliste!$E$34+Preisliste!$E$13*12) -> 3,042.40 €
A192: 1,880 | B192: =A192*((Preisliste!$I$22*Preisliste!$B$5+Preisliste!$I$23*Preisliste!$B$6+Preisliste!$I$24*Preisliste!$B$7+Preisliste!$I$25*Preisliste!$B$8+Preisliste!$I$26*Preisliste!$B$10)*Preisliste!$B$34) -> 6,016.00 € | C192: =(A192*(Preisliste!$I$22*Preisliste!$C$5+Preisliste!$I$23*Preisliste!$C$6+Preisliste!$I$24*Preisliste!$C$7+Preisliste!$I$25*Preisliste!$C$8+Preisliste!$I$26*Preisliste!$C$10)*Preisliste!$C$34+Preisliste!$C$13*12) -> 4,620.00 € | D192: =(A192*(Preisliste!$I$22*Preisliste!$D$5+Preisliste!$I$23*Preisliste!$D$6+Preisliste!$I$24*Preisliste!$D$7+Preisliste!$I$25*Preisliste!$D$8+Preisliste!$I$26*Preisliste!$D$10)*Preisliste!$D$34+Preisliste!$D$13*12) -> 3,476.00 € | E192: =(A192*(Preisliste!$I$22*Preisliste!$E$5+Preisliste!$I$23*Preisliste!$E$6+Preisliste!$I$24*Preisliste!$E$7+Preisliste!$I$25*Preisliste!$E$8+Preisliste!$I$26*Preisliste!$E$10)*Preisliste!$E$34+Preisliste!$E$13*12) -> 3,053.60 €
A193: 1,890 | B193: =A193*((Preisliste!$I$22*Preisliste!$B$5+Preisliste!$I$23*Preisliste!$B$6+Preisliste!$I$24*Preisliste!$B$7+Preisliste!$I$25*Preisliste!$B$8+Preisliste!$I$26*Preisliste!$B$10)*Preisliste!$B$34) -> 6,048.00 € | C193: =(A193*(Preisliste!$I$22*Preisliste!$C$5+Preisliste!$I$23*Preisliste!$C$6+Preisliste!$I$24*Preisliste!$C$7+Preisliste!$I$25*Preisliste!$C$8+Preisliste!$I$26*Preisliste!$C$10)*Preisliste!$C$34+Preisliste!$C$13*12) -> 4,644.00 € | D193: =(A193*(Preisliste!$I$22*Preisliste!$D$5+Preisliste!$I$23*Preisliste!$D$6+Preisliste!$I$24*Preisliste!$D$7+Preisliste!$I$25*Preisliste!$D$8+Preisliste!$I$26*Preisliste!$D$10)*Preisliste!$D$34+Preisliste!$D$13*12) -> 3,492.00 € | E193: =(A193*(Preisliste!$I$22*Preisliste!$E$5+Preisliste!$I$23*Preisliste!$E$6+Preisliste!$I$24*Preisliste!$E$7+Preisliste!$I$25*Preisliste!$E$8+Preisliste!$I$26*Preisliste!$E$10)*Preisliste!$E$34+Preisliste!$E$13*12) -> 3,064.80 €
A194: 1,900 | B194: =A194*((Preisliste!$I$22*Preisliste!$B$5+Preisliste!$I$23*Preisliste!$B$6+Preisliste!$I$24*Preisliste!$B$7+Preisliste!$I$25*Preisliste!$B$8+Preisliste!$I$26*Preisliste!$B$10)*Preisliste!$B$34) -> 6,080.00 € | C194: =(A194*(Preisliste!$I$22*Preisliste!$C$5+Preisliste!$I$23*Preisliste!$C$6+Preisliste!$I$24*Preisliste!$C$7+Preisliste!$I$25*Preisliste!$C$8+Preisliste!$I$26*Preisliste!$C$10)*Preisliste!$C$34+Preisliste!$C$13*12) -> 4,668.00 € | D194: =(A194*(Preisliste!$I$22*Preisliste!$D$5+Preisliste!$I$23*Preisliste!$D$6+Preisliste!$I$24*Preisliste!$D$7+Preisliste!$I$25*Preisliste!$D$8+Preisliste!$I$26*Preisliste!$D$10)*Preisliste!$D$34+Preisliste!$D$13*12) -> 3,508.00 € | E194: =(A194*(Preisliste!$I$22*Preisliste!$E$5+Preisliste!$I$23*Preisliste!$E$6+Preisliste!$I$24*Preisliste!$E$7+Preisliste!$I$25*Preisliste!$E$8+Preisliste!$I$26*Preisliste!$E$10)*Preisliste!$E$34+Preisliste!$E$13*12) -> 3,076.00 €
A195: 1,910 | B195: =A195*((Preisliste!$I$22*Preisliste!$B$5+Preisliste!$I$23*Preisliste!$B$6+Preisliste!$I$24*Preisliste!$B$7+Preisliste!$I$25*Preisliste!$B$8+Preisliste!$I$26*Preisliste!$B$10)*Preisliste!$B$34) -> 6,112.00 € | C195: =(A195*(Preisliste!$I$22*Preisliste!$C$5+Preisliste!$I$23*Preisliste!$C$6+Preisliste!$I$24*Preisliste!$C$7+Preisliste!$I$25*Preisliste!$C$8+Preisliste!$I$26*Preisliste!$C$10)*Preisliste!$C$34+Preisliste!$C$13*12) -> 4,692.00 € | D195: =(A195*(Preisliste!$I$22*Preisliste!$D$5+Preisliste!$I$23*Preisliste!$D$6+Preisliste!$I$24*Preisliste!$D$7+Preisliste!$I$25*Preisliste!$D$8+Preisliste!$I$26*Preisliste!$D$10)*Preisliste!$D$34+Preisliste!$D$13*12) -> 3,524.00 € | E195: =(A195*(Preisliste!$I$22*Preisliste!$E$5+Preisliste!$I$23*Preisliste!$E$6+Preisliste!$I$24*Preisliste!$E$7+Preisliste!$I$25*Preisliste!$E$8+Preisliste!$I$26*Preisliste!$E$10)*Preisliste!$E$34+Preisliste!$E$13*12) -> 3,087.20 €
A196: 1,920 | B196: =A196*((Preisliste!$I$22*Preisliste!$B$5+Preisliste!$I$23*Preisliste!$B$6+Preisliste!$I$24*Preisliste!$B$7+Preisliste!$I$25*Preisliste!$B$8+Preisliste!$I$26*Preisliste!$B$10)*Preisliste!$B$34) -> 6,144.00 € | C196: =(A196*(Preisliste!$I$22*Preisliste!$C$5+Preisliste!$I$23*Preisliste!$C$6+Preisliste!$I$24*Preisliste!$C$7+Preisliste!$I$25*Preisliste!$C$8+Preisliste!$I$26*Preisliste!$C$10)*Preisliste!$C$34+Preisliste!$C$13*12) -> 4,716.00 € | D196: =(A196*(Preisliste!$I$22*Preisliste!$D$5+Preisliste!$I$23*Preisliste!$D$6+Preisliste!$I$24*Preisliste!$D$7+Preisliste!$I$25*Preisliste!$D$8+Preisliste!$I$26*Preisliste!$D$10)*Preisliste!$D$34+Preisliste!$D$13*12) -> 3,540.00 € | E196: =(A196*(Preisliste!$I$22*Preisliste!$E$5+Preisliste!$I$23*Preisliste!$E$6+Preisliste!$I$24*Preisliste!$E$7+Preisliste!$I$25*Preisliste!$E$8+Preisliste!$I$26*Preisliste!$E$10)*Preisliste!$E$34+Preisliste!$E$13*12) -> 3,098.40 €
A197: 1,930 | B197: =A197*((Preisliste!$I$22*Preisliste!$B$5+Preisliste!$I$23*Preisliste!$B$6+Preisliste!$I$24*Preisliste!$B$7+Preisliste!$I$25*Preisliste!$B$8+Preisliste!$I$26*Preisliste!$B$10)*Preisliste!$B$34) -> 6,176.00 € | C197: =(A197*(Preisliste!$I$22*Preisliste!$C$5+Preisliste!$I$23*Preisliste!$C$6+Preisliste!$I$24*Preisliste!$C$7+Preisliste!$I$25*Preisliste!$C$8+Preisliste!$I$26*Preisliste!$C$10)*Preisliste!$C$34+Preisliste!$C$13*12) -> 4,740.00 € | D197: =(A197*(Preisliste!$I$22*Preisliste!$D$5+Preisliste!$I$23*Preisliste!$D$6+Preisliste!$I$24*Preisliste!$D$7+Preisliste!$I$25*Preisliste!$D$8+Preisliste!$I$26*Preisliste!$D$10)*Preisliste!$D$34+Preisliste!$D$13*12) -> 3,556.00 € | E197: =(A197*(Preisliste!$I$22*Preisliste!$E$5+Preisliste!$I$23*Preisliste!$E$6+Preisliste!$I$24*Preisliste!$E$7+Preisliste!$I$25*Preisliste!$E$8+Preisliste!$I$26*Preisliste!$E$10)*Preisliste!$E$34+Preisliste!$E$13*12) -> 3,109.60 €
A198: 1,940 | B198: =A198*((Preisliste!$I$22*Preisliste!$B$5+Preisliste!$I$23*Preisliste!$B$6+Preisliste!$I$24*Preisliste!$B$7+Preisliste!$I$25*Preisliste!$B$8+Preisliste!$I$26*Preisliste!$B$10)*Preisliste!$B$34) -> 6,208.00 € | C198: =(A198*(Preisliste!$I$22*Preisliste!$C$5+Preisliste!$I$23*Preisliste!$C$6+Preisliste!$I$24*Preisliste!$C$7+Preisliste!$I$25*Preisliste!$C$8+Preisliste!$I$26*Preisliste!$C$10)*Preisliste!$C$34+Preisliste!$C$13*12) -> 4,764.00 € | D198: =(A198*(Preisliste!$I$22*Preisliste!$D$5+Preisliste!$I$23*Preisliste!$D$6+Preisliste!$I$24*Preisliste!$D$7+Preisliste!$I$25*Preisliste!$D$8+Preisliste!$I$26*Preisliste!$D$10)*Preisliste!$D$34+Preisliste!$D$13*12) -> 3,572.00 € | E198: =(A198*(Preisliste!$I$22*Preisliste!$E$5+Preisliste!$I$23*Preisliste!$E$6+Preisliste!$I$24*Preisliste!$E$7+Preisliste!$I$25*Preisliste!$E$8+Preisliste!$I$26*Preisliste!$E$10)*Preisliste!$E$34+Preisliste!$E$13*12) -> 3,120.80 €
A199: 1,950 | B199: =A199*((Preisliste!$I$22*Preisliste!$B$5+Preisliste!$I$23*Preisliste!$B$6+Preisliste!$I$24*Preisliste!$B$7+Preisliste!$I$25*Preisliste!$B$8+Preisliste!$I$26*Preisliste!$B$10)*Preisliste!$B$34) -> 6,240.00 € | C199: =(A199*(Preisliste!$I$22*Preisliste!$C$5+Preisliste!$I$23*Preisliste!$C$6+Preisliste!$I$24*Preisliste!$C$7+Preisliste!$I$25*Preisliste!$C$8+Preisliste!$I$26*Preisliste!$C$10)*Preisliste!$C$34+Preisliste!$C$13*12) -> 4,788.00 € | D199: =(A199*(Preisliste!$I$22*Preisliste!$D$5+Preisliste!$I$23*Preisliste!$D$6+Preisliste!$I$24*Preisliste!$D$7+Preisliste!$I$25*Preisliste!$D$8+Preisliste!$I$26*Preisliste!$D$10)*Preisliste!$D$34+Preisliste!$D$13*12) -> 3,588.00 € | E199: =(A199*(Preisliste!$I$22*Preisliste!$E$5+Preisliste!$I$23*Preisliste!$E$6+Preisliste!$I$24*Preisliste!$E$7+Preisliste!$I$25*Preisliste!$E$8+Preisliste!$I$26*Preisliste!$E$10)*Preisliste!$E$34+Preisliste!$E$13*12) -> 3,132.00 €
A200: 1,960 | B200: =A200*((Preisliste!$I$22*Preisliste!$B$5+Preisliste!$I$23*Preisliste!$B$6+Preisliste!$I$24*Preisliste!$B$7+Preisliste!$I$25*Preisliste!$B$8+Preisliste!$I$26*Preisliste!$B$10)*Preisliste!$B$34) -> 6,272.00 € | C200: =(A200*(Preisliste!$I$22*Preisliste!$C$5+Preisliste!$I$23*Preisliste!$C$6+Preisliste!$I$24*Preisliste!$C$7+Preisliste!$I$25*Preisliste!$C$8+Preisliste!$I$26*Preisliste!$C$10)*Preisliste!$C$34+Preisliste!$C$13*12) -> 4,812.00 € | D200: =(A200*(Preisliste!$I$22*Preisliste!$D$5+Preisliste!$I$23*Preisliste!$D$6+Preisliste!$I$24*Preisliste!$D$7+Preisliste!$I$25*Preisliste!$D$8+Preisliste!$I$26*Preisliste!$D$10)*Preisliste!$D$34+Preisliste!$D$13*12) -> 3,604.00 € | E200: =(A200*(Preisliste!$I$22*Preisliste!$E$5+Preisliste!$I$23*Preisliste!$E$6+Preisliste!$I$24*Preisliste!$E$7+Preisliste!$I$25*Preisliste!$E$8+Preisliste!$I$26*Preisliste!$E$10)*Preisliste!$E$34+Preisliste!$E$13*12) -> 3,143.20 €
A201: 1,970 | B201: =A201*((Preisliste!$I$22*Preisliste!$B$5+Preisliste!$I$23*Preisliste!$B$6+Preisliste!$I$24*Preisliste!$B$7+Preisliste!$I$25*Preisliste!$B$8+Preisliste!$I$26*Preisliste!$B$10)*Preisliste!$B$34) -> 6,304.00 € | C201: =(A201*(Preisliste!$I$22*Preisliste!$C$5+Preisliste!$I$23*Preisliste!$C$6+Preisliste!$I$24*Preisliste!$C$7+Preisliste!$I$25*Preisliste!$C$8+Preisliste!$I$26*Preisliste!$C$10)*Preisliste!$C$34+Preisliste!$C$13*12) -> 4,836.00 € | D201: =(A201*(Preisliste!$I$22*Preisliste!$D$5+Preisliste!$I$23*Preisliste!$D$6+Preisliste!$I$24*Preisliste!$D$7+Preisliste!$I$25*Preisliste!$D$8+Preisliste!$I$26*Preisliste!$D$10)*Preisliste!$D$34+Preisliste!$D$13*12) -> 3,620.00 € | E201: =(A201*(Preisliste!$I$22*Preisliste!$E$5+Preisliste!$I$23*Preisliste!$E$6+Preisliste!$I$24*Preisliste!$E$7+Preisliste!$I$25*Preisliste!$E$8+Preisliste!$I$26*Preisliste!$E$10)*Preisliste!$E$34+Preisliste!$E$13*12) -> 3,154.40 €
... 5303 more rows
